Workbook

Sheet Main
B10: 2018-06-01
B12: Sheet No. | C12: Template Name | D12: Summary
B13: 1 | C13: Future Intra | D13: For Intraday trading in F&O segment
B14: 2 | C14: Cash Intra | D14: For Intraday trading in cash market segment
B15: 3 | C15: Mid-cap Intra | D15: For Intraday trading in Mid-cap stocks
B16: 4 | C16: Bulk Deals | D16: Reveals Bulk Deals carried on NSE & BSE
B17: 5 | C17: Call Tracker

Sheet Future Intra
M5: Back to Main Page
A6: FOR INTRA DAY TRADING | L6: =Main!B10 -> 2018-06-01
A9: Sr.no | B9: Sector | C9: Scrip | D9: CLOSE RATE | E9: Pivot Point | F9: Supports | I9: Resistances
B10: Sector | D10: Point | E10: Point | F10: S1 | G10: S2 | H10: S3 | I10: R1 | J10: R2 | K10: R3 | L10: HIGH | M10: LOW | N10: OI | O10: % Change in OI
A11: 1 | B11: Index | C11: BANKNIFTY | D11: 26726.90 | E11: 26623.55 | F11: 26470.35 | G11: 26213.80 | H11: 26060.60 | I11: 26880.10 | J11: 27033.30 | K11: 27289.85 | L11: 26776.75 | M11: 26367 | N11: 2878720 | O11: -4.01%
A12: 2 | B12: Index | C12: NIFTY | D12: 10702.15 | E12: 10680.88 | F12: 10646.37 | G12: 10590.58 | H12: 10556.07 | I12: 10736.67 | J12: 10771.18 | K12: 10826.97 | L12: 10715.4 | M12: 10625.1 | N12: 19587825 | O12: -30.36%
A13: 3 | B13: Index | C13: NIFTYCPSE | D13: 2463.55 | E13: 821.18 | F13: 1642.37 | G13: 821.18 | H13: 1642.37 | I13: 1642.37 | J13: 821.18 | K13: 1642.37 | L13: 0 | M13: 0 | N13: 0 | O13: 0.00%
A14: 4 | B14: Index | C14: NIFTYINFRA | D14: 3389.30 | E14: 1129.77 | F14: 2259.53 | G14: 1129.77 | H14: 2259.53 | I14: 2259.53 | J14: 1129.77 | K14: 2259.53 | L14: 0 | M14: 0 | N14: 0 | O14: 0.00%
A15: 5 | B15: Index | C15: NIFTYIT | D15: 13635.00 | E15: 13584.67 | F15: 13500.33 | G15: 13365.67 | H15: 13281.33 | I15: 13719.33 | J15: 13803.67 | K15: 13938.33 | L15: 13669 | M15: 13450 | N15: 43500 | O15: -16.02%
A16: 6 | B16: Index | C16: NIFTYMID50 | D16: 5065.85 | E16: 1688.62 | F16: 3377.23 | G16: 1688.62 | H16: 3377.23 | I16: 3377.23 | J16: 1688.62 | K16: 3377.23 | L16: 0 | M16: 0 | N16: 591400 | O16: -0.03%
A17: 7 | B17: Index | C17: NIFTYPSE | D17: 3915.30 | E17: 1305.10 | F17: 2610.20 | G17: 1305.10 | H17: 2610.20 | I17: 2610.20 | J17: 1305.10 | K17: 2610.20 | L17: 0 | M17: 0 | N17: 0 | O17: 0.00%
A18: 8 | B18: Cement | C18: ACC | D18: 1363.10 | E18: 1348.32 | F18: 1326.73 | G18: 1290.37 | H18: 1268.78 | I18: 1384.68 | J18: 1406.27 | K18: 1442.63 | L18: 1369.9 | M18: 1311.95 | N18: 3753600 | O18: -23.53%
A19: 9 | B19: Others | C19: ADANIENT | D19: 121.90 | E19: 122.48 | F19: 120.62 | G19: 119.33 | H19: 117.47 | I19: 123.77 | J19: 125.63 | K19: 126.92 | L19: 124.35 | M19: 121.2 | N19: 11432000 | O19: -9.30%
A20: 10 | B20: Others | C20: ADANIPORTS | D20: 394.00 | E20: 388.45 | F20: 377.20 | G20: 360.40 | H20: 349.15 | I20: 405.25 | J20: 416.50 | K20: 433.30 | L20: 399.7 | M20: 371.65 | N20: 12705000 | O20: -34.88%
A21: 11 | B21: Power | C21: ADANIPOWER | D21: 20.35 | E21: 20.33 | F21: 20.02 | G21: 19.68 | H21: 19.37 | I21: 20.67 | J21: 20.98 | K21: 21.32 | L21: 20.65 | M21: 20 | N21: 101240000 | O21: -17.73%
A22: 12 | B22: Pharma | C22: AJANTPHARM | D22: 965.95 | E22: 972.18 | F22: 955.67 | G22: 945.38 | H22: 928.87 | I22: 982.47 | J22: 998.98 | K22: 1009.27 | L22: 988.7 | M22: 961.9 | N22: 893000 | O22: -23.25%
A23: 13 | B23: Banking | C23: ALBK | D23: 41.15 | E23: 41.47 | F23: 40.53 | G23: 39.92 | H23: 38.98 | I23: 42.08 | J23: 43.02 | K23: 43.63 | L23: 42.4 | M23: 40.85 | N23: 14880000 | O23: -9.54%
A24: 14 | B24: Automobile | C24: AMARAJABAT | D24: 767.30 | E24: 764.62 | F24: 735.23 | G24: 703.17 | H24: 673.78 | I24: 796.68 | J24: 826.07 | K24: 858.13 | L24: 794 | M24: 732.55 | N24: 1545600 | O24: -6.76%
A25: 15 | B25: Cement | C25: AMBUJACEM | D25: 206.80 | E25: 207.62 | F25: 205.03 | G25: 203.27 | H25: 200.68 | I25: 209.38 | J25: 211.97 | K25: 213.73 | L25: 210.2 | M25: 205.85 | N25: 16287500 | O25: 4.74%
A26: 16 | B26: Banking | C26: ANDHRABANK | D26: 36.60 | E26: 36.53 | F26: 36.02 | G26: 35.43 | H26: 34.92 | I26: 37.12 | J26: 37.63 | K26: 38.22 | L26: 37.05 | M26: 35.95 | N26: 19380000 | O26: -27.46%
A27: 17 | B27: Others | C27: APOLLOHOSP | D27: 956.85 | E27: 973.42 | F27: 935.08 | G27: 913.32 | H27: 874.98 | I27: 995.18 | J27: 1033.52 | K27: 1055.28 | L27: 1011.75 | M27: 951.65 | N27: 1121000 | O27: -0.09%
A28: 18 | B28: Automobile | C28: APOLLOTYRE | D28: 270.30 | E28: 272.08 | F28: 265.22 | G28: 260.13 | H28: 253.27 | I28: 277.17 | J28: 284.03 | K28: 289.12 | L28: 278.95 | M28: 267 | N28: 8643000 | O28: -8.63%
A29: 19 | B29: Textile | C29: ARVIND | D29: 392.00 | E29: 391.33 | F29: 386.67 | G29: 381.33 | H29: 376.67 | I29: 396.67 | J29: 401.33 | K29: 406.67 | L29: 396 | M29: 386 | N29: 7554000 | O29: 1.53%
A30: 20 | B30: Automobile | C30: ASHOKLEY | D30: 149.00 | E30: 149.67 | F30: 147.73 | G30: 146.47 | H30: 144.53 | I30: 150.93 | J30: 152.87 | K30: 154.13 | L30: 151.6 | M30: 148.4 | N30: 57714000 | O30: -9.37%
A31: 21 | B31: FMCG | C31: ASIANPAINT | D31: 1306.05 | E31: 1301.78 | F31: 1292.27 | G31: 1278.48 | H31: 1268.97 | I31: 1315.57 | J31: 1325.08 | K31: 1338.87 | L31: 1311.3 | M31: 1288 | N31: 4969200 | O31: -16.08%
A32: 22 | B32: Pharma | C32: AUROPHARMA | D32: 559.30 | E32: 562.58 | F32: 552.72 | G32: 546.13 | H32: 536.27 | I32: 569.17 | J32: 579.03 | K32: 585.62 | L32: 572.45 | M32: 556 | N32: 22654200 | O32: -6.07%
A33: 23 | B33: Banking | C33: AXISBANK | D33: 541.15 | E33: 539.93 | F33: 535.87 | G33: 530.58 | H33: 526.52 | I33: 545.22 | J33: 549.28 | K33: 554.57 | L33: 544 | M33: 534.65 | N33: 43718400 | O33: -14.77%
A34: 24 | B34: Automobile | C34: BAJAJ-AUTO | D34: 2770.40 | E34: 2772.02 | F34: 2749.43 | G34: 2728.47 | H34: 2705.88 | I34: 2792.98 | J34: 2815.57 | K34: 2836.53 | L34: 2794.6 | M34: 2751.05 | N34: 2114000 | O34: -6.66%
A35: 25 | B35: Others | C35: BAJAJFINSV | D35: 6003.00 | E35: 5997.92 | F35: 5957.08 | G35: 5911.17 | H35: 5870.33 | I35: 6043.83 | J35: 6084.67 | K35: 6130.58 | L35: 6038.75 | M35: 5952 | N35: 662875 | O35: -6.01%
A36: 26 | B36: Finance | C36: BAJFINANCE | D36: 2121.00 | E36: 2128.77 | F36: 2105.53 | G36: 2090.07 | H36: 2066.83 | I36: 2144.23 | J36: 2167.47 | K36: 2182.93 | L36: 2152 | M36: 2113.3 | N36: 4698500 | O36: -14.05%
A37: 27 | B37: Others | C37: BALKRISIND | D37: 1139.50 | E37: 1142.03 | F37: 1127.97 | G37: 1116.43 | H37: 1102.37 | I37: 1153.57 | J37: 1167.63 | K37: 1179.17 | L37: 1156.1 | M37: 1130.5 | N37: 1020800 | O37: -19.44%
A38: 28 | B38: Others | C38: BALRAMCHIN | D38: 71.90 | E38: 73.02 | F38: 70.18 | G38: 68.47 | H38: 65.63 | I38: 74.73 | J38: 77.57 | K38: 79.28 | L38: 75.85 | M38: 71.3 | N38: 12873000 | O38: -22.39%
A39: 29 | B39: Banking | C39: BANKBARODA | D39: 137.50 | E39: 138.10 | F39: 135.75 | G39: 134.00 | H39: 131.65 | I39: 139.85 | J39: 142.20 | K39: 143.95 | L39: 140.45 | M39: 136.35 | N39: 53924000 | O39: -6.13%
A40: 30 | B40: Banking | C40: BANKINDIA | D40: 99.15 | E40: 99.98 | F40: 97.92 | G40: 96.68 | H40: 94.62 | I40: 101.22 | J40: 103.28 | K40: 104.52 | L40: 102.05 | M40: 98.75 | N40: 24642000 | O40: -6.87%
A41: 31 | B41: FMCG | C41: BATAINDIA | D41: 782.55 | E41: 788.30 | F41: 773.80 | G41: 765.05 | H41: 750.55 | I41: 797.05 | J41: 811.55 | K41: 820.30 | L41: 802.8 | M41: 779.55 | N41: 2250600 | O41: -18.16%
A42: 32 | B42: Capital_Goods | C42: BEL | D42: 115.20 | E42: 116.63 | F42: 113.17 | G42: 111.13 | H42: 107.67 | I42: 118.67 | J42: 122.13 | K42: 124.17 | L42: 120.1 | M42: 114.6 | N42: 33016500 | O42: -2.54%
A43: 33 | B43: Infrastructure | C43: BEML | D43: 930.55 | E43: 937.05 | F43: 919.80 | G43: 909.05 | H43: 891.80 | I43: 947.80 | J43: 965.05 | K43: 975.80 | L43: 954.3 | M43: 926.3 | N43: 1835500 | O43: -11.92%
A44: 34 | B44: Others | C44: BERGEPAINT | D44: 295.15 | E44: 294.00 | F44: 289.15 | G44: 283.15 | H44: 278.30 | I44: 300.00 | J44: 304.85 | K44: 310.85 | L44: 298.85 | M44: 288 | N44: 2050400 | O44: -26.15%
A45: 35 | B45: Finance | C45: BHARATFIN | D45: 1175.85 | E45: 1167.78 | F45: 1154.12 | G45: 1132.38 | H45: 1118.72 | I45: 1189.52 | J45: 1203.18 | K45: 1224.92 | L45: 1181.45 | M45: 1146.05 | N45: 5615000 | O45: -0.46%
A46: 36 | B46: Automobile | C46: BHARATFORG | D46: 654.95 | E46: 660.22 | F46: 647.73 | G46: 640.52 | H46: 628.03 | I46: 667.43 | J46: 679.92 | K46: 687.13 | L46: 672.7 | M46: 653 | N46: 8714400 | O46: -3.42%
A47: 37 | B47: Telecom | C47: BHARTIARTL | D47: 375.85 | E47: 378.03 | F47: 371.47 | G47: 367.08 | H47: 360.52 | I47: 382.42 | J47: 388.98 | K47: 393.37 | L47: 384.6 | M47: 373.65 | N47: 46772100 | O47: -12.13%
A48: 38 | B48: Capital_Goods | C48: BHEL | D48: 83.35 | E48: 83.60 | F48: 82.55 | G48: 81.75 | H48: 80.70 | I48: 84.40 | J48: 85.45 | K48: 86.25 | L48: 84.65 | M48: 82.8 | N48: 46342500 | O48: -12.17%
A49: 39 | B49: Pharma | C49: BIOCON | D49: 670.00 | E49: 672.98 | F49: 663.72 | G49: 657.43 | H49: 648.17 | I49: 679.27 | J49: 688.53 | K49: 694.82 | L49: 682.25 | M49: 666.7 | N49: 9296100 | O49: 3.50%
A50: 40 | B50: Automobile | C50: BOSCHLTD | D50: 18284.75 | E50: 18341.55 | F50: 18073.10 | G50: 17861.45 | H50: 17593.00 | I50: 18553.20 | J50: 18821.65 | K50: 19033.30 | L50: 18610 | M50: 18129.9 | N50: 129400 | O50: -14.01%
A51: 41 | B51: Oil_Gas | C51: BPCL | D51: 401.60 | E51: 398.32 | F51: 392.73 | G51: 383.87 | H51: 378.28 | I51: 407.18 | J51: 412.77 | K51: 421.63 | L51: 403.9 | M51: 389.45 | N51: 7767000 | O51: -36.05%
A52: 42 | B52: FMCG | C52: BRITANNIA | D52: 5903.45 | E52: 5879.12 | F52: 5816.33 | G52: 5729.22 | H52: 5666.43 | I52: 5966.23 | J52: 6029.02 | K52: 6116.13 | L52: 5941.9 | M52: 5792 | N52: 780200 | O52: -5.59%
A53: 43 | B53: Pharma | C53: CADILAHC | D53: 363.80 | E53: 365.97 | F53: 359.88 | G53: 355.97 | H53: 349.88 | I53: 369.88 | J53: 375.97 | K53: 379.88 | L53: 372.05 | M53: 362.05 | N53: 9411200 | O53: -7.91%
A54: 44 | B54: Banking | C54: CANBK | D54: 258.50 | E54: 257.65 | F54: 254.45 | G54: 250.40 | H54: 247.20 | I54: 261.70 | J54: 264.90 | K54: 268.95 | L54: 260.85 | M54: 253.6 | N54: 12942400 | O54: -9.78%
A55: 45 | B55: Others | C55: CANFINHOME | D55: 380.80 | E55: 385.75 | F55: 373.75 | G55: 366.70 | H55: 354.70 | I55: 392.80 | J55: 404.80 | K55: 411.85 | L55: 397.75 | M55: 378.7 | N55: 4365000 | O55: -8.15%
A56: 46 | B56: Finance | C56: CAPF | D56: 569.85 | E56: 564.32 | F56: 553.78 | G56: 537.72 | H56: 527.18 | I56: 580.38 | J56: 590.92 | K56: 606.98 | L56: 574.85 | M56: 548.25 | N56: 8562400 | O56: -5.36%
A57: 47 | B57: Oil_Gas | C57: CASTROLIND | D57: 171.55 | E57: 172.35 | F57: 169.40 | G57: 167.25 | H57: 164.30 | I57: 174.50 | J57: 177.45 | K57: 179.60 | L57: 175.3 | M57: 170.2 | N57: 10175200 | O57: -12.26%
A58: 48 | B58: Automobile | C58: CEATLTD | D58: 1369.45 | E58: 1377.83 | F58: 1354.27 | G58: 1339.08 | H58: 1315.52 | I58: 1393.02 | J58: 1416.58 | K58: 1431.77 | L58: 1401.4 | M58: 1362.65 | N58: 1506400 | O58: -11.91%
A59: 49 | B59: Textile | C59: CENTURYTEX | D59: 953.65 | E59: 959.50 | F59: 945.00 | G59: 936.35 | H59: 921.85 | I59: 968.15 | J59: 982.65 | K59: 991.30 | L59: 974 | M59: 950.85 | N59: 6330500 | O59: -6.70%
A60: 50 | B60: Power | C60: CESC | D60: 1025.40 | E60: 1029.62 | F60: 1014.18 | G60: 1002.97 | H60: 987.53 | I60: 1040.83 | J60: 1056.27 | K60: 1067.48 | L60: 1045.05 | M60: 1018.4 | N60: 5676550 | O60: -5.24%
A61: 51 | B61: Power | C61: CGPOWER | D61: 61.60 | E61: 66.33 | F61: 56.27 | G61: 50.93 | H61: 40.87 | I61: 71.67 | J61: 81.73 | K61: 87.07 | L61: 76.4 | M61: 61 | N61: 18396000 | O61: -2.54%
A62: 52 | B62: Others | C62: CHENNPETRO | D62: 285.30 | E62: 284.32 | F62: 280.98 | G62: 276.67 | H62: 273.33 | I62: 288.63 | J62: 291.97 | K62: 296.28 | L62: 287.65 | M62: 280 | N62: 2962500 | O62: -11.28%
A63: 53 | B63: Others | C63: CHOLAFIN | D63: 1541.60 | E63: 1545.10 | F63: 1528.20 | G63: 1514.80 | H63: 1497.90 | I63: 1558.50 | J63: 1575.40 | K63: 1588.80 | L63: 1562 | M63: 1531.7 | N63: 982000 | O63: -15.27%
A64: 54 | B64: Pharma | C64: CIPLA | D64: 526.45 | E64: 528.27 | F64: 520.88 | G64: 515.32 | H64: 507.93 | I64: 533.83 | J64: 541.22 | K64: 546.78 | L64: 535.65 | M64: 522.7 | N64: 10820000 | O64: -11.93%
A65: 55 | B65: Others | C65: COALINDIA | D65: 293.80 | E65: 296.63 | F65: 288.27 | G65: 282.73 | H65: 274.37 | I65: 302.17 | J65: 310.53 | K65: 316.07 | L65: 305 | M65: 291.1 | N65: 17778200 | O65: -9.84%
A66: 56 | B66: FMCG | C66: COLPAL | D66: 1239.50 | E66: 1238.80 | F66: 1216.30 | G66: 1193.10 | H66: 1170.60 | I66: 1262.00 | J66: 1284.50 | K66: 1307.70 | L66: 1261.3 | M66: 1215.6 | N66: 1754900 | O66: -19.10%
A67: 57 | B67: Others | C67: CONCOR | D67: 1367.35 | E67: 1368.93 | F67: 1351.72 | G67: 1336.08 | H67: 1318.87 | I67: 1384.57 | J67: 1401.78 | K67: 1417.42 | L67: 1386.15 | M67: 1353.3 | N67: 1444375 | O67: -33.61%
A68: 58 | B68: Capital_Goods | C68: CUMMINSIND | D68: 708.10 | E68: 707.98 | F68: 702.42 | G68: 696.73 | H68: 691.17 | I68: 713.67 | J68: 719.23 | K68: 724.92 | L68: 713.55 | M68: 702.3 | N68: 687100 | O68: -24.26%
A69: 59 | B69: FMCG | C69: DABUR | D69: 386.25 | E69: 386.02 | F69: 383.23 | G69: 380.22 | H69: 377.43 | I69: 389.03 | J69: 391.82 | K69: 394.83 | L69: 388.8 | M69: 383 | N69: 13642500 | O69: -8.39%
A70: 60 | B70: Cement | C70: DALMIABHA | D70: 2741.65 | E70: 2756.60 | F70: 2705.45 | G70: 2669.25 | H70: 2618.10 | I70: 2792.80 | J70: 2843.95 | K70: 2880.15 | L70: 2807.75 | M70: 2720.4 | N70: 543300 | O70: -9.72%
A71: 61 | B71: Banking | C71: DCBBANK | D71: 186.35 | E71: 186.45 | F71: 184.80 | G71: 183.25 | H71: 181.60 | I71: 188.00 | J71: 189.65 | K71: 191.20 | L71: 188.1 | M71: 184.9 | N71: 7038000 | O71: -11.29%
A72: 62 | B72: Finance | C72: DHFL | D72: 617.10 | E72: 624.28 | F72: 606.12 | G72: 595.13 | H72: 576.97 | I72: 635.27 | J72: 653.43 | K72: 664.42 | L72: 642.45 | M72: 613.3 | N72: 24195000 | O72: -4.69%
A73: 63 | B73: Media | C73: DISHTV | D73: 73.50 | E73: 73.55 | F73: 71.85 | G73: 70.20 | H73: 68.50 | I73: 75.20 | J73: 76.90 | K73: 78.55 | L73: 75.25 | M73: 71.9 | N73: 46039000 | O73: -9.54%
A74: 64 | B74: Pharma | C74: DIVISLAB | D74: 1054.55 | E74: 1059.73 | F74: 1044.47 | G74: 1034.38 | H74: 1019.12 | I74: 1069.82 | J74: 1085.08 | K74: 1095.17 | L74: 1075 | M74: 1049.65 | N74: 3221600 | O74: 1.38%
A75: 65 | B75: Realty | C75: DLF | D75: 210.80 | E75: 209.87 | F75: 207.03 | G75: 203.27 | H75: 200.43 | I75: 213.63 | J75: 216.47 | K75: 220.23 | L75: 212.7 | M75: 206.1 | N75: 33792500 | O75: -13.96%
A76: 66 | B76: Pharma | C76: DRREDDY | D76: 1948.95 | E76: 1955.98 | F76: 1933.97 | G76: 1918.98 | H76: 1896.97 | I76: 1970.97 | J76: 1992.98 | K76: 2007.97 | L76: 1978 | M76: 1941 | N76: 4495500 | O76: -15.95%
A77: 67 | B77: Automobile | C77: EICHERMOT | D77: 30615.30 | E77: 30576.77 | F77: 30358.53 | G77: 30101.77 | H77: 29883.53 | I77: 30833.53 | J77: 31051.77 | K77: 31308.53 | L77: 30795 | M77: 30320 | N77: 179825 | O77: -5.22%
A78: 68 | B78: Infrastructure | C78: ENGINERSIN | D78: 132.10 | E78: 132.63 | F78: 130.12 | G78: 128.13 | H78: 125.62 | I78: 134.62 | J78: 137.13 | K78: 139.12 | L78: 135.15 | M78: 130.65 | N78: 9908500 | O78: -15.19%
A79: 69 | B79: Finance | C79: EQUITAS | D79: 164.85 | E79: 164.30 | F79: 163.05 | G79: 161.25 | H79: 160.00 | I79: 166.10 | J79: 167.35 | K79: 169.15 | L79: 165.55 | M79: 162.5 | N79: 21182400 | O79: -5.42%
A80: 70 | B80: Automobile | C80: ESCORTS | D80: 937.05 | E80: 933.60 | F80: 919.25 | G80: 901.45 | H80: 887.10 | I80: 951.40 | J80: 965.75 | K80: 983.55 | L80: 947.95 | M80: 915.8 | N80: 4343900 | O80: -10.80%
A81: 71 | B81: Automobile | C81: EXIDEIND | D81: 261.35 | E81: 262.60 | F81: 258.55 | G81: 255.75 | H81: 251.70 | I81: 265.40 | J81: 269.45 | K81: 272.25 | L81: 266.65 | M81: 259.8 | N81: 6864000 | O81: -15.26%
A82: 72 | B82: Banking | C82: FEDERALBNK | D82: 85.30 | E82: 85.52 | F82: 84.38 | G82: 83.47 | H82: 82.33 | I82: 86.43 | J82: 87.57 | K82: 88.48 | L82: 86.65 | M82: 84.6 | N82: 75922000 | O82: -12.10%
A83: 73 | B83: Oil_Gas | C83: GAIL | D83: 350.40 | E83: 349.10 | F83: 346.25 | G83: 342.10 | H83: 339.25 | I83: 353.25 | J83: 356.10 | K83: 360.25 | L83: 351.95 | M83: 344.95 | N83: 13860399 | O83: -12.49%
A84: 74 | B84: Pharma | C84: GLENMARK | D84: 533.40 | E84: 530.20 | F84: 522.40 | G84: 511.40 | H84: 503.60 | I84: 541.20 | J84: 549.00 | K84: 560.00 | L84: 538 | M84: 519.2 | N84: 4906400 | O84: -12.82%
A85: 75 | B85: Infrastructure | C85: GMRINFRA | D85: 18.20 | E85: 18.07 | F85: 17.73 | G85: 17.27 | H85: 16.93 | I85: 18.53 | J85: 18.87 | K85: 19.33 | L85: 18.4 | M85: 17.6 | N85: 262260000 | O85: -27.42%
A86: 76 | B86: Others | C86: GODFRYPHLP | D86: 758.35 | E86: 762.47 | F86: 749.68 | G86: 741.02 | H86: 728.23 | I86: 771.13 | J86: 783.92 | K86: 792.58 | L86: 775.25 | M86: 753.8 | N86: 530400 | O86: -12.32%
A87: 77 | B87: FMCG | C87: GODREJCP | D87: 1146.90 | E87: 1151.97 | F87: 1132.93 | G87: 1118.97 | H87: 1099.93 | I87: 1165.93 | J87: 1184.97 | K87: 1198.93 | L87: 1171 | M87: 1138 | N87: 2144000 | O87: -5.10%
A88: 78 | B88: FMCG | C88: GODREJIND | D88: 593.40 | E88: 591.77 | F88: 583.63 | G88: 573.87 | H88: 565.73 | I88: 601.53 | J88: 609.67 | K88: 619.43 | L88: 599.9 | M88: 582 | N88: 1894500 | O88: -27.70%
A89: 79 | B89: Pharma | C89: GRANULES | D89: 78.90 | E89: 79.48 | F89: 77.72 | G89: 76.53 | H89: 74.77 | I89: 80.67 | J89: 82.43 | K89: 83.62 | L89: 81.25 | M89: 78.3 | N89: 15970000 | O89: -8.19%
A90: 80 | B90: Cement | C90: GRASIM | D90: 1045.95 | E90: 1043.48 | F90: 1037.47 | G90: 1028.98 | H90: 1022.97 | I90: 1051.97 | J90: 1057.98 | K90: 1066.47 | L90: 1049.5 | M90: 1035 | N90: 5151750 | O90: -15.02%
A91: 81 | B91: Others | C91: GSFC | D91: 117.15 | E91: 117.75 | F91: 116.10 | G91: 115.05 | H91: 113.40 | I91: 118.80 | J91: 120.45 | K91: 121.50 | L91: 119.4 | M91: 116.7 | N91: 15858000 | O91: -11.06%
A92: 82 | B92: Others | C92: HAVELLS | D92: 547.65 | E92: 552.55 | F92: 541.30 | G92: 534.95 | H92: 523.70 | I92: 558.90 | J92: 570.15 | K92: 576.50 | L92: 563.8 | M92: 546.2 | N92: 4534000 | O92: -8.26%
A93: 83 | B93: Others | C93: HCC | D93: 15.00 | E93: 15.17 | F93: 14.73 | G93: 14.47 | H93: 14.03 | I93: 15.43 | J93: 15.87 | K93: 16.13 | L93: 15.6 | M93: 14.9 | N93: 41439000 | O93: -25.08%
A94: 84 | B94: Technology | C94: HCLTECH | D94: 914.00 | E94: 912.47 | F94: 905.98 | G94: 897.97 | H94: 891.48 | I94: 920.48 | J94: 926.97 | K94: 934.98 | L94: 918.95 | M94: 904.45 | N94: 11303600 | O94: -10.00%
A95: 85 | B95: Finance | C95: HDFC | D95: 1837.70 | E95: 1829.37 | F95: 1816.23 | G95: 1794.77 | H95: 1781.63 | I95: 1850.83 | J95: 1863.97 | K95: 1885.43 | L95: 1842.5 | M95: 1807.9 | N95: 23469000 | O95: -6.57%
A96: 86 | B96: Banking | C96: HDFCBANK | D96: 2116.00 | E96: 2104.72 | F96: 2088.43 | G96: 2060.87 | H96: 2044.58 | I96: 2132.28 | J96: 2148.57 | K96: 2176.13 | L96: 2121 | M96: 2077.15 | N96: 22969000 | O96: -14.15%
A97: 88 | B97: Automobile | C97: HEROMOTOCO | D97: 3562.25 | E97: 3577.90 | F97: 3535.80 | G97: 3509.35 | H97: 3467.25 | I97: 3604.35 | J97: 3646.45 | K97: 3672.90 | L97: 3620 | M97: 3551.45 | N97: 1318200 | O97: -14.18%
A98: 89 | B98: Technology | C98: HEXAWARE | D98: 437.55 | E98: 439.37 | F98: 432.93 | G98: 428.32 | H98: 421.88 | I98: 443.98 | J98: 450.42 | K98: 455.03 | L98: 445.8 | M98: 434.75 | N98: 4500000 | O98: -22.10%
A99: 90 | B99: Metals | C99: HINDALCO | D99: 234.75 | E99: 236.13 | F99: 232.02 | G99: 229.28 | H99: 225.17 | I99: 238.87 | J99: 242.98 | K99: 245.72 | L99: 240.25 | M99: 233.4 | N99: 35070000 | O99: -9.77%
A100: 91 | B100: Oil_Gas | C100: HINDPETRO | D100: 311.30 | E100: 307.40 | F100: 302.90 | G100: 294.50 | H100: 290.00 | I100: 315.80 | J100: 320.30 | K100: 328.70 | L100: 311.9 | M100: 299 | N100: 26808075 | O100: -14.89%
A101: 92 | B101: FMCG | C101: HINDUNILVR | D101: 1608.45 | E101: 1599.63 | F101: 1585.32 | G101: 1562.18 | H101: 1547.87 | I101: 1622.77 | J101: 1637.08 | K101: 1660.22 | L101: 1613.95 | M101: 1576.5 | N101: 8504400 | O101: -12.38%
A102: 93 | B102: Metals | C102: HINDZINC | D102: 297.90 | E102: 297.38 | F102: 295.02 | G102: 292.13 | H102: 289.77 | I102: 300.27 | J102: 302.63 | K102: 305.52 | L102: 299.75 | M102: 294.5 | N102: 15564800 | O102: -11.39%
A103: 94 | B103: Finance | C103: IBULHSGFIN | D103: 1251.10 | E103: 1246.88 | F103: 1230.97 | G103: 1210.83 | H103: 1194.92 | I103: 1267.02 | J103: 1282.93 | K103: 1303.07 | L103: 1262.8 | M103: 1226.75 | N103: 14044400 | O103: -14.89%
A104: 95 | B104: Banking | C104: ICICIBANK | D104: 286.45 | E104: 285.15 | F104: 281.80 | G104: 277.15 | H104: 273.80 | I104: 289.80 | J104: 293.15 | K104: 297.80 | L104: 288.5 | M104: 280.5 | N104: 77924000 | O104: -16.88%
A105: 96 | B105: Others | C105: ICICIPRULI | D105: 422.20 | E105: 423.02 | F105: 418.38 | G105: 414.57 | H105: 409.93 | I105: 426.83 | J105: 431.47 | K105: 435.28 | L105: 427.65 | M105: 419.2 | N105: 4278300 | O105: -13.62%
A106: 97 | B106: Banking | C106: IDBI | D106: 66.00 | E106: 65.75 | F106: 65.10 | G106: 64.20 | H106: 63.55 | I106: 66.65 | J106: 67.30 | K106: 68.20 | L106: 66.4 | M106: 64.85 | N106: 54540000 | O106: -12.32%
A107: 98 | B107: Telecom | C107: IDEA | D107: 61.70 | E107: 61.87 | F107: 60.48 | G107: 59.27 | H107: 57.88 | I107: 63.08 | J107: 64.47 | K107: 65.68 | L107: 63.25 | M107: 60.65 | N107: 135604000 | O107: -10.23%
A108: 99 | B108: Finance | C108: IDFC | D108: 51.10 | E108: 50.95 | F108: 50.30 | G108: 49.50 | H108: 48.85 | I108: 51.75 | J108: 52.40 | K108: 53.20 | L108: 51.6 | M108: 50.15 | N108: 150427200 | O108: -20.59%
A109: 100 | B109: Banking | C109: IDFCBANK | D109: 41.25 | E109: 40.85 | F109: 40.05 | G109: 38.85 | H109: 38.05 | I109: 42.05 | J109: 42.85 | K109: 44.05 | L109: 41.65 | M109: 39.65 | N109: 190133000 | O109: -27.60%
A110: 101 | B110: Finance | C110: IFCI | D110: 17.85 | E110: 18.03 | F110: 17.47 | G110: 17.08 | H110: 16.52 | I110: 18.42 | J110: 18.98 | K110: 19.37 | L110: 18.6 | M110: 17.65 | N110: 65374000 | O110: -14.19%
A111: 102 | B111: Oil_Gas | C111: IGL | D111: 264.60 | E111: 264.87 | F111: 261.23 | G111: 257.87 | H111: 254.23 | I111: 268.23 | J111: 271.87 | K111: 275.23 | L111: 268.5 | M111: 261.5 | N111: 7658750 | O111: -19.56%
A112: 103 | B112: Cement | C112: INDIACEM | D112: 130.80 | E112: 131.68 | F112: 128.72 | G112: 126.63 | H112: 123.67 | I112: 133.77 | J112: 136.73 | K112: 138.82 | L112: 134.65 | M112: 129.6 | N112: 23149000 | O112: -8.46%
A113: 104 | B113: Banking | C113: INDIANB | D113: 327.70 | E113: 327.57 | F113: 323.88 | G113: 320.07 | H113: 316.38 | I113: 331.38 | J113: 335.07 | K113: 338.88 | L113: 331.25 | M113: 323.75 | N113: 2686000 | O113: -25.96%
A114: 105 | B114: Others | C114: INDIGO | D114: 1207.10 | E114: 1214.55 | F114: 1186.55 | G114: 1166.00 | H114: 1138.00 | I114: 1235.10 | J114: 1263.10 | K114: 1283.65 | L114: 1242.55 | M114: 1194 | N114: 3946200 | O114: -10.16%
A115: 106 | B115: Banking | C115: INDUSINDBK | D115: 1915.75 | E115: 1899.38 | F115: 1866.42 | G115: 1817.08 | H115: 1784.12 | I115: 1948.72 | J115: 1981.68 | K115: 2031.02 | L115: 1932.35 | M115: 1850.05 | N115: 7481700 | O115: -4.89%
A116: 107 | B116: Technology | C116: INFIBEAM | D116: 165.10 | E116: 166.98 | F116: 162.62 | G116: 160.13 | H116: 155.77 | I116: 169.47 | J116: 173.83 | K116: 176.32 | L116: 171.35 | M116: 164.5 | N116: 33896000 | O116: -5.87%
A117: 108 | B117: Telecom | C117: INFRATEL | D117: 298.10 | E117: 297.27 | F117: 293.73 | G117: 289.37 | H117: 285.83 | I117: 301.63 | J117: 305.17 | K117: 309.53 | L117: 300.8 | M117: 292.9 | N117: 6160800 | O117: -26.79%
A118: 109 | B118: Technology | C118: INFY | D118: 1207.60 | E118: 1202.33 | F118: 1189.67 | G118: 1171.73 | H118: 1159.07 | I118: 1220.27 | J118: 1232.93 | K118: 1250.87 | L118: 1215 | M118: 1184.4 | N118: 31402800 | O118: -15.51%
A119: 110 | B119: Oil_Gas | C119: IOC | D119: 173.00 | E119: 171.83 | F119: 169.87 | G119: 166.73 | H119: 164.77 | I119: 174.97 | J119: 176.93 | K119: 180.07 | L119: 173.8 | M119: 168.7 | N119: 31692000 | O119: -21.79%
A120: 111 | B120: Infrastructure | C120: IRB | D120: 232.20 | E120: 234.87 | F120: 228.68 | G120: 225.17 | H120: 218.98 | I120: 238.38 | J120: 244.57 | K120: 248.08 | L120: 241.05 | M120: 231.35 | N120: 18672500 | O120: -6.09%
A121: 112 | B121: FMCG | C121: ITC | D121: 272.60 | E121: 272.37 | F121: 270.88 | G121: 269.17 | H121: 267.68 | I121: 274.08 | J121: 275.57 | K121: 277.28 | L121: 273.85 | M121: 270.65 | N121: 78093600 | O121: -12.01%
A122: 113 | B122: Others | C122: JETAIRWAYS | D122: 415.55 | E122: 418.07 | F122: 404.53 | G122: 393.52 | H122: 379.98 | I122: 429.08 | J122: 442.62 | K122: 453.63 | L122: 431.6 | M122: 407.05 | N122: 6267600 | O122: -0.11%
A123: 114 | B123: Metals | C123: JINDALSTEL | D123: 230.45 | E123: 232.72 | F123: 227.43 | G123: 224.42 | H123: 219.13 | I123: 235.73 | J123: 241.02 | K123: 244.03 | L123: 238 | M123: 229.7 | N123: 29769750 | O123: -8.91%
A124: 115 | B124: Others | C124: JISLJALEQS | D124: 104.30 | E124: 104.07 | F124: 102.08 | G124: 99.87 | H124: 97.88 | I124: 106.28 | J124: 108.27 | K124: 110.48 | L124: 106.05 | M124: 101.85 | N124: 36783000 | O124: -5.81%
A125: 116 | B125: Realty | C125: JPASSOCIAT | D125: 15.30 | E125: 15.50 | F125: 14.90 | G125: 14.50 | H125: 13.90 | I125: 15.90 | J125: 16.50 | K125: 16.90 | L125: 16.1 | M125: 15.1 | N125: 176358000 | O125: -11.50%
A126: 117 | B126: Metals | C126: JSWSTEEL | D126: 333.90 | E126: 334.35 | F126: 330.05 | G126: 326.20 | H126: 321.90 | I126: 338.20 | J126: 342.50 | K126: 346.35 | L126: 338.65 | M126: 330.5 | N126: 63357000 | O126: -3.20%
A127: 118 | B127: Others | C127: JUBLFOOD | D127: 2521.25 | E127: 2531.88 | F127: 2501.92 | G127: 2482.58 | H127: 2452.62 | I127: 2551.22 | J127: 2581.18 | K127: 2600.52 | L127: 2561.85 | M127: 2512.55 | N127: 2495500 | O127: -7.51%
A128: 119 | B128: Others | C128: JUSTDIAL | D128: 582.20 | E128: 583.77 | F128: 569.58 | G128: 556.97 | H128: 542.78 | I128: 596.38 | J128: 610.57 | K128: 623.18 | L128: 597.95 | M128: 571.15 | N128: 2002000 | O128: -42.73%
A129: 120 | B129: Others | C129: KAJARIACER | D129: 554.00 | E129: 559.58 | F129: 544.17 | G129: 534.33 | H129: 518.92 | I129: 569.42 | J129: 584.83 | K129: 594.67 | L129: 575 | M129: 549.75 | N129: 1484600 | O129: -8.55%
A130: 121 | B130: Banking | C130: KOTAKBANK | D130: 1319.60 | E130: 1317.90 | F130: 1306.15 | G130: 1292.70 | H130: 1280.95 | I130: 1331.35 | J130: 1343.10 | K130: 1356.55 | L130: 1329.65 | M130: 1304.45 | N130: 15765600 | O130: -16.19%
A131: 122 | B131: Technology | C131: KPIT | D131: 279.35 | E131: 278.00 | F131: 275.45 | G131: 271.55 | H131: 269.00 | I131: 281.90 | J131: 284.45 | K131: 288.35 | L131: 280.55 | M131: 274.1 | N131: 7726500 | O131: -17.89%
A132: 123 | B132: Others | C132: KSCL | D132: 538.40 | E132: 538.37 | F132: 531.73 | G132: 525.07 | H132: 518.43 | I132: 545.03 | J132: 551.67 | K132: 558.33 | L132: 545 | M132: 531.7 | N132: 2086500 | O132: -15.18%
A133: 124 | B133: Banking | C133: KTKBANK | D133: 120.70 | E133: 121.33 | F133: 119.72 | G133: 118.73 | H133: 117.12 | I133: 122.32 | J133: 123.93 | K133: 124.92 | L133: 122.95 | M133: 120.35 | N133: 21303200 | O133: -14.48%
A134: 125 | B134: Finance | C134: L&TFH | D134: 170.70 | E134: 171.98 | F134: 168.77 | G134: 166.83 | H134: 163.62 | I134: 173.92 | J134: 177.13 | K134: 179.07 | L134: 175.2 | M134: 170.05 | N134: 28219500 | O134: -8.88%
A135: 126 | B135: Finance | C135: LICHSGFIN | D135: 477.60 | E135: 478.40 | F135: 475.00 | G135: 472.40 | H135: 469.00 | I135: 481.00 | J135: 484.40 | K135: 487.00 | L135: 481.8 | M135: 475.8 | N135: 13757700 | O135: -10.01%
A136: 127 | B136: Capital_Goods | C136: LT | D136: 1366.50 | E136: 1370.05 | F136: 1358.10 | G136: 1349.70 | H136: 1337.75 | I136: 1378.45 | J136: 1390.40 | K136: 1398.80 | L136: 1382 | M136: 1361.65 | N136: 12698250 | O136: -12.54%
A137: 128 | B137: Pharma | C137: LUPIN | D137: 772.40 | E137: 776.33 | F137: 765.57 | G137: 758.73 | H137: 747.97 | I137: 783.17 | J137: 793.93 | K137: 800.77 | L137: 787.1 | M137: 769.5 | N137: 12993000 | O137: -7.95%
A138: 129 | B138: Automobile | C138: M&M | D138: 919.10 | E138: 912.05 | F138: 902.60 | G138: 886.10 | H138: 876.65 | I138: 928.55 | J138: 938.00 | K138: 954.50 | L138: 921.5 | M138: 895.55 | N138: 15292000 | O138: -17.31%
A139: 130 | B139: Finance | C139: M&MFIN | D139: 484.50 | E139: 484.43 | F139: 480.07 | G139: 475.63 | H139: 471.27 | I139: 488.87 | J139: 493.23 | K139: 497.67 | L139: 488.8 | M139: 480 | N139: 8673750 | O139: -4.76%
A140: 131 | B140: Others | C140: MANAPPURAM | D140: 108.35 | E140: 108.75 | F140: 107.35 | G140: 106.35 | H140: 104.95 | I140: 109.75 | J140: 111.15 | K140: 112.15 | L140: 110.15 | M140: 107.75 | N140: 18420000 | O140: -11.71%
A141: 132 | B141: FMCG | C141: MARICO | D141: 323.85 | E141: 322.15 | F141: 318.95 | G141: 314.05 | H141: 310.85 | I141: 327.05 | J141: 330.25 | K141: 335.15 | L141: 325.35 | M141: 317.25 | N141: 4841200 | O141: -13.80%
A142: 133 | B142: Automobile | C142: MARUTI | D142: 8585.35 | E142: 8608.12 | F142: 8541.23 | G142: 8497.12 | H142: 8430.23 | I142: 8652.23 | J142: 8719.12 | K142: 8763.23 | L142: 8675 | M142: 8564 | N142: 2644875 | O142: -6.50%
A143: 134 | B143: FMCG | C143: MCDOWELL-N | D143: 3364.75 | E143: 3386.10 | F143: 3335.20 | G143: 3305.65 | H143: 3254.75 | I143: 3415.65 | J143: 3466.55 | K143: 3496.10 | L143: 3437 | M143: 3356.55 | N143: 2435750 | O143: -5.40%
A144: 135 | B144: Others | C144: MCX | D144: 862.80 | E144: 850.25 | F144: 832.60 | G144: 802.40 | H144: 784.75 | I144: 880.45 | J144: 898.10 | K144: 928.30 | L144: 867.9 | M144: 820.05 | N144: 3254300 | O144: -8.66%
A145: 136 | B145: Finance | C145: MFSL | D145: 493.35 | E145: 490.43 | F145: 484.67 | G145: 475.98 | H145: 470.22 | I145: 499.12 | J145: 504.88 | K145: 513.57 | L145: 496.2 | M145: 481.75 | N145: 2838800 | O145: -5.98%
A146: 137 | B146: Others | C146: MGL | D146: 820.75 | E146: 827.73 | F146: 809.57 | G146: 798.38 | H146: 780.22 | I146: 838.92 | J146: 857.08 | K146: 868.27 | L146: 845.9 | M146: 816.55 | N146: 2055000 | O146: -11.02%
A147: 138 | B147: Technology | C147: MINDTREE | D147: 1014.45 | E147: 1017.68 | F147: 1006.97 | G147: 999.48 | H147: 988.77 | I147: 1025.17 | J147: 1035.88 | K147: 1043.37 | L147: 1028.4 | M147: 1010.2 | N147: 2992800 | O147: -22.28%
A148: 139 | B148: Automobile | C148: MOTHERSUMI | D148: 312.10 | E148: 311.90 | F148: 307.30 | G148: 302.50 | H148: 297.90 | I148: 316.70 | J148: 321.30 | K148: 326.10 | L148: 316.5 | M148: 307.1 | N148: 13025600 | O148: -6.47%
A149: 140 | B149: Automobile | C149: MRF | D149: 76094.45 | E149: 76507.92 | F149: 75417.58 | G149: 74740.72 | H149: 73650.38 | I149: 77184.78 | J149: 78275.12 | K149: 78951.98 | L149: 77598.25 | M149: 75831.05 | N149: 27600 | O149: -10.07%
A150: 141 | B150: Others | C150: MRPL | D150: 93.00 | E150: 93.80 | F150: 91.90 | G150: 90.80 | H150: 88.90 | I150: 94.90 | J150: 96.80 | K150: 97.90 | L150: 95.7 | M150: 92.7 | N150: 5382000 | O150: -12.95%
A151: 142 | B151: Finance | C151: MUTHOOTFIN | D151: 392.05 | E151: 394.77 | F151: 387.58 | G151: 383.12 | H151: 375.93 | I151: 399.23 | J151: 406.42 | K151: 410.88 | L151: 401.95 | M151: 390.3 | N151: 2067000 | O151: -15.36%
A152: 143 | B152: Others | C152: NATIONALUM | D152: 70.70 | E152: 71.08 | F152: 69.97 | G152: 69.23 | H152: 68.12 | I152: 71.82 | J152: 72.93 | K152: 73.67 | L152: 72.2 | M152: 70.35 | N152: 38856000 | O152: -28.57%
A153: 144 | B153: Others | C153: NBCC | D153: 92.35 | E153: 93.00 | F153: 90.80 | G153: 89.25 | H153: 87.05 | I153: 94.55 | J153: 96.75 | K153: 98.30 | L153: 95.2 | M153: 91.45 | N153: 18234000 | O153: -13.27%
A154: 145 | B154: Infrastructure | C154: NCC | D154: 121.05 | E154: 121.10 | F154: 119.30 | G154: 117.55 | H154: 115.75 | I154: 122.85 | J154: 124.65 | K154: 126.40 | L154: 122.9 | M154: 119.35 | N154: 34832000 | O154: -10.58%
A155: 146 | B155: Others | C155: NESTLEIND | D155: 9709.20 | E155: 9714.95 | F155: 9605.00 | G155: 9500.80 | H155: 9390.85 | I155: 9819.15 | J155: 9929.10 | K155: 10033.30 | L155: 9824.9 | M155: 9610.75 | N155: 267600 | O155: -9.90%
A156: 147 | B156: Power | C156: NHPC | D156: 26.70 | E156: 26.72 | F156: 26.53 | G156: 26.37 | H156: 26.18 | I156: 26.88 | J156: 27.07 | K156: 27.23 | L156: 26.9 | M156: 26.55 | N156: 27432000 | O156: -16.58%
A157: 148 | B157: Technology | C157: NIITTECH | D157: 1124.80 | E157: 1115.55 | F157: 1102.30 | G157: 1079.80 | H157: 1066.55 | I157: 1138.05 | J157: 1151.30 | K157: 1173.80 | L157: 1128.8 | M157: 1093.05 | N157: 1236000 | O157: -36.88%
A158: 149 | B158: Metals | C158: NMDC | D158: 118.40 | E158: 119.30 | F158: 116.90 | G158: 115.40 | H158: 113.00 | I158: 120.80 | J158: 123.20 | K158: 124.70 | L158: 121.7 | M158: 117.8 | N158: 25884000 | O158: -6.20%
A159: 150 | B159: Power | C159: NTPC | D159: 167.20 | E159: 166.63 | F159: 165.57 | G159: 163.93 | H159: 162.87 | I159: 168.27 | J159: 169.33 | K159: 170.97 | L159: 167.7 | M159: 165 | N159: 42892000 | O159: -12.59%
A160: 151 | B160: Technology | C160: OFSS | D160: 3900.25 | E160: 3858.62 | F160: 3742.88 | G160: 3585.52 | H160: 3469.78 | I160: 4015.98 | J160: 4131.72 | K160: 4289.08 | L160: 3974.35 | M160: 3701.25 | N160: 72750 | O160: -49.32%
A161: 152 | B161: Oil_Gas | C161: OIL | D161: 217.15 | E161: 217.47 | F161: 213.53 | G161: 209.92 | H161: 205.98 | I161: 221.08 | J161: 225.02 | K161: 228.63 | L161: 221.4 | M161: 213.85 | N161: 2443881 | O161: -28.74%
A162: 153 | B162: Oil_Gas | C162: ONGC | D162: 176.45 | E162: 177.23 | F162: 174.07 | G162: 171.68 | H162: 168.52 | I162: 179.62 | J162: 182.78 | K162: 185.17 | L162: 180.4 | M162: 174.85 | N162: 45510000 | O162: -3.35%
A163: 154 | B163: Banking | C163: ORIENTBANK | D163: 81.10 | E163: 81.05 | F163: 79.15 | G163: 77.20 | H163: 75.30 | I163: 83.00 | J163: 84.90 | K163: 86.85 | L163: 82.95 | M163: 79.1 | N163: 13572000 | O163: -11.85%
A164: 155 | B164: Textile | C164: PAGEIND | D164: 25353.95 | E164: 25110.02 | F164: 24745.03 | G164: 24136.12 | H164: 23771.13 | I164: 25718.93 | J164: 26083.92 | K164: 26692.83 | L164: 25475 | M164: 24501.1 | N164: 53300 | O164: -20.39%
A165: 156 | B165: Others | C165: PCJEWELLER | D165: 166.80 | E165: 171.12 | F165: 160.98 | G165: 155.17 | H165: 145.03 | I165: 176.93 | J165: 187.07 | K165: 192.88 | L165: 181.25 | M165: 165.3 | N165: 6573000 | O165: -33.06%
A166: 157 | B166: Pharma | C166: PEL | D166: 2388.70 | E166: 2384.28 | F166: 2362.02 | G166: 2335.33 | H166: 2313.07 | I166: 2410.97 | J166: 2433.23 | K166: 2459.92 | L166: 2406.55 | M166: 2357.6 | N166: 2204298 | O166: -6.22%
A167: 158 | B167: Oil_Gas | C167: PETRONET | D167: 220.10 | E167: 219.90 | F167: 218.40 | G167: 216.70 | H167: 215.20 | I167: 221.60 | J167: 223.10 | K167: 224.80 | L167: 221.4 | M167: 218.2 | N167: 17322000 | O167: -21.39%
A168: 159 | B168: Finance | C168: PFC | D168: 81.20 | E168: 80.72 | F168: 79.48 | G168: 77.77 | H168: 76.53 | I168: 82.43 | J168: 83.67 | K168: 85.38 | L168: 81.95 | M168: 79 | N168: 95088000 | O168: -4.78%
A169: 160 | B169: FMCG | C169: PIDILITIND | D169: 1147.60 | E169: 1158.10 | F169: 1128.50 | G169: 1109.40 | H169: 1079.80 | I169: 1177.20 | J169: 1206.80 | K169: 1225.90 | L169: 1187.7 | M169: 1139 | N169: 3127000 | O169: -21.65%
A170: 161 | B170: Banking | C170: PNB | D170: 84.10 | E170: 85.08 | F170: 82.82 | G170: 81.53 | H170: 79.27 | I170: 86.37 | J170: 88.63 | K170: 89.92 | L170: 87.35 | M170: 83.8 | N170: 67032500 | O170: -9.40%
A171: 162 | B171: Power | C171: POWERGRID | D171: 204.10 | E171: 205.58 | F171: 199.67 | G171: 195.23 | H171: 189.32 | I171: 210.02 | J171: 215.93 | K171: 220.37 | L171: 211.5 | M171: 201.15 | N171: 47748000 | O171: -0.02%
A172: 163 | B172: Power | C172: PTC | D172: 85.50 | E172: 86.03 | F172: 84.57 | G172: 83.63 | H172: 82.17 | I172: 86.97 | J172: 88.43 | K172: 89.37 | L172: 87.5 | M172: 85.1 | N172: 21408000 | O172: -13.71%
A173: 164 | B173: Others | C173: PVR | D173: 1332.75 | E173: 1328.48 | F173: 1317.27 | G173: 1301.78 | H173: 1290.57 | I173: 1343.97 | J173: 1355.18 | K173: 1370.67 | L173: 1339.7 | M173: 1313 | N173: 1131200 | O173: -5.76%
A174: 165 | B174: Cement | C174: RAMCOCEM | D174: 774.80 | E174: 776.55 | F174: 768.40 | G174: 762.00 | H174: 753.85 | I174: 782.95 | J174: 791.10 | K174: 797.50 | L174: 784.7 | M174: 770.15 | N174: 842400 | O174: -25.27%
A175: 166 | B175: Others | C175: RAYMOND | D175: 987.35 | E175: 1000.45 | F175: 968.90 | G175: 950.45 | H175: 918.90 | I175: 1018.90 | J175: 1050.45 | K175: 1068.90 | L175: 1032 | M175: 982 | N175: 4854400 | O175: -2.43%
A176: 167 | B176: Banking | C176: RBLBANK | D176: 514.00 | E176: 515.53 | F176: 509.07 | G176: 504.13 | H176: 497.67 | I176: 520.47 | J176: 526.93 | K176: 531.87 | L176: 522 | M176: 510.6 | N176: 3839400 | O176: -4.33%
A177: 168 | B177: Telecom | C177: RCOM | D177: 18.75 | E177: 19.15 | F177: 17.30 | G177: 15.85 | H177: 14.00 | I177: 20.60 | J177: 22.45 | K177: 23.90 | L177: 21 | M177: 17.7 | N177: 72604000 | O177: -29.21%
A178: 169 | B178: Capital_Goods | C178: RNAVAL | D178: 16.05 | E178: 16.32 | F178: 14.73 | G178: 13.42 | H178: 11.83 | I178: 17.63 | J178: 19.22 | K178: 20.53 | L178: 17.9 | M178: 15 | N178: 12456000 | O178: -19.55%
A179: 170 | B179: Power | C179: RECLTD | D179: 118.80 | E179: 119.18 | F179: 117.97 | G179: 117.13 | H179: 115.92 | I179: 120.02 | J179: 121.23 | K179: 122.07 | L179: 120.4 | M179: 118.35 | N179: 34512000 | O179: -56.92%
A180: 171 | B180: Finance | C180: RELCAPITAL | D180: 420.30 | E180: 429.02 | F180: 406.48 | G180: 392.67 | H180: 370.13 | I180: 442.83 | J180: 465.37 | K180: 479.18 | L180: 451.55 | M180: 415.2 | N180: 9438000 | O180: -8.33%
A181: 172 | B181: Oil_Gas | C181: RELIANCE | D181: 922.45 | E181: 920.85 | F181: 917.90 | G181: 913.35 | H181: 910.40 | I181: 925.40 | J181: 928.35 | K181: 932.90 | L181: 923.8 | M181: 916.3 | N181: 39859000 | O181: -9.11%
A182: 173 | B182: Power | C182: RELINFRA | D182: 436.10 | E182: 436.72 | F182: 424.73 | G182: 413.37 | H182: 401.38 | I182: 448.08 | J182: 460.07 | K182: 471.43 | L182: 448.7 | M182: 425.35 | N182: 6068400 | O182: -21.55%
A183: 174 | B183: Others | C183: REPCOHOME | D183: 592.10 | E183: 594.52 | F183: 585.93 | G183: 579.77 | H183: 571.18 | I183: 600.68 | J183: 609.27 | K183: 615.43 | L183: 603.1 | M183: 588.35 | N183: 551700 | O183: -24.58%
A184: 175 | B184: Power | C184: RPOWER | D184: 36.45 | E184: 36.63 | F184: 35.42 | G184: 34.38 | H184: 33.17 | I184: 37.67 | J184: 38.88 | K184: 39.92 | L184: 37.85 | M184: 35.6 | N184: 49595000 | O184: -20.07%
A185: 176 | B185: Metals | C185: SAIL | D185: 76.45 | E185: 77.68 | F185: 74.97 | G185: 73.48 | H185: 70.77 | I185: 79.17 | J185: 81.88 | K185: 83.37 | L185: 80.4 | M185: 76.2 | N185: 90984000 | O185: -9.49%
A186: 177 | B186: Banking | C186: SBIN | D186: 269.05 | E186: 267.72 | F186: 265.48 | G186: 261.92 | H186: 259.68 | I186: 271.28 | J186: 273.52 | K186: 277.08 | L186: 269.95 | M186: 264.15 | N186: 71943000 | O186: -15.97%
A187: 178 | B187: Cement | C187: SHREECEM | D187: 16920.10 | E187: 16837.40 | F187: 16687.70 | G187: 16455.30 | H187: 16305.60 | I187: 17069.80 | J187: 17219.50 | K187: 17451.90 | L187: 16987.1 | M187: 16605 | N187: 58800 | O187: -6.29%
A188: 179 | B188: Capital_Goods | C188: SIEMENS | D188: 1051.20 | E188: 1043.57 | F188: 1033.13 | G188: 1015.07 | H188: 1004.63 | I188: 1061.63 | J188: 1072.07 | K188: 1090.13 | L188: 1054 | M188: 1025.5 | N188: 1166500 | O188: -12.65%
A189: 180 | B189: Banking | C189: SOUTHBANK | D189: 24.20 | E189: 24.32 | F189: 23.88 | G189: 23.57 | H189: 23.13 | I189: 24.63 | J189: 25.07 | K189: 25.38 | L189: 24.75 | M189: 24 | N189: 154901034 | O189: -25.41%
A190: 181 | B190: Others | C190: SREINFRA | D190: 77.55 | E190: 77.62 | F190: 76.18 | G190: 74.82 | H190: 73.38 | I190: 78.98 | J190: 80.42 | K190: 81.78 | L190: 79.05 | M190: 76.25 | N190: 16723000 | O190: -7.52%
A191: 182 | B191: Textile | C191: SRF | D191: 1937.75 | E191: 1919.62 | F191: 1894.83 | G191: 1851.92 | H191: 1827.13 | I191: 1962.53 | J191: 1987.32 | K191: 2030.23 | L191: 1944.4 | M191: 1876.7 | N191: 418000 | O191: -36.04%
A192: 183 | B192: Finance | C192: SRTRANSFIN | D192: 1464.70 | E192: 1479.45 | F192: 1443.85 | G192: 1423.00 | H192: 1387.40 | I192: 1500.30 | J192: 1535.90 | K192: 1556.75 | L192: 1515.05 | M192: 1458.6 | N192: 3445200 | O192: -0.05%
A193: 184 | B193: Pharma | C193: STAR | D193: 404.10 | E193: 407.70 | F193: 396.40 | G193: 388.70 | H193: 377.40 | I193: 415.40 | J193: 426.70 | K193: 434.40 | L193: 419 | M193: 400 | N193: 2499600 | O193: -6.26%
A194: 185 | B194: Pharma | C194: SUNPHARMA | D194: 483.65 | E194: 487.13 | F194: 476.62 | G194: 469.58 | H194: 459.07 | I194: 494.17 | J194: 504.68 | K194: 511.72 | L194: 497.65 | M194: 480.1 | N194: 57453000 | O194: -3.14%
A195: 186 | B195: Media | C195: SUNTV | D195: 924.00 | E195: 929.68 | F195: 914.72 | G195: 905.43 | H195: 890.47 | I195: 938.97 | J195: 953.93 | K195: 963.22 | L195: 944.65 | M195: 920.4 | N195: 5486000 | O195: -7.60%
A196: 187 | B196: Power | C196: SUZLON | D196: 8.85 | E196: 8.97 | F196: 8.53 | G196: 8.22 | H196: 7.78 | I196: 9.28 | J196: 9.72 | K196: 10.03 | L196: 9.4 | M196: 8.65 | N196: 290410000 | O196: -11.79%
A197: 188 | B197: Banking | C197: SYNDIBANK | D197: 49.45 | E197: 49.28 | F197: 48.42 | G197: 47.38 | H197: 46.52 | I197: 50.32 | J197: 51.18 | K197: 52.22 | L197: 50.15 | M197: 48.25 | N197: 25371000 | O197: -15.32%
A198: 189 | B198: Fertilisers | C198: TATACHEM | D198: 744.20 | E198: 743.52 | F198: 736.68 | G198: 729.17 | H198: 722.33 | I198: 751.03 | J198: 757.87 | K198: 765.38 | L198: 750.35 | M198: 736 | N198: 4299000 | O198: -12.14%
A199: 190 | B199: Telecom | C199: TATACOMM | D199: 620.10 | E199: 626.65 | F199: 612.00 | G199: 603.90 | H199: 589.25 | I199: 634.75 | J199: 649.40 | K199: 657.50 | L199: 641.3 | M199: 618.55 | N199: 3904000 | O199: -32.85%
A200: 191 | B200: Technology | C200: TATAELXSI | D200: 1241.55 | E200: 1243.85 | F200: 1227.70 | G200: 1213.85 | H200: 1197.70 | I200: 1257.70 | J200: 1273.85 | K200: 1287.70 | L200: 1260 | M200: 1230 | N200: 1684800 | O200: -24.76%
A201: 192 | B201: FMCG | C201: TATAGLOBAL | D201: 265.80 | E201: 263.87 | F201: 261.03 | G201: 256.27 | H201: 253.43 | I201: 268.63 | J201: 271.47 | K201: 276.23 | L201: 266.7 | M201: 259.1 | N201: 16256250 | O201: -18.51%
A202: 193 | B202: Automobile | C202: TATAMOTORS | D202: 284.40 | E202: 286.55 | F202: 281.35 | G202: 278.30 | H202: 273.10 | I202: 289.60 | J202: 294.80 | K202: 297.85 | L202: 291.75 | M202: 283.5 | N202: 89673000 | O202: -7.11%
A203: 194 | B203: Automobile | C203: TATAMTRDVR | D203: 170.00 | E203: 169.62 | F203: 167.43 | G203: 164.87 | H203: 162.68 | I203: 172.18 | J203: 174.37 | K203: 176.93 | L203: 171.8 | M203: 167.05 | N203: 27465700 | O203: -17.93%
A204: 195 | B204: Power | C204: TATAPOWER | D204: 81.45 | E204: 81.80 | F204: 80.20 | G204: 78.95 | H204: 77.35 | I204: 83.05 | J204: 84.65 | K204: 85.90 | L204: 83.4 | M204: 80.55 | N204: 40275000 | O204: -17.83%
A205: 196 | B205: Metals | C205: TATASTEEL | D205: 579.30 | E205: 581.58 | F205: 573.42 | G205: 567.53 | H205: 559.37 | I205: 587.47 | J205: 595.63 | K205: 601.52 | L205: 589.75 | M205: 575.7 | N205: 27363190 | O205: -2.47%
A206: 197 | B206: Technology | C206: TCS | D206: 1752.25 | E206: 1748.33 | F206: 1730.07 | G206: 1707.88 | H206: 1689.62 | I206: 1770.52 | J206: 1788.78 | K206: 1810.97 | L206: 1766.6 | M206: 1726.15 | N206: 11133000 | O206: 58.53%
... 35 more rows

Sheet Cash Intra
M5: Back to Main Page
A6: FOR INTRA DAY TRADING | K6: =Main!B10 -> 2018-06-01
A8: Sr.no | B8: Scrip | C8: CLOSE RATE | D8: Pivot Point | E8: Supports | H8: Resistances
C9: Point | E9: S1 | F9: S2 | G9: S3 | H9: R1 | I9: R2 | J9: R3 | K9: HIGH | L9: LOW | M9: Total Trade Quanity in Lakhs
A10: 1 | B10: Nifty 50 | C10: 10736.15 | D10: 10706.78 | E10: 10649.77 | F10: 10563.38 | G10: 10506.37 | H10: 10793.17 | I10: 10850.18 | J10: 10936.57 | K10: 10763.8 | L10: 10620.4
A11: 2 | B11: Nifty Bank | C11: 26956.2 | D11: 26825.10 | E11: 26485.65 | F11: 26015.10 | G11: 25675.65 | H11: 27295.65 | I11: 27635.10 | J11: 28105.65 | K11: 27164.55 | L11: 26354.55
A12: 3 | B12: Nifty CPSE | C12: 2426.4 | D12: 2420.67 | E12: 2405.03 | F12: 2383.67 | G12: 2368.03 | H12: 2442.03 | I12: 2457.67 | J12: 2479.03 | K12: 2436.3 | L12: 2399.3
A13: 4 | B13: Nifty Infra | C13: 3336.05 | D13: 3330.52 | E13: 3305.13 | F13: 3274.22 | G13: 3248.83 | H13: 3361.43 | I13: 3386.82 | J13: 3417.73 | K13: 3355.9 | L13: 3299.6
A14: 5 | B14: Nifty IT | C14: 13666 | D14: 13607.33 | E14: 13519.37 | F14: 13372.73 | G14: 13284.77 | H14: 13753.97 | I14: 13841.93 | J14: 13988.57 | K14: 13695.3 | L14: 13460.7
A15: 6 | B15: Nifty PSE | C15: 3851.55 | D15: 3841.28 | E15: 3818.72 | F15: 3785.88 | G15: 3763.32 | H15: 3874.12 | I15: 3896.68 | J15: 3929.52 | K15: 3863.85 | L15: 3808.45
A16: 7 | B16: Nifty Midcap 50 | C16: 5013.05 | D16: 5027.50 | E16: 4990.40 | F16: 4967.75 | G16: 4930.65 | H16: 5050.15 | I16: 5087.25 | J16: 5109.90 | K16: 5064.6 | L16: 5004.85
A17: 8 | B17: ABB | C17: 1231.85 | D17: 1235.60 | E17: 1216.25 | F17: 1200.65 | G17: 1181.30 | H17: 1251.20 | I17: 1270.55 | J17: 1286.15 | K17: 1254.95 | L17: 1220 | M17: 0.41589
A18: 9 | B18: ACC | C18: 1354.6 | D18: 1340.40 | E18: 1316.80 | F18: 1279.00 | G18: 1255.40 | H18: 1378.20 | I18: 1401.80 | J18: 1439.60 | K18: 1364 | L18: 1302.6 | M18: 38.73328
A19: 10 | B19: AIAENG | C19: 1542.25 | D19: 1559.25 | E19: 1519.50 | F19: 1496.75 | G19: 1457.00 | H19: 1582.00 | I19: 1621.75 | J19: 1644.50 | K19: 1599 | L19: 1536.5 | M19: 0.3391
A20: 11 | B20: AUBANK | C20: 697.3 | D20: 696.37 | E20: 684.93 | F20: 672.57 | G20: 661.13 | H20: 708.73 | I20: 720.17 | J20: 732.53 | K20: 707.8 | L20: 684 | M20: 1.38884
A21: 12 | B21: ADANIENT | C21: 121 | D21: 121.83 | E21: 119.42 | F21: 117.83 | G21: 115.42 | H21: 123.42 | I21: 125.83 | J21: 127.42 | K21: 124.25 | L21: 120.25 | M21: 45.84277
A22: 13 | B22: ADANIPORTS | C22: 392.15 | D22: 386.33 | E22: 375.07 | F22: 357.98 | G22: 346.72 | H22: 403.42 | I22: 414.68 | J22: 431.77 | K22: 397.6 | L22: 369.25 | M22: 111.33305
A23: 14 | B23: ADANIPOWER | C23: 20.15 | D23: 20.18 | E23: 19.87 | F23: 19.58 | G23: 19.27 | H23: 20.47 | I23: 20.78 | J23: 21.07 | K23: 20.5 | L23: 19.9 | M23: 133.37604
A24: 15 | B24: ABFRL | C24: 148.3 | D24: 147.87 | E24: 146.73 | F24: 145.17 | G24: 144.03 | H24: 149.43 | I24: 150.57 | J24: 152.13 | K24: 149 | L24: 146.3 | M24: 2.6612
A25: 16 | B25: AJANTPHARM | C25: 962.35 | D25: 968.42 | E25: 946.93 | F25: 931.52 | G25: 910.03 | H25: 983.83 | I25: 1005.32 | J25: 1020.73 | K25: 989.9 | L25: 953 | M25: 4.42907
A26: 17 | B26: ALKEM | C26: 1916.85 | D26: 1934.97 | E26: 1884.93 | F26: 1853.02 | G26: 1802.98 | H26: 1966.88 | I26: 2016.92 | J26: 2048.83 | K26: 1985 | L26: 1903.05 | M26: 0.32983
A27: 18 | B27: AMARAJABAT | C27: 798.45 | D27: 793.33 | E27: 782.72 | F27: 766.98 | G27: 756.37 | H27: 809.07 | I27: 819.68 | J27: 835.42 | K27: 803.95 | L27: 777.6 | M27: 4.9607
A28: 19 | B28: AMBUJACEM | C28: 205.4 | D28: 206.33 | E28: 203.67 | F28: 201.93 | G28: 199.27 | H28: 208.07 | I28: 210.73 | J28: 212.47 | K28: 209 | L28: 204.6 | M28: 65.71778
A29: 20 | B29: APOLLOHOSP | C29: 950.35 | D29: 965.98 | E29: 928.17 | F29: 905.98 | G29: 868.17 | H29: 988.17 | I29: 1025.98 | J29: 1048.17 | K29: 1003.8 | L29: 943.8 | M29: 8.83312
A30: 21 | B30: APOLLOTYRE | C30: 269.3 | D30: 271.28 | E30: 265.02 | F30: 260.73 | G30: 254.47 | H30: 275.57 | I30: 281.83 | J30: 286.12 | K30: 277.55 | L30: 267 | M30: 20.39549
A31: 22 | B31: ARVIND | C31: 388.15 | D31: 388.30 | E31: 383.30 | F31: 378.45 | G31: 373.45 | H31: 393.15 | I31: 398.15 | J31: 403.00 | K31: 393.3 | L31: 383.45 | M31: 11.84705
A32: 23 | B32: ASHOKLEY | C32: 148.05 | D32: 148.93 | E32: 146.62 | F32: 145.18 | G32: 142.87 | H32: 150.37 | I32: 152.68 | J32: 154.12 | K32: 151.25 | L32: 147.5 | M32: 157.90863
A33: 24 | B33: ASIANPAINT | C33: 1304.65 | D33: 1301.12 | E33: 1290.53 | F33: 1276.42 | G33: 1265.83 | H33: 1315.23 | I33: 1325.82 | J33: 1339.93 | K33: 1311.7 | L33: 1287 | M33: 14.00776
A34: 25 | B34: AUROPHARMA | C34: 556.3 | D34: 559.42 | E34: 548.83 | F34: 541.37 | G34: 530.78 | H34: 566.88 | I34: 577.47 | J34: 584.93 | K34: 570 | L34: 551.95 | M34: 42.80622
A35: 26 | B35: DMART | C35: 1572.15 | D35: 1563.22 | E35: 1515.43 | F35: 1458.72 | G35: 1410.93 | H35: 1619.93 | I35: 1667.72 | J35: 1724.43 | K35: 1611 | L35: 1506.5 | M35: 149.93077
A36: 27 | B36: AXISBANK | C36: 545.9 | D36: 543.32 | E36: 534.83 | F36: 523.77 | G36: 515.28 | H36: 554.38 | I36: 562.87 | J36: 573.93 | K36: 551.8 | L36: 532.25 | M36: 156.52651
A37: 28 | B37: BAJAJ-AUTO | C37: 2750.3 | D37: 2756.45 | E37: 2727.95 | F37: 2705.60 | G37: 2677.10 | H37: 2778.80 | I37: 2807.30 | J37: 2829.65 | K37: 2784.95 | L37: 2734.1 | M37: 4.47005
A38: 29 | B38: BAJFINANCE | C38: 2109.9 | D38: 2118.63 | E38: 2092.27 | F38: 2074.63 | G38: 2048.27 | H38: 2136.27 | I38: 2162.63 | J38: 2180.27 | K38: 2145 | L38: 2101 | M38: 13.23397
A39: 30 | B39: BAJAJFINSV | C39: 6042.25 | D39: 6043.32 | E39: 5929.73 | F39: 5817.22 | G39: 5703.63 | H39: 6155.83 | I39: 6269.42 | J39: 6381.93 | K39: 6156.9 | L39: 5930.8 | M39: 2.64768
A40: 31 | B40: BALKRISIND | C40: 1134.6 | D40: 1137.50 | E40: 1122.10 | F40: 1109.60 | G40: 1094.20 | H40: 1150.00 | I40: 1165.40 | J40: 1177.90 | K40: 1152.9 | L40: 1125 | M40: 3.20097
A41: 32 | B41: BANKBARODA | C41: 136.85 | D41: 137.50 | E41: 135.15 | F41: 133.45 | G41: 131.10 | H41: 139.20 | I41: 141.55 | J41: 143.25 | K41: 139.85 | L41: 135.8 | M41: 131.16608
A42: 33 | B42: BANKINDIA | C42: 98.6 | D42: 99.55 | E42: 97.20 | F42: 95.80 | G42: 93.45 | H42: 100.95 | I42: 103.30 | J42: 104.70 | K42: 101.9 | L42: 98.15 | M42: 72.44763
A43: 34 | B43: BATAINDIA | C43: 779.5 | D43: 784.33 | E43: 768.67 | F43: 757.83 | G43: 742.17 | H43: 795.17 | I43: 810.83 | J43: 821.67 | K43: 800 | L43: 773.5 | M43: 13.2255
A44: 35 | B44: BERGEPAINT | C44: 298.2 | D44: 295.77 | E44: 290.53 | F44: 282.87 | G44: 277.63 | H44: 303.43 | I44: 308.67 | J44: 316.33 | K44: 301 | L44: 288.1 | M44: 27.80225
A45: 36 | B45: BEL | C45: 114.4 | D45: 116.05 | E45: 112.20 | F45: 110.00 | G45: 106.15 | H45: 118.25 | I45: 122.10 | J45: 124.30 | K45: 119.9 | L45: 113.85 | M45: 90.4182
A46: 37 | B46: BHARATFIN | C46: 1168.9 | D46: 1163.20 | E46: 1146.40 | F46: 1123.90 | G46: 1107.10 | H46: 1185.70 | I46: 1202.50 | J46: 1225.00 | K46: 1180 | L46: 1140.7 | M46: 5.80776
A47: 38 | B47: BHARATFORG | C47: 650.7 | D47: 656.33 | E47: 643.12 | F47: 635.53 | G47: 622.32 | H47: 663.92 | I47: 677.13 | J47: 684.72 | K47: 669.55 | L47: 648.75 | M47: 13.74402
A48: 39 | B48: BHEL | C48: 83.65 | D48: 83.65 | E48: 82.35 | F48: 81.05 | G48: 79.75 | H48: 84.95 | I48: 86.25 | J48: 87.55 | K48: 84.95 | L48: 82.35 | M48: 164.9438
A49: 40 | B49: BPCL | C49: 403.95 | D49: 401.53 | E49: 395.37 | F49: 386.78 | G49: 380.62 | H49: 410.12 | I49: 416.28 | J49: 424.87 | K49: 407.7 | L49: 392.95 | M49: 88.07443
A50: 41 | B50: BHARTIARTL | C50: 373.6 | D50: 376.02 | E50: 368.83 | F50: 364.07 | G50: 356.88 | H50: 380.78 | I50: 387.97 | J50: 392.73 | K50: 383.2 | L50: 371.25 | M50: 107.96716
A51: 42 | B51: INFRATEL | C51: 298.65 | D51: 298.67 | E51: 293.33 | F51: 288.02 | G51: 282.68 | H51: 303.98 | I51: 309.32 | J51: 314.63 | K51: 304 | L51: 293.35 | M51: 113.66237
A52: 43 | B52: BIOCON | C52: 665.4 | D52: 668.78 | E52: 658.37 | F52: 651.33 | G52: 640.92 | H52: 675.82 | I52: 686.23 | J52: 693.27 | K52: 679.2 | L52: 661.75 | M52: 51.14062
A53: 44 | B53: BOSCHLTD | C53: 18367.5 | D53: 18399.15 | E53: 18103.35 | F53: 17839.20 | G53: 17543.40 | H53: 18663.30 | I53: 18959.10 | J53: 19223.25 | K53: 18694.95 | L53: 18135 | M53: 0.32745
A54: 45 | B54: BRITANNIA | C54: 5923.95 | D54: 5899.92 | E54: 5784.03 | F54: 5644.12 | G54: 5528.23 | H54: 6039.83 | I54: 6155.72 | J54: 6295.63 | K54: 6015.8 | L54: 5760 | M54: 3.10385
A55: 46 | B55: CRISIL | C55: 1715.05 | D55: 1763.02 | E55: 1654.03 | F55: 1593.02 | G55: 1484.03 | H55: 1824.03 | I55: 1933.02 | J55: 1994.03 | K55: 1872 | L55: 1702 | M55: 1.20546
A56: 47 | B56: CADILAHC | C56: 361.3 | D56: 363.82 | E56: 356.68 | F56: 352.07 | G56: 344.93 | H56: 368.43 | I56: 375.57 | J56: 380.18 | K56: 370.95 | L56: 359.2 | M56: 31.16812
A57: 48 | B57: CANBK | C57: 257.15 | D57: 256.32 | E57: 253.13 | F57: 249.12 | G57: 245.93 | H57: 260.33 | I57: 263.52 | J57: 267.53 | K57: 259.5 | L57: 252.3 | M57: 64.13844
A58: 49 | B58: CASTROLIND | C58: 170.9 | D58: 171.60 | E58: 168.30 | F58: 165.70 | G58: 162.40 | H58: 174.20 | I58: 177.50 | J58: 180.10 | K58: 174.9 | L58: 169 | M58: 14.39862
A59: 50 | B59: CENTRALBK | C59: 73.55 | D59: 73.57 | E59: 72.33 | F59: 71.12 | G59: 69.88 | H59: 74.78 | I59: 76.02 | J59: 77.23 | K59: 74.8 | L59: 72.35 | M59: 7.56991
A60: 51 | B60: CENTURYTEX | C60: 947.15 | D60: 953.50 | E60: 937.00 | F60: 926.85 | G60: 910.35 | H60: 963.65 | I60: 980.15 | J60: 990.30 | K60: 970 | L60: 943.35 | M60: 10.60932
A61: 52 | B61: CHOLAFIN | C61: 1528.7 | D61: 1534.57 | E61: 1514.13 | F61: 1499.57 | G61: 1479.13 | H61: 1549.13 | I61: 1569.57 | J61: 1584.13 | K61: 1555 | L61: 1520 | M61: 2.06706
A62: 53 | B62: CIPLA | C62: 524.8 | D62: 526.50 | E62: 519.35 | F62: 513.90 | G62: 506.75 | H62: 531.95 | I62: 539.10 | J62: 544.55 | K62: 533.65 | L62: 521.05 | M62: 35.39206
A63: 54 | B63: COALINDIA | C63: 296.25 | D63: 296.57 | E63: 289.68 | F63: 283.12 | G63: 276.23 | H63: 303.13 | I63: 310.02 | J63: 316.58 | K63: 303.45 | L63: 290 | M63: 117.97649
A64: 55 | B64: COLPAL | C64: 1259.7 | D64: 1258.82 | E64: 1248.93 | F64: 1238.17 | G64: 1228.28 | H64: 1269.58 | I64: 1279.47 | J64: 1290.23 | K64: 1268.7 | L64: 1248.05 | M64: 8.20342
A65: 56 | B65: CONCOR | C65: 1379.05 | D65: 1375.68 | E65: 1351.37 | F65: 1323.68 | G65: 1299.37 | H65: 1403.37 | I65: 1427.68 | J65: 1455.37 | K65: 1400 | L65: 1348 | M65: 32.16694
A66: 57 | B66: COROMANDEL | C66: 450.95 | D66: 454.92 | E66: 445.43 | F66: 439.92 | G66: 430.43 | H66: 460.43 | I66: 469.92 | J66: 475.43 | K66: 464.4 | L66: 449.4 | M66: 4.53716
A67: 58 | B67: CROMPTON | C67: 226.75 | D67: 225.82 | E67: 223.13 | F67: 219.52 | G67: 216.83 | H67: 229.43 | I67: 232.12 | J67: 235.73 | K67: 228.5 | L67: 222.2 | M67: 11.48961
A68: 59 | B68: CUMMINSIND | C68: 701.35 | D68: 706.22 | E68: 694.18 | F68: 687.02 | G68: 674.98 | H68: 713.38 | I68: 725.42 | J68: 732.58 | K68: 718.25 | L68: 699.05 | M68: 6.16972
A69: 60 | B69: DLF | C69: 209.9 | D69: 209.02 | E69: 206.03 | F69: 202.17 | G69: 199.18 | H69: 212.88 | I69: 215.87 | J69: 219.73 | K69: 212 | L69: 205.15 | M69: 77.97171
A70: 61 | B70: DABUR | C70: 383.3 | D70: 383.68 | E70: 380.37 | F70: 377.43 | G70: 374.12 | H70: 386.62 | I70: 389.93 | J70: 392.87 | K70: 387 | L70: 380.75 | M70: 32.23114
A71: 62 | B71: DALMIABHA | C71: 2726.4 | D71: 2745.60 | E71: 2686.35 | F71: 2646.30 | G71: 2587.05 | H71: 2785.65 | I71: 2844.90 | J71: 2884.95 | K71: 2804.85 | L71: 2705.55 | M71: 1.50351
A72: 63 | B72: DHFL | C72: 613.15 | D72: 621.70 | E72: 601.45 | F72: 589.75 | G72: 569.50 | H72: 633.40 | I72: 653.65 | J72: 665.35 | K72: 641.95 | L72: 610 | M72: 91.1341
A73: 64 | B73: DISHTV | C73: 73 | D73: 73.05 | E73: 71.30 | F73: 69.60 | G73: 67.85 | H73: 74.75 | I73: 76.50 | J73: 78.20 | K73: 74.8 | L73: 71.35 | M73: 135.48547
A74: 65 | B74: DIVISLAB | C74: 1047.45 | D74: 1053.67 | E74: 1038.08 | F74: 1028.72 | G74: 1013.13 | H74: 1063.03 | I74: 1078.62 | J74: 1087.98 | K74: 1069.25 | L74: 1044.3 | M74: 23.0011
A75: 66 | B75: LALPATHLAB | C75: 861.25 | D75: 862.92 | E75: 848.83 | F75: 836.42 | G75: 822.33 | H75: 875.33 | I75: 889.42 | J75: 901.83 | K75: 877 | L75: 850.5 | M75: 4.9895
A76: 67 | B76: DRREDDY | C76: 1936.6 | D76: 1944.78 | E76: 1917.77 | F76: 1898.93 | G76: 1871.92 | H76: 1963.62 | I76: 1990.63 | J76: 2009.47 | K76: 1971.8 | L76: 1925.95 | M76: 18.60178
A77: 68 | B77: EDELWEISS | C77: 326.3 | D77: 327.57 | E77: 320.33 | F77: 314.37 | G77: 307.13 | H77: 333.53 | I77: 340.77 | J77: 346.73 | K77: 334.8 | L77: 321.6 | M77: 18.55528
A78: 69 | B78: EICHERMOT | C78: 30780.65 | D78: 30818.80 | E78: 30138.60 | F78: 29496.55 | G78: 28816.35 | H78: 31460.85 | I78: 32141.05 | J78: 32783.10 | K78: 31499 | L78: 30176.75 | M78: 0.91548
A79: 70 | B79: EMAMILTD | C79: 1046 | D79: 1049.60 | E79: 1037.40 | F79: 1028.80 | G79: 1016.60 | H79: 1058.20 | I79: 1070.40 | J79: 1079.00 | K79: 1061.8 | L79: 1041 | M79: 0.34216
A80: 71 | B80: ENDURANCE | C80: 1309.5 | D80: 1298.20 | E80: 1276.40 | F80: 1243.30 | G80: 1221.50 | H80: 1331.30 | I80: 1353.10 | J80: 1386.20 | K80: 1320 | L80: 1265.1 | M80: 0.43565
A81: 72 | B81: ENGINERSIN | C81: 131.5 | D81: 132.10 | E81: 129.70 | F81: 127.90 | G81: 125.50 | H81: 133.90 | I81: 136.30 | J81: 138.10 | K81: 134.5 | L81: 130.3 | M81: 26.53415
A82: 73 | B82: EXIDEIND | C82: 259.7 | D82: 261.17 | E82: 256.63 | F82: 253.57 | G82: 249.03 | H82: 264.23 | I82: 268.77 | J82: 271.83 | K82: 265.7 | L82: 258.1 | M82: 26.00387
A83: 74 | B83: FEDERALBNK | C83: 84.8 | D83: 85.13 | E83: 83.82 | F83: 82.83 | G83: 81.52 | H83: 86.12 | I83: 87.43 | J83: 88.42 | K83: 86.45 | L83: 84.15 | M83: 98.54325
A84: 75 | B84: GAIL | C84: 350.9 | D84: 349.02 | E84: 344.98 | F84: 339.07 | G84: 335.03 | H84: 354.93 | I84: 358.97 | J84: 364.88 | K84: 353.05 | L84: 343.1 | M84: 111.87995
A85: 76 | B85: GMRINFRA | C85: 18.15 | D85: 18.02 | E85: 17.63 | F85: 17.12 | G85: 16.73 | H85: 18.53 | I85: 18.92 | J85: 19.43 | K85: 18.4 | L85: 17.5 | M85: 678.18479
A86: 77 | B86: GSKCONS | C86: 6576.1 | D86: 6578.85 | E86: 6557.60 | F86: 6539.10 | G86: 6517.85 | H86: 6597.35 | I86: 6618.60 | J86: 6637.10 | K86: 6600.1 | L86: 6560.35 | M86: 0.06638
A87: 78 | B87: GLAXO | C87: 2546.9 | D87: 2523.42 | E87: 2493.53 | F87: 2440.17 | G87: 2410.28 | H87: 2576.78 | I87: 2606.67 | J87: 2660.03 | K87: 2553.3 | L87: 2470.05 | M87: 0.19902
A88: 79 | B88: GLENMARK | C88: 535.95 | D88: 530.90 | E88: 521.55 | F88: 507.15 | G88: 497.80 | H88: 545.30 | I88: 554.65 | J88: 569.05 | K88: 540.25 | L88: 516.5 | M88: 14.66265
A89: 80 | B89: GODREJCP | C89: 1139.15 | D89: 1147.62 | E89: 1126.73 | F89: 1114.32 | G89: 1093.43 | H89: 1160.03 | I89: 1180.92 | J89: 1193.33 | K89: 1168.5 | L89: 1135.2 | M89: 15.1912
A90: 81 | B90: GODREJIND | C90: 596.7 | D90: 598.58 | E90: 577.27 | F90: 557.83 | G90: 536.52 | H90: 618.02 | I90: 639.33 | J90: 658.77 | K90: 619.9 | L90: 579.15 | M90: 9.99744
A91: 82 | B91: GRUH | C91: 709.8 | D91: 715.83 | E91: 693.97 | F91: 678.13 | G91: 656.27 | H91: 731.67 | I91: 753.53 | J91: 769.37 | K91: 737.7 | L91: 700 | M91: 10.39219
A92: 83 | B92: GPPL | C92: 115.45 | D92: 115.62 | E92: 114.23 | F92: 113.02 | G92: 111.63 | H92: 116.83 | I92: 118.22 | J92: 119.43 | K92: 117 | L92: 114.4 | M92: 2.36204
A93: 84 | B93: GSPL | C93: 179.35 | D93: 177.75 | E93: 175.50 | F93: 171.65 | G93: 169.40 | H93: 181.60 | I93: 183.85 | J93: 187.70 | K93: 180 | L93: 173.9 | M93: 3.60303
A94: 85 | B94: HCLTECH | C94: 910.35 | D94: 908.73 | E94: 902.67 | F94: 894.98 | G94: 888.92 | H94: 916.42 | I94: 922.48 | J94: 930.17 | K94: 914.8 | L94: 901.05 | M94: 28.09322
A95: 86 | B95: HDFCBANK | C95: 2139.45 | D95: 2126.48 | E95: 2092.97 | F95: 2046.48 | G95: 2012.97 | H95: 2172.97 | I95: 2206.48 | J95: 2252.97 | K95: 2160 | L95: 2080 | M95: 99.09798
A96: 87 | B96: HAVELLS | C96: 544.15 | D96: 550.02 | E96: 537.03 | F96: 529.92 | G96: 516.93 | H96: 557.13 | I96: 570.12 | J96: 577.23 | K96: 563 | L96: 542.9 | M96: 15.21311
A97: 88 | B97: HEROMOTOCO | C97: 3544.9 | D97: 3563.05 | E97: 3511.95 | F97: 3479.00 | G97: 3427.90 | H97: 3596.00 | I97: 3647.10 | J97: 3680.05 | K97: 3614.15 | L97: 3530.1 | M97: 7.07484
A98: 89 | B98: HEXAWARE | C98: 439.1 | D98: 442.57 | E98: 432.63 | F98: 426.17 | G98: 416.23 | H98: 449.03 | I98: 458.97 | J98: 465.43 | K98: 452.5 | L98: 436.1 | M98: 16.5996
A99: 90 | B99: HINDALCO | C99: 234.2 | D99: 235.70 | E99: 231.50 | F99: 228.80 | G99: 224.60 | H99: 238.40 | I99: 242.60 | J99: 245.30 | K99: 239.9 | L99: 233 | M99: 89.48198
A100: 91 | B100: HINDPETRO | C100: 311.85 | D100: 308.30 | E100: 303.60 | F100: 295.35 | G100: 290.65 | H100: 316.55 | I100: 321.25 | J100: 329.50 | K100: 313 | L100: 300.05 | M100: 96.42777
A101: 92 | B101: HINDUNILVR | C101: 1611.45 | D101: 1602.93 | E101: 1588.22 | F101: 1564.98 | G101: 1550.27 | H101: 1626.17 | I101: 1640.88 | J101: 1664.12 | K101: 1617.65 | L101: 1579.7 | M101: 33.15162
A102: 93 | B102: HINDZINC | C102: 296.35 | D102: 295.63 | E102: 293.27 | F102: 290.18 | G102: 287.82 | H102: 298.72 | I102: 301.08 | J102: 304.17 | K102: 298 | L102: 292.55 | M102: 37.84771
A103: 94 | B103: HUDCO | C103: 59.6 | D103: 60.52 | E103: 58.28 | F103: 56.97 | G103: 54.73 | H103: 61.83 | I103: 64.07 | J103: 65.38 | K103: 62.75 | L103: 59.2 | M103: 14.72952
A104: 95 | B104: HDFC | C104: 1833 | D104: 1822.90 | E104: 1807.30 | F104: 1781.60 | G104: 1766.00 | H104: 1848.60 | I104: 1864.20 | J104: 1889.90 | K104: 1838.5 | L104: 1797.2 | M104: 56.22276
A105: 96 | B105: ITC | C105: 271.65 | D105: 271.32 | E105: 269.93 | F105: 268.22 | G105: 266.83 | H105: 273.03 | I105: 274.42 | J105: 276.13 | K105: 272.7 | L105: 269.6 | M105: 132.12672
A106: 97 | B106: ICICIBANK | C106: 285.8 | D106: 284.68 | E106: 280.42 | F106: 275.03 | G106: 270.77 | H106: 290.07 | I106: 294.33 | J106: 299.72 | K106: 288.95 | L106: 279.3 | M106: 236.98686
A107: 98 | B107: ICICIPRULI | C107: 422.5 | D107: 424.28 | E107: 418.82 | F107: 415.13 | G107: 409.67 | H107: 427.97 | I107: 433.43 | J107: 437.12 | K107: 429.75 | L107: 420.6 | M107: 13.7603
A108: 99 | B108: IDBI | C108: 65.3 | D108: 65.27 | E108: 64.63 | F108: 63.97 | G108: 63.33 | H108: 65.93 | I108: 66.57 | J108: 67.23 | K108: 65.9 | L108: 64.6 | M108: 141.10586
A109: 100 | B109: IDFCBANK | C109: 40.7 | D109: 40.50 | E109: 39.60 | F109: 38.50 | G109: 37.60 | H109: 41.60 | I109: 42.50 | J109: 43.60 | K109: 41.4 | L109: 39.4 | M109: 1677.74948
A110: 101 | B110: IDFC | C110: 50.65 | D110: 50.62 | E110: 49.83 | F110: 49.02 | G110: 48.23 | H110: 51.43 | I110: 52.22 | J110: 53.03 | K110: 51.4 | L110: 49.8 | M110: 89.49967
A111: 102 | B111: IRB | C111: 230.5 | D111: 233.52 | E111: 226.58 | F111: 222.67 | G111: 215.73 | H111: 237.43 | I111: 244.37 | J111: 248.28 | K111: 240.45 | L111: 229.6 | M111: 23.87139
A112: 103 | B112: IDEA | C112: 61.5 | D112: 61.63 | E112: 60.32 | F112: 59.13 | G112: 57.82 | H112: 62.82 | I112: 64.13 | J112: 65.32 | K112: 62.95 | L112: 60.45 | M112: 237.84601
A113: 104 | B113: IBULHSGFIN | C113: 1242.7 | D113: 1240.42 | E113: 1222.83 | F113: 1202.97 | G113: 1185.38 | H113: 1260.28 | I113: 1277.87 | J113: 1297.73 | K113: 1258 | L113: 1220.55 | M113: 57.49164
A114: 105 | B114: INDIANB | C114: 340.85 | D114: 340.48 | E114: 330.52 | F114: 320.18 | G114: 310.22 | H114: 350.82 | I114: 360.78 | J114: 371.12 | K114: 350.45 | L114: 330.15 | M114: 23.37178
A115: 106 | B115: INDHOTEL | C115: 141.95 | D115: 142.83 | E115: 140.52 | F115: 139.08 | G115: 136.77 | H115: 144.27 | I115: 146.58 | J115: 148.02 | K115: 145.15 | L115: 141.4 | M115: 13.00553
A116: 107 | B116: IOC | C116: 174.1 | D116: 172.95 | E116: 170.20 | F116: 166.30 | G116: 163.55 | H116: 176.85 | I116: 179.60 | J116: 183.50 | K116: 175.7 | L116: 169.05 | M116: 328.72156
A117: 108 | B117: IGL | C117: 265 | D117: 264.90 | E117: 260.20 | F117: 255.40 | G117: 250.70 | H117: 269.70 | I117: 274.40 | J117: 279.20 | K117: 269.6 | L117: 260.1 | M117: 42.34976
A118: 109 | B118: INDUSINDBK | C118: 1955.45 | D118: 1939.73 | E118: 1884.47 | F118: 1813.48 | G118: 1758.22 | H118: 2010.72 | I118: 2065.98 | J118: 2136.97 | K118: 1995 | L118: 1868.75 | M118: 38.96725
A119: 110 | B119: NAUKRI | C119: 1269.75 | D119: 1280.18 | E119: 1235.57 | F119: 1201.38 | G119: 1156.77 | H119: 1314.37 | I119: 1358.98 | J119: 1393.17 | K119: 1324.8 | L119: 1246 | M119: 1.01684
A120: 111 | B120: INFY | C120: 1231.8 | D120: 1228.02 | E120: 1214.03 | F120: 1196.27 | G120: 1182.28 | H120: 1245.78 | I120: 1259.77 | J120: 1277.53 | K120: 1242 | L120: 1210.25 | M120: 98.6017
A121: 112 | B121: INDIGO | C121: 1219.25 | D121: 1223.18 | E121: 1190.37 | F121: 1161.48 | G121: 1128.67 | H121: 1252.07 | I121: 1284.88 | J121: 1313.77 | K121: 1256 | L121: 1194.3 | M121: 110.16274
A122: 113 | B122: IPCALAB | C122: 670.4 | D122: 674.35 | E122: 665.65 | F122: 660.90 | G122: 652.20 | H122: 679.10 | I122: 687.80 | J122: 692.55 | K122: 683.05 | L122: 669.6 | M122: 0.90442
A123: 114 | B123: JSWENERGY | C123: 82.25 | D123: 81.92 | E123: 80.43 | F123: 78.62 | G123: 77.13 | H123: 83.73 | I123: 85.22 | J123: 87.03 | K123: 83.4 | L123: 80.1 | M123: 119.74619
A124: 115 | B124: JSWSTEEL | C124: 331.9 | D124: 332.90 | E124: 328.60 | F124: 325.30 | G124: 321.00 | H124: 336.20 | I124: 340.50 | J124: 343.80 | K124: 337.2 | L124: 329.6 | M124: 67.71065
A125: 116 | B125: JINDALSTEL | C125: 229.55 | D125: 231.12 | E125: 225.73 | F125: 221.92 | G125: 216.53 | H125: 234.93 | I125: 240.32 | J125: 244.13 | K125: 236.5 | L125: 227.3 | M125: 61.93783
A126: 117 | B126: JUBLFOOD | C126: 2508.6 | D126: 2527.03 | E126: 2479.17 | F126: 2449.73 | G126: 2401.87 | H126: 2556.47 | I126: 2604.33 | J126: 2633.77 | K126: 2574.9 | L126: 2497.6 | M126: 14.39316
A127: 118 | B127: JUBILANT | C127: 789.2 | D127: 788.07 | E127: 783.13 | F127: 777.07 | G127: 772.13 | H127: 794.13 | I127: 799.07 | J127: 805.13 | K127: 793 | L127: 782 | M127: 2.32343
A128: 119 | B128: KARURVYSYA | C128: 105.1 | D128: 105.78 | E128: 103.17 | F128: 101.23 | G128: 98.62 | H128: 107.72 | I128: 110.33 | J128: 112.27 | K128: 108.4 | L128: 103.85 | M128: 18.61778
A129: 120 | B129: KOTAKBANK | C129: 1334.6 | D129: 1345.35 | E129: 1290.70 | F129: 1246.80 | G129: 1192.15 | H129: 1389.25 | I129: 1443.90 | J129: 1487.80 | K129: 1400 | L129: 1301.45 | M129: 66.84898
A130: 121 | B130: L&TFH | C130: 169.85 | D130: 171.17 | E130: 167.73 | F130: 165.62 | G130: 162.18 | H130: 173.28 | I130: 176.72 | J130: 178.83 | K130: 174.6 | L130: 169.05 | M130: 23.78095
A131: 122 | B131: LICHSGFIN | C131: 475.15 | D131: 476.03 | E131: 472.52 | F131: 469.88 | G131: 466.37 | H131: 478.67 | I131: 482.18 | J131: 484.82 | K131: 479.55 | L131: 473.4 | M131: 34.76577
A132: 123 | B132: LT | C132: 1370.4 | D132: 1367.95 | E132: 1358.45 | F132: 1346.50 | G132: 1337.00 | H132: 1379.90 | I132: 1389.40 | J132: 1401.35 | K132: 1377.45 | L132: 1356 | M132: 29.30988
A133: 124 | B133: LUPIN | C133: 770.35 | D133: 773.65 | E133: 762.35 | F133: 754.35 | G133: 743.05 | H133: 781.65 | I133: 792.95 | J133: 800.95 | K133: 784.95 | L133: 765.65 | M133: 19.9498
A134: 125 | B134: MRF | C134: 75734.05 | D134: 76253.68 | E134: 74819.37 | F134: 73904.68 | G134: 72470.37 | H134: 77168.37 | I134: 78602.68 | J134: 79517.37 | K134: 77688 | L134: 75339 | M134: 0.04232
A135: 126 | B135: MGL | C135: 818.95 | D135: 825.52 | E135: 808.43 | F135: 797.92 | G135: 780.83 | H135: 836.03 | I135: 853.12 | J135: 863.63 | K135: 842.6 | L135: 815 | M135: 2.87555
A136: 127 | B136: M&MFIN | C136: 487.65 | D136: 484.85 | E136: 479.85 | F136: 472.05 | G136: 467.05 | H136: 492.65 | I136: 497.65 | J136: 505.45 | K136: 489.85 | L136: 477.05 | M136: 22.73636
A137: 128 | B137: M&M | C137: 922.95 | D137: 915.82 | E137: 898.13 | F137: 873.32 | G137: 855.63 | H137: 940.63 | I137: 958.32 | J137: 983.13 | K137: 933.5 | L137: 891 | M137: 94.17129
A138: 129 | B138: MANAPPURAM | C138: 107.7 | D138: 108.27 | E138: 106.53 | F138: 105.37 | G138: 103.63 | H138: 109.43 | I138: 111.17 | J138: 112.33 | K138: 110 | L138: 107.1 | M138: 31.3516
A139: 130 | B139: MRPL | C139: 92.8 | D139: 93.63 | E139: 91.62 | F139: 90.43 | G139: 88.42 | H139: 94.82 | I139: 96.83 | J139: 98.02 | K139: 95.65 | L139: 92.45 | M139: 20.79181
A140: 131 | B140: MARICO | C140: 321.85 | D140: 320.12 | E140: 316.73 | F140: 311.62 | G140: 308.23 | H140: 325.23 | I140: 328.62 | J140: 333.73 | K140: 323.5 | L140: 315 | M140: 22.25475
A141: 132 | B141: MARUTI | C141: 8537.2 | D141: 8564.07 | E141: 8489.03 | F141: 8440.87 | G141: 8365.83 | H141: 8612.23 | I141: 8687.27 | J141: 8735.43 | K141: 8639.1 | L141: 8515.9 | M141: 6.79959
A142: 133 | B142: MFSL | C142: 490.1 | D142: 487.47 | E142: 481.93 | F142: 473.77 | G142: 468.23 | H142: 495.63 | I142: 501.17 | J142: 509.33 | K142: 493 | L142: 479.3 | M142: 12.96191
A143: 134 | B143: MINDTREE | C143: 1007.95 | D143: 1011.87 | E143: 998.58 | F143: 989.22 | G143: 975.93 | H143: 1021.23 | I143: 1034.52 | J143: 1043.88 | K143: 1025.15 | L143: 1002.5 | M143: 12.18668
A144: 135 | B144: MOTHERSUMI | C144: 310.15 | D144: 310.22 | E144: 305.13 | F144: 300.12 | G144: 295.03 | H144: 315.23 | I144: 320.32 | J144: 325.33 | K144: 315.3 | L144: 305.2 | M144: 39.66415
A145: 136 | B145: MPHASIS | C145: 1101.1 | D145: 1082.72 | E145: 1055.38 | F145: 1009.67 | G145: 982.33 | H145: 1128.43 | I145: 1155.77 | J145: 1201.48 | K145: 1110.05 | L145: 1037 | M145: 4.28399
A146: 137 | B146: MUTHOOTFIN | C146: 389.65 | D146: 392.13 | E146: 384.52 | F146: 379.38 | G146: 371.77 | H146: 397.27 | I146: 404.88 | J146: 410.02 | K146: 399.75 | L146: 387 | M146: 3.71423
A147: 138 | B147: NATCOPHARM | C147: 807.8 | D147: 804.90 | E147: 797.90 | F147: 788.00 | G147: 781.00 | H147: 814.80 | I147: 821.80 | J147: 831.70 | K147: 811.9 | L147: 795 | M147: 4.37323
A148: 139 | B148: NBCC | C148: 92.1 | D148: 92.72 | E148: 90.43 | F148: 88.77 | G148: 86.48 | H148: 94.38 | I148: 96.67 | J148: 98.33 | K148: 95 | L148: 91.05 | M148: 80.16263
A149: 140 | B149: NHPC | C149: 26.5 | D149: 26.52 | E149: 26.28 | F149: 26.07 | G149: 25.83 | H149: 26.73 | I149: 26.97 | J149: 27.18 | K149: 26.75 | L149: 26.3 | M149: 55.5622
A150: 141 | B150: NMDC | C150: 117.45 | D150: 117.95 | E150: 114.85 | F150: 112.25 | G150: 109.15 | H150: 120.55 | I150: 123.65 | J150: 126.25 | K150: 121.05 | L150: 115.35 | M150: 16.84572
A151: 142 | B151: NTPC | C151: 167.55 | D151: 167.37 | E151: 164.28 | F151: 161.02 | G151: 157.93 | H151: 170.63 | I151: 173.72 | J151: 176.98 | K151: 170.45 | L151: 164.1 | M151: 245.27412
A152: 143 | B152: NATIONALUM | C152: 70.45 | D152: 71.22 | E152: 69.23 | F152: 68.02 | G152: 66.03 | H152: 72.43 | I152: 74.42 | J152: 75.63 | K152: 73.2 | L152: 70 | M152: 169.06601
A153: 144 | B153: OBEROIRLTY | C153: 506.95 | D153: 509.42 | E153: 502.88 | F153: 498.82 | G153: 492.28 | H153: 513.48 | I153: 520.02 | J153: 524.08 | K153: 515.95 | L153: 505.35 | M153: 1.25955
A154: 145 | B154: ONGC | C154: 177.9 | D154: 177.77 | E154: 175.18 | F154: 172.47 | G154: 169.88 | H154: 180.48 | I154: 183.07 | J154: 185.78 | K154: 180.35 | L154: 175.05 | M154: 238.22373
A155: 146 | B155: OIL | C155: 215.85 | D155: 216.62 | E155: 212.33 | F155: 208.82 | G155: 204.53 | H155: 220.13 | I155: 224.42 | J155: 227.93 | K155: 220.9 | L155: 213.1 | M155: 13.14254
A156: 147 | B156: OFSS | C156: 3942.9 | D156: 3913.82 | E156: 3724.13 | F156: 3505.37 | G156: 3315.68 | H156: 4132.58 | I156: 4322.27 | J156: 4541.03 | K156: 4103.5 | L156: 3695.05 | M156: 1.0798
A157: 148 | B157: PCJEWELLER | C157: 165.8 | D157: 168.35 | E157: 161.70 | F157: 157.60 | G157: 150.95 | H157: 172.45 | I157: 179.10 | J157: 183.20 | K157: 175 | L157: 164.25 | M157: 129.69938
A158: 149 | B158: PIIND | C158: 846.95 | D158: 851.33 | E158: 832.67 | F158: 818.38 | G158: 799.72 | H158: 865.62 | I158: 884.28 | J158: 898.57 | K158: 870 | L158: 837.05 | M158: 1.46291
A159: 150 | B159: PNBHOUSING | C159: 1205.1 | D159: 1202.70 | E159: 1185.40 | F159: 1165.70 | G159: 1148.40 | H159: 1222.40 | I159: 1239.70 | J159: 1259.40 | K159: 1220 | L159: 1183 | M159: 2.67063
A160: 151 | B160: PAGEIND | C160: 25221.75 | D160: 25022.62 | E160: 24655.23 | F160: 24088.72 | G160: 23721.33 | H160: 25589.13 | I160: 25956.52 | J160: 26523.03 | K160: 25390 | L160: 24456.1 | M160: 0.34849
A161: 152 | B161: PETRONET | C161: 219.65 | D161: 219.92 | E161: 216.83 | F161: 214.02 | G161: 210.93 | H161: 222.73 | I161: 225.82 | J161: 228.63 | K161: 223 | L161: 217.1 | M161: 87.00031
A162: 153 | B162: PIDILITIND | C162: 1157.6 | D162: 1164.12 | E162: 1136.23 | F162: 1114.87 | G162: 1086.98 | H162: 1185.48 | I162: 1213.37 | J162: 1234.73 | K162: 1192 | L162: 1142.75 | M162: 131.40065
A163: 154 | B163: PEL | C163: 2371.45 | D163: 2371.18 | E163: 2342.62 | F163: 2313.78 | G163: 2285.22 | H163: 2400.02 | I163: 2428.58 | J163: 2457.42 | K163: 2399.75 | L163: 2342.35 | M163: 4.28181
A164: 155 | B164: PFC | C164: 80.55 | D164: 80.15 | E164: 78.95 | F164: 77.35 | G164: 76.15 | H164: 81.75 | I164: 82.95 | J164: 84.55 | K164: 81.35 | L164: 78.55 | M164: 572.25598
A165: 156 | B165: POWERGRID | C165: 209.45 | D165: 207.92 | E165: 203.13 | F165: 196.82 | G165: 192.03 | H165: 214.23 | I165: 219.02 | J165: 225.33 | K165: 212.7 | L165: 201.6 | M165: 1543.23307
A166: 157 | B166: PRESTIGE | C166: 248 | D166: 251.90 | E166: 239.60 | F166: 231.20 | G166: 218.90 | H166: 260.30 | I166: 272.60 | J166: 281.00 | K166: 264.2 | L166: 243.5 | M166: 2.44928
A167: 158 | B167: PGHH | C167: 9301.5 | D167: 9285.20 | E167: 9227.30 | F167: 9153.10 | G167: 9095.20 | H167: 9359.40 | I167: 9417.30 | J167: 9491.50 | K167: 9343.1 | L167: 9211 | M167: 0.00869
A168: 159 | B168: PNB | C168: 83.65 | D168: 84.63 | E168: 82.27 | F168: 80.88 | G168: 78.52 | H168: 86.02 | I168: 88.38 | J168: 89.77 | K168: 87 | L168: 83.25 | M168: 173.59606
A169: 160 | B169: RBLBANK | C169: 515.9 | D169: 515.28 | E169: 509.47 | F169: 503.03 | G169: 497.22 | H169: 521.72 | I169: 527.53 | J169: 533.97 | K169: 521.1 | L169: 508.85 | M169: 11.05731
A170: 161 | B170: RAJESHEXPO | C170: 603.85 | D170: 602.65 | E170: 582.65 | F170: 561.45 | G170: 541.45 | H170: 623.85 | I170: 643.85 | J170: 665.05 | K170: 622.65 | L170: 581.45 | M170: 2.55093
A171: 162 | B171: RELCAPITAL | C171: 417.6 | D171: 426.37 | E171: 403.93 | F171: 390.27 | G171: 367.83 | H171: 440.03 | I171: 462.47 | J171: 476.13 | K171: 448.8 | L171: 412.7 | M171: 71.12222
A172: 163 | B172: RCOM | C172: 18.65 | D172: 19.07 | E172: 17.13 | F172: 15.62 | G172: 13.68 | H172: 20.58 | I172: 22.52 | J172: 24.03 | K172: 21 | L172: 17.55 | M172: 4136.63689
A173: 164 | B173: RELIANCE | C173: 921.35 | D173: 919.40 | E173: 916.50 | F173: 911.65 | G173: 908.75 | H173: 924.25 | I173: 927.15 | J173: 932.00 | K173: 922.3 | L173: 914.55 | M173: 169.51801
A174: 165 | B174: RELINFRA | C174: 434.75 | D174: 435.18 | E174: 422.57 | F174: 410.38 | G174: 397.77 | H174: 447.37 | I174: 459.98 | J174: 472.17 | K174: 447.8 | L174: 423 | M174: 30.62197
A175: 166 | B175: RPOWER | C175: 36.4 | D175: 36.60 | E175: 35.35 | F175: 34.30 | G175: 33.05 | H175: 37.65 | I175: 38.90 | J175: 39.95 | K175: 37.85 | L175: 35.55 | M175: 145.91547
A176: 167 | B176: RECLTD | C176: 118.15 | D176: 118.63 | E176: 117.22 | F176: 116.28 | G176: 114.87 | H176: 119.57 | I176: 120.98 | J176: 121.92 | K176: 120.05 | L176: 117.7 | M176: 103.79303
A177: 168 | B177: SRF | C177: 1932.2 | D177: 1911.38 | E177: 1882.92 | F177: 1833.63 | G177: 1805.17 | H177: 1960.67 | I177: 1989.13 | J177: 2038.42 | K177: 1939.85 | L177: 1862.1 | M177: 3.64313
A178: 169 | B178: SHREECEM | C178: 16880.6 | D178: 16796.07 | E178: 16595.53 | F178: 16310.47 | G178: 16109.93 | H178: 17081.13 | I178: 17281.67 | J178: 17566.73 | K178: 16996.6 | L178: 16511 | M178: 0.39874
A179: 170 | B179: SRTRANSFIN | C179: 1454.3 | D179: 1469.58 | E179: 1429.07 | F179: 1403.83 | G179: 1363.32 | H179: 1494.82 | I179: 1535.33 | J179: 1560.57 | K179: 1510.1 | L179: 1444.35 | M179: 9.353
A180: 171 | B180: SIEMENS | C180: 1045.4 | D180: 1037.83 | E180: 1025.07 | F180: 1004.73 | G180: 991.97 | H180: 1058.17 | I180: 1070.93 | J180: 1091.27 | K180: 1050.6 | L180: 1017.5 | M180: 3.33346
A181: 172 | B181: SBIN | C181: 269.55 | D181: 269.17 | E181: 263.53 | F181: 257.52 | G181: 251.88 | H181: 275.18 | I181: 280.82 | J181: 286.83 | K181: 274.8 | L181: 263.15 | M181: 319.35892
A182: 173 | B182: SAIL | C182: 75.95 | D182: 77.18 | E182: 74.37 | F182: 72.78 | G182: 69.97 | H182: 78.77 | I182: 81.58 | J182: 83.17 | K182: 80 | L182: 75.6 | M182: 269.42353
A183: 174 | B183: SPARC | C183: 407.6 | D183: 404.60 | E183: 399.20 | F183: 390.80 | G183: 385.40 | H183: 413.00 | I183: 418.40 | J183: 426.80 | K183: 410 | L183: 396.2 | M183: 2.68918
A184: 175 | B184: SUNPHARMA | C184: 480.35 | D184: 483.08 | E184: 470.17 | F184: 459.98 | G184: 447.07 | H184: 493.27 | I184: 506.18 | J184: 516.37 | K184: 496 | L184: 472.9 | M184: 187.90216
A185: 176 | B185: SUNTV | C185: 917.6 | D185: 924.18 | E185: 907.42 | F185: 897.23 | G185: 880.47 | H185: 934.37 | I185: 951.13 | J185: 961.32 | K185: 940.95 | L185: 914 | M185: 8.91362
A186: 177 | B186: SUZLON | C186: 8.75 | D186: 8.93 | E186: 8.47 | F186: 8.18 | G186: 7.72 | H186: 9.22 | I186: 9.68 | J186: 9.97 | K186: 9.4 | L186: 8.65 | M186: 670.0324
A187: 178 | B187: SYNDIBANK | C187: 49.05 | D187: 49.23 | E187: 48.52 | F187: 47.98 | G187: 47.27 | H187: 49.77 | I187: 50.48 | J187: 51.02 | K187: 49.95 | L187: 48.7 | M187: 34.4916
A188: 179 | B188: SYNGENE | C188: 599.65 | D188: 601.55 | E188: 590.35 | F188: 581.05 | G188: 569.85 | H188: 610.85 | I188: 622.05 | J188: 631.35 | K188: 612.75 | L188: 592.25 | M188: 1.58448
A189: 180 | B189: TV18BRDCST | C189: 55.95 | D189: 56.13 | E189: 54.87 | F189: 53.78 | G189: 52.52 | H189: 57.22 | I189: 58.48 | J189: 59.57 | K189: 57.4 | L189: 55.05 | M189: 67.92268
A190: 181 | B190: TVSMOTOR | C190: 587.35 | D190: 593.93 | E190: 577.92 | F190: 568.48 | G190: 552.47 | H190: 603.37 | I190: 619.38 | J190: 628.82 | K190: 609.95 | L190: 584.5 | M190: 10.46499
A191: 182 | B191: TATACHEM | C191: 741.4 | D191: 739.57 | E191: 731.13 | F191: 720.87 | G191: 712.43 | H191: 749.83 | I191: 758.27 | J191: 768.53 | K191: 748 | L191: 729.3 | M191: 13.80216
A192: 183 | B192: TATACOMM | C192: 617.35 | D192: 623.95 | E192: 608.90 | F192: 600.45 | G192: 585.40 | H192: 632.40 | I192: 647.45 | J192: 655.90 | K192: 639 | L192: 615.5 | M192: 20.4216
A193: 184 | B193: TCS | C193: 1741.05 | D193: 1742.07 | E193: 1725.08 | F193: 1709.12 | G193: 1692.13 | H193: 1758.03 | I193: 1775.02 | J193: 1790.98 | K193: 1759.05 | L193: 1726.1 | M193: 50.49371
A194: 185 | B194: TATAGLOBAL | C194: 269.2 | D194: 267.30 | E194: 262.60 | F194: 256.00 | G194: 251.30 | H194: 273.90 | I194: 278.60 | J194: 285.20 | K194: 272 | L194: 260.7 | M194: 34.69905
A195: 186 | B195: TATAMTRDVR | C195: 168.75 | D195: 168.67 | E195: 166.08 | F195: 163.42 | G195: 160.83 | H195: 171.33 | I195: 173.92 | J195: 176.58 | K195: 171.25 | L195: 166 | M195: 272.91973
A196: 187 | B196: TATAMOTORS | C196: 282.5 | D196: 284.98 | E196: 279.12 | F196: 275.73 | G196: 269.87 | H196: 288.37 | I196: 294.23 | J196: 297.62 | K196: 290.85 | L196: 281.6 | M196: 287.71987
A197: 188 | B197: TATAPOWER | C197: 81.3 | D197: 81.45 | E197: 79.70 | F197: 78.10 | G197: 76.35 | H197: 83.05 | I197: 84.80 | J197: 86.40 | K197: 83.2 | L197: 79.85 | M197: 91.09367
A198: 189 | B198: TATASTEEL | C198: 575.65 | D198: 578.33 | E198: 569.37 | F198: 563.08 | G198: 554.12 | H198: 584.62 | I198: 593.58 | J198: 599.87 | K198: 587.3 | L198: 572.05 | M198: 66.5251
A199: 190 | B199: TECHM | C199: 712.35 | D199: 704.20 | E199: 690.60 | F199: 668.85 | G199: 655.25 | H199: 725.95 | I199: 739.55 | J199: 761.30 | K199: 717.8 | L199: 682.45 | M199: 77.89699
A200: 191 | B200: RAMCOCEM | C200: 773.55 | D200: 775.18 | E200: 764.37 | F200: 755.18 | G200: 744.37 | H200: 784.37 | I200: 795.18 | J200: 804.37 | K200: 786 | L200: 766 | M200: 4.29334
A201: 192 | B201: TITAN | C201: 900.1 | D201: 904.75 | E201: 885.50 | F201: 870.90 | G201: 851.65 | H201: 919.35 | I201: 938.60 | J201: 953.20 | K201: 924 | L201: 890.15 | M201: 49.03734
A202: 193 | B202: TORNTPHARM | C202: 1411.5 | D202: 1390.17 | E202: 1350.93 | F202: 1290.37 | G202: 1251.13 | H202: 1450.73 | I202: 1489.97 | J202: 1550.53 | K202: 1429.4 | L202: 1329.6 | M202: 5.94301
A203: 194 | B203: TORNTPOWER | C203: 262.3 | D203: 262.98 | E203: 249.57 | F203: 236.83 | G203: 223.42 | H203: 275.72 | I203: 289.13 | J203: 301.87 | K203: 276.4 | L203: 250.25 | M203: 33.43579
A204: 195 | B204: UPL | C204: 707.6 | D204: 709.12 | E204: 702.48 | F204: 697.37 | G204: 690.73 | H204: 714.23 | I204: 720.87 | J204: 725.98 | K204: 715.75 | L204: 704 | M204: 38.05358
A205: 196 | B205: ULTRACEMCO | C205: 3744.9 | D205: 3732.18 | E205: 3699.42 | F205: 3653.93 | G205: 3621.17 | H205: 3777.67 | I205: 3810.43 | J205: 3855.92 | K205: 3764.95 | L205: 3686.7 | M205: 7.33987
... 30 more rows

Sheet MidCap Intra
L5: Back To Main Page
A6: FOR INTRA DAY TRADING | K6: =Main!B10 -> 2018-06-01
A9: Sr.no | B9: Scrip | C9: CLOSE RATE | D9: Pivot Point | E9: Supports | H9: Resistances
C10: Point | E10: S1 | F10: S2 | G10: S3 | H10: R1 | I10: R2 | J10: R3 | K10: HIGH | L10: LOW | M10: Total Trade Quanity in Lakhs
A11: 1 | B11: 3MINDIA | C11: 19543.6 | D11: 19710.18 | E11: 19320.42 | F11: 19097.23 | G11: 18707.47 | H11: 19933.37 | I11: 20323.13 | J11: 20546.32 | K11: 20099.95 | L11: 19487 | M11: 0.02512
A12: 2 | B12: 8KMILES | C12: 602.2 | D12: 610.07 | E12: 588.13 | F12: 574.07 | G12: 552.13 | H12: 624.13 | I12: 646.07 | J12: 660.13 | K12: 632 | L12: 596 | M12: 1.53913
A13: 3 | B13: AARTIIND | C13: 1244.5 | D13: 1244.55 | E13: 1216.75 | F13: 1189.00 | G13: 1161.20 | H13: 1272.30 | I13: 1300.10 | J13: 1327.85 | K13: 1272.35 | L13: 1216.8 | M13: 0.31226
A14: 4 | B14: ABAN | C14: 141.3 | D14: 142.92 | E14: 138.38 | F14: 135.47 | G14: 130.93 | H14: 145.83 | I14: 150.37 | J14: 153.28 | K14: 147.45 | L14: 140 | M14: 12.75349
A15: 5 | B15: ABB | C15: 1231.85 | D15: 1235.60 | E15: 1216.25 | F15: 1200.65 | G15: 1181.30 | H15: 1251.20 | I15: 1270.55 | J15: 1286.15 | K15: 1254.95 | L15: 1220 | M15: 0.41589
A16: 6 | B16: ABCAPITAL | C16: 146.7 | D16: 147.33 | E16: 145.47 | F16: 144.23 | G16: 142.37 | H16: 148.57 | I16: 150.43 | J16: 151.67 | K16: 149.2 | L16: 146.1 | M16: 9.88712
A17: 7 | B17: ABFRL | C17: 148.3 | D17: 147.87 | E17: 146.73 | F17: 145.17 | G17: 144.03 | H17: 149.43 | I17: 150.57 | J17: 152.13 | K17: 149 | L17: 146.3 | M17: 2.6612
A18: 8 | B18: ACC | C18: 1354.6 | D18: 1340.40 | E18: 1316.80 | F18: 1279.00 | G18: 1255.40 | H18: 1378.20 | I18: 1401.80 | J18: 1439.60 | K18: 1364 | L18: 1302.6 | M18: 38.73328
A19: 9 | B19: ADANIPORTS | C19: 392.15 | D19: 386.33 | E19: 375.07 | F19: 357.98 | G19: 346.72 | H19: 403.42 | I19: 414.68 | J19: 431.77 | K19: 397.6 | L19: 369.25 | M19: 111.33305
A20: 10 | B20: ADANIPOWER | C20: 20.15 | D20: 20.18 | E20: 19.87 | F20: 19.58 | G20: 19.27 | H20: 20.47 | I20: 20.78 | J20: 21.07 | K20: 20.5 | L20: 19.9 | M20: 133.37604
A21: 11 | B21: ADANITRANS | C21: 136.05 | D21: 137.08 | E21: 133.67 | F21: 131.28 | G21: 127.87 | H21: 139.47 | I21: 142.88 | J21: 145.27 | K21: 140.5 | L21: 134.7 | M21: 4.2179
A22: 12 | B22: ADVENZYMES | C22: 220.85 | D22: 223.82 | E22: 214.13 | F22: 207.42 | G22: 197.73 | H22: 230.53 | I22: 240.22 | J22: 246.93 | K22: 233.5 | L22: 217.1 | M22: 4.63209
A23: 13 | B23: AEGISCHEM | C23: 273 | D23: 270.57 | E23: 262.43 | F23: 251.87 | G23: 243.73 | H23: 281.13 | I23: 289.27 | J23: 299.83 | K23: 278.7 | L23: 260 | M23: 1.07595
A24: 14 | B24: AIAENG | C24: 1542.25 | D24: 1559.25 | E24: 1519.50 | F24: 1496.75 | G24: 1457.00 | H24: 1582.00 | I24: 1621.75 | J24: 1644.50 | K24: 1599 | L24: 1536.5 | M24: 0.3391
A25: 15 | B25: AJANTPHARM | C25: 962.35 | D25: 968.42 | E25: 946.93 | F25: 931.52 | G25: 910.03 | H25: 983.83 | I25: 1005.32 | J25: 1020.73 | K25: 989.9 | L25: 953 | M25: 4.42907
A26: 16 | B26: AKZOINDIA | C26: 1933.3 | D26: 1929.37 | E26: 1918.93 | F26: 1904.57 | G26: 1894.13 | H26: 1943.73 | I26: 1954.17 | J26: 1968.53 | K26: 1939.8 | L26: 1915 | M26: 0.2135
A27: 17 | B27: ALBK | C27: 41.8 | D27: 41.73 | E27: 41.07 | F27: 40.33 | G27: 39.67 | H27: 42.47 | I27: 43.13 | J27: 43.87 | K27: 42.4 | L27: 41 | M27: 30.67446
A28: 18 | B28: ALKEM | C28: 1916.85 | D28: 1934.97 | E28: 1884.93 | F28: 1853.02 | G28: 1802.98 | H28: 1966.88 | I28: 2016.92 | J28: 2048.83 | K28: 1985 | L28: 1903.05 | M28: 0.32983
A29: 19 | B29: ALLCARGO | C29: 124.7 | D29: 125.33 | E29: 122.72 | F29: 120.73 | G29: 118.12 | H29: 127.32 | I29: 129.93 | J29: 131.92 | K29: 127.95 | L29: 123.35 | M29: 1.63546
A30: 20 | B30: AMARAJABAT | C30: 798.45 | D30: 793.33 | E30: 782.72 | F30: 766.98 | G30: 756.37 | H30: 809.07 | I30: 819.68 | J30: 835.42 | K30: 803.95 | L30: 777.6 | M30: 4.9607
A31: 21 | B31: AMBUJACEM | C31: 205.4 | D31: 206.33 | E31: 203.67 | F31: 201.93 | G31: 199.27 | H31: 208.07 | I31: 210.73 | J31: 212.47 | K31: 209 | L31: 204.6 | M31: 65.71778
A32: 22 | B32: ANDHRABANK | C32: 36.45 | D32: 36.53 | E32: 35.92 | F32: 35.38 | G32: 34.77 | H32: 37.07 | I32: 37.68 | J32: 38.22 | K32: 37.15 | L32: 36 | M32: 45.6124
A33: 23 | B33: APLAPOLLO | C33: 1873.5 | D33: 1878.48 | E33: 1855.07 | F33: 1836.63 | G33: 1813.22 | H33: 1896.92 | I33: 1920.33 | J33: 1938.77 | K33: 1901.9 | L33: 1860.05 | M33: 0.12494
A34: 24 | B34: APLLTD | C34: 427.5 | D34: 429.67 | E34: 424.48 | F34: 421.47 | G34: 416.28 | H34: 432.68 | I34: 437.87 | J34: 440.88 | K34: 434.85 | L34: 426.65 | M34: 0.30286
A35: 25 | B35: APOLLOHOSP | C35: 950.35 | D35: 965.98 | E35: 928.17 | F35: 905.98 | G35: 868.17 | H35: 988.17 | I35: 1025.98 | J35: 1048.17 | K35: 1003.8 | L35: 943.8 | M35: 8.83312
A36: 26 | B36: APOLLOTYRE | C36: 269.3 | D36: 271.28 | E36: 265.02 | F36: 260.73 | G36: 254.47 | H36: 275.57 | I36: 281.83 | J36: 286.12 | K36: 277.55 | L36: 267 | M36: 20.39549
A37: 27 | B37: ARVIND | C37: 388.15 | D37: 388.30 | E37: 383.30 | F37: 378.45 | G37: 373.45 | H37: 393.15 | I37: 398.15 | J37: 403.00 | K37: 393.3 | L37: 383.45 | M37: 11.84705
A38: 28 | B38: ASAHIINDIA | C38: 346.65 | D38: 347.97 | E38: 338.68 | F38: 330.72 | G38: 321.43 | H38: 355.93 | I38: 365.22 | J38: 373.18 | K38: 357.25 | L38: 340 | M38: 0.49395
A39: 29 | B39: ASHOKA | C39: 245 | D39: 249.87 | E39: 237.13 | F39: 229.27 | G39: 216.53 | H39: 257.73 | I39: 270.47 | J39: 278.33 | K39: 262.6 | L39: 242 | M39: 4.67448
A40: 30 | B40: ASHOKLEY | C40: 148.05 | D40: 148.93 | E40: 146.62 | F40: 145.18 | G40: 142.87 | H40: 150.37 | I40: 152.68 | J40: 154.12 | K40: 151.25 | L40: 147.5 | M40: 157.90863
A41: 31 | B41: ASIANPAINT | C41: 1304.65 | D41: 1301.12 | E41: 1290.53 | F41: 1276.42 | G41: 1265.83 | H41: 1315.23 | I41: 1325.82 | J41: 1339.93 | K41: 1311.7 | L41: 1287 | M41: 14.00776
A42: 32 | B42: ASTRAL | C42: 1035.1 | D42: 1019.17 | E42: 989.33 | F42: 943.57 | G42: 913.73 | H42: 1064.93 | I42: 1094.77 | J42: 1140.53 | K42: 1049 | L42: 973.4 | M42: 0.65741
A43: 33 | B43: ATUL | C43: 2824.35 | D43: 2801.72 | E43: 2778.18 | F43: 2732.02 | G43: 2708.48 | H43: 2847.88 | I43: 2871.42 | J43: 2917.58 | K43: 2825.25 | L43: 2755.55 | M43: 0.38373
A44: 34 | B44: AUBANK | C44: 697.3 | D44: 696.37 | E44: 684.93 | F44: 672.57 | G44: 661.13 | H44: 708.73 | I44: 720.17 | J44: 732.53 | K44: 707.8 | L44: 684 | M44: 1.38884
A45: 35 | B45: AUROPHARMA | C45: 556.3 | D45: 559.42 | E45: 548.83 | F45: 541.37 | G45: 530.78 | H45: 566.88 | I45: 577.47 | J45: 584.93 | K45: 570 | L45: 551.95 | M45: 42.80622
A46: 36 | B46: AVANTIFEED | C46: 1632.85 | D46: 1644.48 | E46: 1533.42 | F46: 1433.98 | G46: 1322.92 | H46: 1743.92 | I46: 1854.98 | J46: 1954.42 | K46: 1755.55 | L46: 1545.05 | M46: 6.54297
A47: 37 | B47: AXISBANK | C47: 545.9 | D47: 543.32 | E47: 534.83 | F47: 523.77 | G47: 515.28 | H47: 554.38 | I47: 562.87 | J47: 573.93 | K47: 551.8 | L47: 532.25 | M47: 156.52651
A48: 38 | B48: BAJAJ-AUTO | C48: 2750.3 | D48: 2756.45 | E48: 2727.95 | F48: 2705.60 | G48: 2677.10 | H48: 2778.80 | I48: 2807.30 | J48: 2829.65 | K48: 2784.95 | L48: 2734.1 | M48: 4.47005
A49: 39 | B49: BAJAJCORP | C49: 476.55 | D49: 473.68 | E49: 467.87 | F49: 459.18 | G49: 453.37 | H49: 482.37 | I49: 488.18 | J49: 496.87 | K49: 479.5 | L49: 465 | M49: 0.34728
A50: 40 | B50: BAJAJELEC | C50: 533.6 | D50: 535.57 | E50: 522.33 | F50: 511.07 | G50: 497.83 | H50: 546.83 | I50: 560.07 | J50: 571.33 | K50: 548.8 | L50: 524.3 | M50: 4.26598
A51: 41 | B51: BAJAJFINSV | C51: 6042.25 | D51: 6043.32 | E51: 5929.73 | F51: 5817.22 | G51: 5703.63 | H51: 6155.83 | I51: 6269.42 | J51: 6381.93 | K51: 6156.9 | L51: 5930.8 | M51: 2.64768
A52: 42 | B52: BAJAJHIND | C52: 7.35 | D52: 7.42 | E52: 7.28 | F52: 7.22 | G52: 7.08 | H52: 7.48 | I52: 7.62 | J52: 7.68 | K52: 7.55 | L52: 7.35 | M52: 12.68631
A53: 43 | B53: BAJAJHLDNG | C53: 2769.95 | D53: 2781.78 | E53: 2748.57 | F53: 2727.18 | G53: 2693.97 | H53: 2803.17 | I53: 2836.38 | J53: 2857.77 | K53: 2815 | L53: 2760.4 | M53: 0.09574
A54: 44 | B54: BAJFINANCE | C54: 2109.9 | D54: 2118.63 | E54: 2092.27 | F54: 2074.63 | G54: 2048.27 | H54: 2136.27 | I54: 2162.63 | J54: 2180.27 | K54: 2145 | L54: 2101 | M54: 13.23397
A55: 45 | B55: BALKRISIND | C55: 1134.6 | D55: 1137.50 | E55: 1122.10 | F55: 1109.60 | G55: 1094.20 | H55: 1150.00 | I55: 1165.40 | J55: 1177.90 | K55: 1152.9 | L55: 1125 | M55: 3.20097
A56: 46 | B56: BALLARPUR | C56: 11.2 | D56: 11.38 | E56: 10.92 | F56: 10.63 | G56: 10.17 | H56: 11.67 | I56: 12.13 | J56: 12.42 | K56: 11.85 | L56: 11.1 | M56: 5.35869
A57: 47 | B57: BALMLAWRIE | C57: 228.6 | D57: 229.35 | E57: 225.20 | F57: 221.80 | G57: 217.65 | H57: 232.75 | I57: 236.90 | J57: 240.30 | K57: 233.5 | L57: 225.95 | M57: 1.55165
A58: 48 | B58: BALRAMCHIN | C58: 71.45 | D58: 72.20 | E58: 70.20 | F58: 68.95 | G58: 66.95 | H58: 73.45 | I58: 75.45 | J58: 76.70 | K58: 74.2 | L58: 70.95 | M58: 75.74117
A59: 49 | B59: BANKBARODA | C59: 136.85 | D59: 137.50 | E59: 135.15 | F59: 133.45 | G59: 131.10 | H59: 139.20 | I59: 141.55 | J59: 143.25 | K59: 139.85 | L59: 135.8 | M59: 131.16608
A60: 50 | B60: BANKINDIA | C60: 98.6 | D60: 99.55 | E60: 97.20 | F60: 95.80 | G60: 93.45 | H60: 100.95 | I60: 103.30 | J60: 104.70 | K60: 101.9 | L60: 98.15 | M60: 72.44763
A61: 51 | B61: BASF | C61: 2027.2 | D61: 2022.25 | E61: 1985.95 | F61: 1944.70 | G61: 1908.40 | H61: 2063.50 | I61: 2099.80 | J61: 2141.05 | K61: 2058.55 | L61: 1981 | M61: 0.11351
A62: 52 | B62: BATAINDIA | C62: 779.5 | D62: 784.33 | E62: 768.67 | F62: 757.83 | G62: 742.17 | H62: 795.17 | I62: 810.83 | J62: 821.67 | K62: 800 | L62: 773.5 | M62: 13.2255
A63: 53 | B63: BBTC | C63: 1612.75 | D63: 1612.02 | E63: 1562.73 | F63: 1512.72 | G63: 1463.43 | H63: 1662.03 | I63: 1711.32 | J63: 1761.33 | K63: 1661.3 | L63: 1562 | M63: 7.24583
A64: 54 | B64: BEL | C64: 114.4 | D64: 116.05 | E64: 112.20 | F64: 110.00 | G64: 106.15 | H64: 118.25 | I64: 122.10 | J64: 124.30 | K64: 119.9 | L64: 113.85 | M64: 90.4182
A65: 55 | B65: BEML | C65: 925.15 | D65: 931.80 | E65: 914.35 | F65: 903.55 | G65: 886.10 | H65: 942.60 | I65: 960.05 | J65: 970.85 | K65: 949.25 | L65: 921 | M65: 7.57635
A66: 56 | B66: BERGEPAINT | C66: 298.2 | D66: 295.77 | E66: 290.53 | F66: 282.87 | G66: 277.63 | H66: 303.43 | I66: 308.67 | J66: 316.33 | K66: 301 | L66: 288.1 | M66: 27.80225
A67: 57 | B67: BFUTILITIE | C67: 380.55 | D67: 383.65 | E67: 373.90 | F67: 367.25 | G67: 357.50 | H67: 390.30 | I67: 400.05 | J67: 406.70 | K67: 393.4 | L67: 377 | M67: 4.69721
A68: 58 | B68: BGRENERGY | C68: 106.45 | D68: 107.33 | E68: 101.82 | F68: 97.18 | G68: 91.67 | H68: 111.97 | I68: 117.48 | J68: 122.12 | K68: 112.85 | L68: 102.7 | M68: 21.38318
A69: 59 | B69: BHARATFIN | C69: 1168.9 | D69: 1163.20 | E69: 1146.40 | F69: 1123.90 | G69: 1107.10 | H69: 1185.70 | I69: 1202.50 | J69: 1225.00 | K69: 1180 | L69: 1140.7 | M69: 5.80776
A70: 60 | B70: BHARATFORG | C70: 650.7 | D70: 656.33 | E70: 643.12 | F70: 635.53 | G70: 622.32 | H70: 663.92 | I70: 677.13 | J70: 684.72 | K70: 669.55 | L70: 648.75 | M70: 13.74402
A71: 61 | B71: BHARTIARTL | C71: 373.6 | D71: 376.02 | E71: 368.83 | F71: 364.07 | G71: 356.88 | H71: 380.78 | I71: 387.97 | J71: 392.73 | K71: 383.2 | L71: 371.25 | M71: 107.96716
A72: 62 | B72: BHEL | C72: 83.65 | D72: 83.65 | E72: 82.35 | F72: 81.05 | G72: 79.75 | H72: 84.95 | I72: 86.25 | J72: 87.55 | K72: 84.95 | L72: 82.35 | M72: 164.9438
A73: 63 | B73: BHUSANSTL | C73: 42.6 | D73: 42.60 | E73: 42.60 | F73: 42.60 | G73: 42.60 | H73: 42.60 | I73: 42.60 | J73: 42.60 | K73: 42.6 | L73: 42.6 | M73: 2.7388
A74: 64 | B74: BIOCON | C74: 665.4 | D74: 668.78 | E74: 658.37 | F74: 651.33 | G74: 640.92 | H74: 675.82 | I74: 686.23 | J74: 693.27 | K74: 679.2 | L74: 661.75 | M74: 51.14062
A75: 65 | B75: BIRLACORPN | C75: 742.25 | D75: 742.83 | E75: 736.77 | F75: 731.28 | G75: 725.22 | H75: 748.32 | I75: 754.38 | J75: 759.87 | K75: 748.9 | L75: 737.35 | M75: 0.38066
A76: 66 | B76: BLISSGVS | C76: 177.5 | D76: 178.40 | E76: 175.90 | F76: 174.30 | G76: 171.80 | H76: 180.00 | I76: 182.50 | J76: 184.10 | K76: 180.9 | L76: 176.8 | M76: 1.87871
A77: 67 | B77: BLUEDART | C77: 3449.9 | D77: 3436.63 | E77: 3403.27 | F77: 3356.63 | G77: 3323.27 | H77: 3483.27 | I77: 3516.63 | J77: 3563.27 | K77: 3470 | L77: 3390 | M77: 0.02962
A78: 68 | B78: BLUESTARCO | C78: 700.75 | D78: 701.55 | E78: 699.20 | F78: 697.65 | G78: 695.30 | H78: 703.10 | I78: 705.45 | J78: 707.00 | K78: 703.9 | L78: 700 | M78: 0.46097
A79: 69 | B79: BOMDYEING | C79: 241.05 | D79: 246.68 | E79: 218.97 | F79: 196.88 | G79: 169.17 | H79: 268.77 | I79: 296.48 | J79: 318.57 | K79: 274.4 | L79: 224.6 | M79: 73.65976
A80: 70 | B80: BOSCHLTD | C80: 18367.5 | D80: 18399.15 | E80: 18103.35 | F80: 17839.20 | G80: 17543.40 | H80: 18663.30 | I80: 18959.10 | J80: 19223.25 | K80: 18694.95 | L80: 18135 | M80: 0.32745
A81: 71 | B81: BPCL | C81: 403.95 | D81: 401.53 | E81: 395.37 | F81: 386.78 | G81: 380.62 | H81: 410.12 | I81: 416.28 | J81: 424.87 | K81: 407.7 | L81: 392.95 | M81: 88.07443
A82: 72 | B82: BRFL | C82: 21.15 | D82: 21.50 | E82: 20.80 | F82: 20.45 | G82: 19.75 | H82: 21.85 | I82: 22.55 | J82: 22.90 | K82: 22.2 | L82: 21.15 | M82: 0.395
A83: 73 | B83: BRIGADE | C83: 245.2 | D83: 246.07 | E83: 242.18 | F83: 239.17 | G83: 235.28 | H83: 249.08 | I83: 252.97 | J83: 255.98 | K83: 249.95 | L83: 243.05 | M83: 0.31111
A84: 74 | B84: BRITANNIA | C84: 5923.95 | D84: 5899.92 | E84: 5784.03 | F84: 5644.12 | G84: 5528.23 | H84: 6039.83 | I84: 6155.72 | J84: 6295.63 | K84: 6015.8 | L84: 5760 | M84: 3.10385
A85: 75 | B85: BSE | C85: 829.2 | D85: 832.07 | E85: 824.13 | F85: 819.07 | G85: 811.13 | H85: 837.13 | I85: 845.07 | J85: 850.13 | K85: 840 | L85: 827 | M85: 1.22749
A86: 77 | B86: CADILAHC | C86: 361.3 | D86: 363.82 | E86: 356.68 | F86: 352.07 | G86: 344.93 | H86: 368.43 | I86: 375.57 | J86: 380.18 | K86: 370.95 | L86: 359.2 | M86: 31.16812
A87: 78 | B87: CANBK | C87: 257.15 | D87: 256.32 | E87: 253.13 | F87: 249.12 | G87: 245.93 | H87: 260.33 | I87: 263.52 | J87: 267.53 | K87: 259.5 | L87: 252.3 | M87: 64.13844
A88: 79 | B88: CANFINHOME | C88: 378.85 | D88: 383.97 | E88: 371.08 | F88: 363.32 | G88: 350.43 | H88: 391.73 | I88: 404.62 | J88: 412.38 | K88: 396.85 | L88: 376.2 | M88: 10.8801
A89: 80 | B89: CAPF | C89: 570.75 | D89: 563.88 | E89: 552.87 | F89: 534.98 | G89: 523.97 | H89: 581.77 | I89: 592.78 | J89: 610.67 | K89: 574.9 | L89: 546 | M89: 14.83913
A90: 81 | B90: CAPLIPOINT | C90: 501.4 | D90: 504.40 | E90: 493.80 | F90: 486.20 | G90: 475.60 | H90: 512.00 | I90: 522.60 | J90: 530.20 | K90: 515 | L90: 496.8 | M90: 0.48507
A91: 82 | B91: CARBORUNIV | C91: 348.6 | D91: 349.15 | E91: 344.45 | F91: 340.30 | G91: 335.60 | H91: 353.30 | I91: 358.00 | J91: 362.15 | K91: 353.85 | L91: 345 | M91: 1.35872
A92: 83 | B92: CARERATING | C92: 1296.35 | D92: 1295.40 | E92: 1287.95 | F92: 1279.55 | G92: 1272.10 | H92: 1303.80 | I92: 1311.25 | J92: 1319.65 | K92: 1302.85 | L92: 1287 | M92: 0.55209
A93: 84 | B93: CASTROLIND | C93: 170.9 | D93: 171.60 | E93: 168.30 | F93: 165.70 | G93: 162.40 | H93: 174.20 | I93: 177.50 | J93: 180.10 | K93: 174.9 | L93: 169 | M93: 14.39862
A94: 85 | B94: CCL | C94: 301.2 | D94: 300.43 | E94: 291.87 | F94: 282.53 | G94: 273.97 | H94: 309.77 | I94: 318.33 | J94: 327.67 | K94: 309 | L94: 291.1 | M94: 5.23651
A95: 86 | B95: CDSL | C95: 291.2 | D95: 291.90 | E95: 286.80 | F95: 282.40 | G95: 277.30 | H95: 296.30 | I95: 301.40 | J95: 305.80 | K95: 297 | L95: 287.5 | M95: 4.31687
A96: 87 | B96: CEATLTD | C96: 1361.85 | D96: 1370.32 | E96: 1345.63 | F96: 1329.42 | G96: 1304.73 | H96: 1386.53 | I96: 1411.22 | J96: 1427.43 | K96: 1395 | L96: 1354.1 | M96: 4.82384
A97: 88 | B97: CENTRALBK | C97: 73.55 | D97: 73.57 | E97: 72.33 | F97: 71.12 | G97: 69.88 | H97: 74.78 | I97: 76.02 | J97: 77.23 | K97: 74.8 | L97: 72.35 | M97: 7.56991
A98: 89 | B98: CENTURYPLY | C98: 279.35 | D98: 280.25 | E98: 276.10 | F98: 272.85 | G98: 268.70 | H98: 283.50 | I98: 287.65 | J98: 290.90 | K98: 284.4 | L98: 277 | M98: 1.44526
A99: 90 | B99: CENTURYTEX | C99: 947.15 | D99: 953.50 | E99: 937.00 | F99: 926.85 | G99: 910.35 | H99: 963.65 | I99: 980.15 | J99: 990.30 | K99: 970 | L99: 943.35 | M99: 10.60932
A100: 91 | B100: CERA | C100: 2806.6 | D100: 2823.87 | E100: 2782.73 | F100: 2758.87 | G100: 2717.73 | H100: 2847.73 | I100: 2888.87 | J100: 2912.73 | K100: 2865 | L100: 2800 | M100: 0.08645
A101: 92 | B101: CGPOWER | C101: 61.5 | D101: 66.15 | E101: 55.85 | F101: 50.20 | G101: 39.90 | H101: 71.80 | I101: 82.10 | J101: 87.75 | K101: 76.45 | L101: 60.5 | M101: 216.26153
A102: 93 | B102: CHAMBLFERT | C102: 169 | D102: 170.13 | E102: 167.37 | F102: 165.73 | G102: 162.97 | H102: 171.77 | I102: 174.53 | J102: 176.17 | K102: 172.9 | L102: 168.5 | M102: 2.41596
A103: 94 | B103: CHENNPETRO | C103: 283.4 | D103: 283.20 | E103: 279.80 | F103: 276.20 | G103: 272.80 | H103: 286.80 | I103: 290.20 | J103: 293.80 | K103: 286.6 | L103: 279.6 | M103: 8.40782
A104: 95 | B104: CHOLAFIN | C104: 1528.7 | D104: 1534.57 | E104: 1514.13 | F104: 1499.57 | G104: 1479.13 | H104: 1549.13 | I104: 1569.57 | J104: 1584.13 | K104: 1555 | L104: 1520 | M104: 2.06706
A105: 96 | B105: CIPLA | C105: 524.8 | D105: 526.50 | E105: 519.35 | F105: 513.90 | G105: 506.75 | H105: 531.95 | I105: 539.10 | J105: 544.55 | K105: 533.65 | L105: 521.05 | M105: 35.39206
A106: 97 | B106: COALINDIA | C106: 296.25 | D106: 296.57 | E106: 289.68 | F106: 283.12 | G106: 276.23 | H106: 303.13 | I106: 310.02 | J106: 316.58 | K106: 303.45 | L106: 290 | M106: 117.97649
A107: 98 | B107: COCHINSHIP | C107: 504.3 | D107: 505.70 | E107: 493.60 | F107: 482.90 | G107: 470.80 | H107: 516.40 | I107: 528.50 | J107: 539.20 | K107: 517.8 | L107: 495 | M107: 2.00172
A108: 99 | B108: COFFEEDAY | C108: 298.6 | D108: 299.27 | E108: 295.53 | F108: 292.47 | G108: 288.73 | H108: 302.33 | I108: 306.07 | J108: 309.13 | K108: 303 | L108: 296.2 | M108: 0.69325
A109: 100 | B109: COLPAL | C109: 1259.7 | D109: 1258.82 | E109: 1248.93 | F109: 1238.17 | G109: 1228.28 | H109: 1269.58 | I109: 1279.47 | J109: 1290.23 | K109: 1268.7 | L109: 1248.05 | M109: 8.20342
A110: 101 | B110: CONCOR | C110: 1379.05 | D110: 1375.68 | E110: 1351.37 | F110: 1323.68 | G110: 1299.37 | H110: 1403.37 | I110: 1427.68 | J110: 1455.37 | K110: 1400 | L110: 1348 | M110: 32.16694
A111: 102 | B111: COROMANDEL | C111: 450.95 | D111: 454.92 | E111: 445.43 | F111: 439.92 | G111: 430.43 | H111: 460.43 | I111: 469.92 | J111: 475.43 | K111: 464.4 | L111: 449.4 | M111: 4.53716
A112: 103 | B112: COX&KINGS | C112: 215.5 | D112: 213.68 | E112: 210.42 | F112: 205.33 | G112: 202.07 | H112: 218.77 | I112: 222.03 | J112: 227.12 | K112: 216.95 | L112: 208.6 | M112: 2.13431
A113: 104 | B113: CRISIL | C113: 1715.05 | D113: 1763.02 | E113: 1654.03 | F113: 1593.02 | G113: 1484.03 | H113: 1824.03 | I113: 1933.02 | J113: 1994.03 | K113: 1872 | L113: 1702 | M113: 1.20546
A114: 105 | B114: CROMPTON | C114: 226.75 | D114: 225.82 | E114: 223.13 | F114: 219.52 | G114: 216.83 | H114: 229.43 | I114: 232.12 | J114: 235.73 | K114: 228.5 | L114: 222.2 | M114: 11.48961
A115: 106 | B115: CUB | C115: 196.35 | D115: 194.42 | E115: 185.48 | F115: 174.62 | G115: 165.68 | H115: 205.28 | I115: 214.22 | J115: 225.08 | K115: 203.35 | L115: 183.55 | M115: 51.59761
A116: 107 | B116: CUMMINSIND | C116: 701.35 | D116: 706.22 | E116: 694.18 | F116: 687.02 | G116: 674.98 | H116: 713.38 | I116: 725.42 | J116: 732.58 | K116: 718.25 | L116: 699.05 | M116: 6.16972
A117: 108 | B117: CYIENT | C117: 736.8 | D117: 743.93 | E117: 723.97 | F117: 711.13 | G117: 691.17 | H117: 756.77 | I117: 776.73 | J117: 789.57 | K117: 763.9 | L117: 731.1 | M117: 1.4755
A118: 109 | B118: DABUR | C118: 383.3 | D118: 383.68 | E118: 380.37 | F118: 377.43 | G118: 374.12 | H118: 386.62 | I118: 389.93 | J118: 392.87 | K118: 387 | L118: 380.75 | M118: 32.23114
A119: 110 | B119: DBCORP | C119: 259.6 | D119: 260.77 | E119: 257.18 | F119: 254.77 | G119: 251.18 | H119: 263.18 | I119: 266.77 | J119: 269.18 | K119: 264.35 | L119: 258.35 | M119: 1.62825
A120: 111 | B120: DBL | C120: 832.35 | D120: 847.45 | E120: 745.00 | F120: 657.65 | G120: 555.20 | H120: 934.80 | I120: 1037.25 | J120: 1124.60 | K120: 949.9 | L120: 760.1 | M120: 97.44603
A121: 112 | B121: DBREALTY | C121: 49.25 | D121: 49.78 | E121: 48.47 | F121: 47.68 | G121: 46.37 | H121: 50.57 | I121: 51.88 | J121: 52.67 | K121: 51.1 | L121: 49 | M121: 1.98334
A122: 113 | B122: DCAL | C122: 308.8 | D122: 311.67 | E122: 302.13 | F122: 295.47 | G122: 285.93 | H122: 318.33 | I122: 327.87 | J122: 334.53 | K122: 321.2 | L122: 305 | M122: 0.74208
A123: 114 | B123: DCBBANK | C123: 185.2 | D123: 185.77 | E123: 183.78 | F123: 182.37 | G123: 180.38 | H123: 187.18 | I123: 189.17 | J123: 190.58 | K123: 187.75 | L123: 184.35 | M123: 7.62404
A124: 115 | B124: DCMSHRIRAM | C124: 283.55 | D124: 280.30 | E124: 274.60 | F124: 265.65 | G124: 259.95 | H124: 289.25 | I124: 294.95 | J124: 303.90 | K124: 286 | L124: 271.35 | M124: 2.83761
A125: 116 | B125: DEEPAKFERT | C125: 324.05 | D125: 331.55 | E125: 314.05 | F125: 304.05 | G125: 286.55 | H125: 341.55 | I125: 359.05 | J125: 369.05 | K125: 349.05 | L125: 321.55 | M125: 2.16933
A126: 117 | B126: DELTACORP | C126: 239.35 | D126: 241.88 | E126: 235.12 | F126: 230.88 | G126: 224.12 | H126: 246.12 | I126: 252.88 | J126: 257.12 | K126: 248.65 | L126: 237.65 | M126: 19.51823
A127: 118 | B127: DEN | C127: 93.3 | D127: 94.92 | E127: 90.48 | F127: 87.67 | G127: 83.23 | H127: 97.73 | I127: 102.17 | J127: 104.98 | K127: 99.35 | L127: 92.1 | M127: 5.95438
A128: 119 | B128: DENABANK | C128: 16.6 | D128: 16.62 | E128: 16.43 | F128: 16.27 | G128: 16.08 | H128: 16.78 | I128: 16.97 | J128: 17.13 | K128: 16.8 | L128: 16.45 | M128: 4.55457
A129: 120 | B129: DHFL | C129: 613.15 | D129: 621.70 | E129: 601.45 | F129: 589.75 | G129: 569.50 | H129: 633.40 | I129: 653.65 | J129: 665.35 | K129: 641.95 | L129: 610 | M129: 91.1341
A130: 121 | B130: DISHTV | C130: 73 | D130: 73.05 | E130: 71.30 | F130: 69.60 | G130: 67.85 | H130: 74.75 | I130: 76.50 | J130: 78.20 | K130: 74.8 | L130: 71.35 | M130: 135.48547
A131: 122 | B131: DIVISLAB | C131: 1047.45 | D131: 1053.67 | E131: 1038.08 | F131: 1028.72 | G131: 1013.13 | H131: 1063.03 | I131: 1078.62 | J131: 1087.98 | K131: 1069.25 | L131: 1044.3 | M131: 23.0011
A132: 123 | B132: DIXON | C132: 3251.45 | D132: 3286.57 | E132: 3139.88 | F132: 3028.32 | G132: 2881.63 | H132: 3398.13 | I132: 3544.82 | J132: 3656.38 | K132: 3433.25 | L132: 3175 | M132: 0.29274
A133: 124 | B133: DLF | C133: 209.9 | D133: 209.02 | E133: 206.03 | F133: 202.17 | G133: 199.18 | H133: 212.88 | I133: 215.87 | J133: 219.73 | K133: 212 | L133: 205.15 | M133: 77.97171
A134: 125 | B134: DMART | C134: 1572.15 | D134: 1563.22 | E134: 1515.43 | F134: 1458.72 | G134: 1410.93 | H134: 1619.93 | I134: 1667.72 | J134: 1724.43 | K134: 1611 | L134: 1506.5 | M134: 149.93077
A135: 126 | B135: DREDGECORP | C135: 558.25 | D135: 562.68 | E135: 550.57 | F135: 542.88 | G135: 530.77 | H135: 570.37 | I135: 582.48 | J135: 590.17 | K135: 574.8 | L135: 555 | M135: 0.67788
A136: 127 | B136: DRREDDY | C136: 1936.6 | D136: 1944.78 | E136: 1917.77 | F136: 1898.93 | G136: 1871.92 | H136: 1963.62 | I136: 1990.63 | J136: 2009.47 | K136: 1971.8 | L136: 1925.95 | M136: 18.60178
A137: 128 | B137: ECLERX | C137: 1321.65 | D137: 1314.80 | E137: 1305.60 | F137: 1289.55 | G137: 1280.35 | H137: 1330.85 | I137: 1340.05 | J137: 1356.10 | K137: 1324 | L137: 1298.75 | M137: 0.18935
A138: 129 | B138: EDELWEISS | C138: 326.3 | D138: 327.57 | E138: 320.33 | F138: 314.37 | G138: 307.13 | H138: 333.53 | I138: 340.77 | J138: 346.73 | K138: 334.8 | L138: 321.6 | M138: 18.55528
A139: 130 | B139: EICHERMOT | C139: 30780.65 | D139: 30818.80 | E139: 30138.60 | F139: 29496.55 | G139: 28816.35 | H139: 31460.85 | I139: 32141.05 | J139: 32783.10 | K139: 31499 | L139: 30176.75 | M139: 0.91548
A140: 131 | B140: EIDPARRY | C140: 236.8 | D140: 238.10 | E140: 232.20 | F140: 227.60 | G140: 221.70 | H140: 242.70 | I140: 248.60 | J140: 253.20 | K140: 244 | L140: 233.5 | M140: 1.487
A141: 132 | B141: EIHOTEL | C141: 176.75 | D141: 175.87 | E141: 172.08 | F141: 167.42 | G141: 163.63 | H141: 180.53 | I141: 184.32 | J141: 188.98 | K141: 179.65 | L141: 171.2 | M141: 4.7114
A142: 133 | B142: EMAMILTD | C142: 1046 | D142: 1049.60 | E142: 1037.40 | F142: 1028.80 | G142: 1016.60 | H142: 1058.20 | I142: 1070.40 | J142: 1079.00 | K142: 1061.8 | L142: 1041 | M142: 0.34216
A143: 134 | B143: ENDURANCE | C143: 1309.5 | D143: 1298.20 | E143: 1276.40 | F143: 1243.30 | G143: 1221.50 | H143: 1331.30 | I143: 1353.10 | J143: 1386.20 | K143: 1320 | L143: 1265.1 | M143: 0.43565
A144: 135 | B144: ENGINERSIN | C144: 131.5 | D144: 132.10 | E144: 129.70 | F144: 127.90 | G144: 125.50 | H144: 133.90 | I144: 136.30 | J144: 138.10 | K144: 134.5 | L144: 130.3 | M144: 26.53415
A145: 136 | B145: EQUITAS | C145: 164 | D145: 163.27 | E145: 162.03 | F145: 160.07 | G145: 158.83 | H145: 165.23 | I145: 166.47 | J145: 168.43 | K145: 164.5 | L145: 161.3 | M145: 18.74023
A146: 137 | B146: ERIS | C146: 806.6 | D146: 803.45 | E146: 794.90 | F146: 783.20 | G146: 774.65 | H146: 815.15 | I146: 823.70 | J146: 835.40 | K146: 812 | L146: 791.75 | M146: 0.3955
A147: 138 | B147: EROSMEDIA | C147: 148.7 | D147: 150.58 | E147: 143.72 | F147: 138.73 | G147: 131.87 | H147: 155.57 | I147: 162.43 | J147: 167.42 | K147: 157.45 | L147: 145.6 | M147: 12.29915
A148: 139 | B148: ESCORTS | C148: 932.45 | D148: 929.53 | E148: 915.22 | F148: 897.98 | G148: 883.67 | H148: 946.77 | I148: 961.08 | J148: 978.32 | K148: 943.85 | L148: 912.3 | M148: 13.98441
A149: 140 | B149: EVEREADY | C149: 246.25 | D149: 247.07 | E149: 241.18 | F149: 236.12 | G149: 230.23 | H149: 252.13 | I149: 258.02 | J149: 263.08 | K149: 252.95 | L149: 242 | M149: 1.48459
A150: 141 | B150: EXIDEIND | C150: 259.7 | D150: 261.17 | E150: 256.63 | F150: 253.57 | G150: 249.03 | H150: 264.23 | I150: 268.77 | J150: 271.83 | K150: 265.7 | L150: 258.1 | M150: 26.00387
A151: 142 | B151: FCONSUMER | C151: 58.25 | D151: 57.88 | E151: 56.77 | F151: 55.28 | G151: 54.17 | H151: 59.37 | I151: 60.48 | J151: 61.97 | K151: 59 | L151: 56.4 | M151: 29.51787
A152: 143 | B152: FEDERALBNK | C152: 84.8 | D152: 85.13 | E152: 83.82 | F152: 82.83 | G152: 81.52 | H152: 86.12 | I152: 87.43 | J152: 88.42 | K152: 86.45 | L152: 84.15 | M152: 98.54325
A153: 144 | B153: FINCABLES | C153: 685.1 | D153: 684.83 | E153: 675.17 | F153: 665.23 | G153: 655.57 | H153: 694.77 | I153: 704.43 | J153: 714.37 | K153: 694.5 | L153: 674.9 | M153: 0.62528
A154: 145 | B154: FINPIPE | C154: 617.9 | D154: 621.07 | E154: 609.03 | F154: 600.17 | G154: 588.13 | H154: 629.93 | I154: 641.97 | J154: 650.83 | K154: 633.1 | L154: 612.2 | M154: 0.35055
A155: 146 | B155: FLFL | C155: 448.05 | D155: 444.33 | E155: 434.77 | F155: 421.48 | G155: 411.92 | H155: 457.62 | I155: 467.18 | J155: 480.47 | K155: 453.9 | L155: 431.05 | M155: 1.44618
A156: 147 | B156: FSL | C156: 72.65 | D156: 72.40 | E156: 71.05 | F156: 69.45 | G156: 68.10 | H156: 74.00 | I156: 75.35 | J156: 76.95 | K156: 73.75 | L156: 70.8 | M156: 63.20671
A157: 148 | B157: GAIL | C157: 350.9 | D157: 349.02 | E157: 344.98 | F157: 339.07 | G157: 335.03 | H157: 354.93 | I157: 358.97 | J157: 364.88 | K157: 353.05 | L157: 343.1 | M157: 111.87995
A158: 149 | B158: GATI | C158: 97.2 | D158: 98.18 | E158: 95.62 | F158: 94.03 | G158: 91.47 | H158: 99.77 | I158: 102.33 | J158: 103.92 | K158: 100.75 | L158: 96.6 | M158: 5.89677
A159: 150 | B159: GDL | C159: 185.4 | D159: 188.57 | E159: 178.43 | F159: 171.47 | G159: 161.33 | H159: 195.53 | I159: 205.67 | J159: 212.63 | K159: 198.7 | L159: 181.6 | M159: 3.92263
A160: 151 | B160: GEPIL | C160: 858.4 | D160: 857.80 | E160: 848.75 | F160: 839.10 | G160: 830.05 | H160: 867.45 | I160: 876.50 | J160: 886.15 | K160: 866.85 | L160: 848.15 | M160: 0.26378
A161: 152 | B161: GESHIP | C161: 328.8 | D161: 330.37 | E161: 324.73 | F161: 320.67 | G161: 315.03 | H161: 334.43 | I161: 340.07 | J161: 344.13 | K161: 336 | L161: 326.3 | M161: 0.24675
A162: 153 | B162: GET&D | C162: 309.7 | D162: 316.57 | E162: 298.13 | F162: 286.57 | G162: 268.13 | H162: 328.13 | I162: 346.57 | J162: 358.13 | K162: 335 | L162: 305 | M162: 2.11128
A163: 154 | B163: GHCL | C163: 283.95 | D163: 286.00 | E163: 280.10 | F163: 276.25 | G163: 270.35 | H163: 289.85 | I163: 295.75 | J163: 299.60 | K163: 291.9 | L163: 282.15 | M163: 1.43214
A164: 155 | B164: GICRE | C164: 724.55 | D164: 727.83 | E164: 700.72 | F164: 676.88 | G164: 649.77 | H164: 751.67 | I164: 778.78 | J164: 802.62 | K164: 754.95 | L164: 704 | M164: 1.62447
A165: 156 | B165: GILLETTE | C165: 6572.4 | D165: 6569.33 | E165: 6539.07 | F165: 6505.73 | G165: 6475.47 | H165: 6602.67 | I165: 6632.93 | J165: 6666.27 | K165: 6599.6 | L165: 6536 | M165: 0.0949
A166: 157 | B166: GLAXO | C166: 2546.9 | D166: 2523.42 | E166: 2493.53 | F166: 2440.17 | G166: 2410.28 | H166: 2576.78 | I166: 2606.67 | J166: 2660.03 | K166: 2553.3 | L166: 2470.05 | M166: 0.19902
A167: 158 | B167: GLENMARK | C167: 535.95 | D167: 530.90 | E167: 521.55 | F167: 507.15 | G167: 497.80 | H167: 545.30 | I167: 554.65 | J167: 569.05 | K167: 540.25 | L167: 516.5 | M167: 14.66265
A168: 159 | B168: GMDCLTD | C168: 116.15 | D168: 116.90 | E168: 114.45 | F168: 112.75 | G168: 110.30 | H168: 118.60 | I168: 121.05 | J168: 122.75 | K168: 119.35 | L168: 115.2 | M168: 3.29662
A169: 160 | B169: GMRINFRA | C169: 18.15 | D169: 18.02 | E169: 17.63 | F169: 17.12 | G169: 16.73 | H169: 18.53 | I169: 18.92 | J169: 19.43 | K169: 18.4 | L169: 17.5 | M169: 678.18479
A170: 161 | B170: GNFC | C170: 477.35 | D170: 477.40 | E170: 473.05 | F170: 468.75 | G170: 464.40 | H170: 481.70 | I170: 486.05 | J170: 490.35 | K170: 481.75 | L170: 473.1 | M170: 5.70582
A171: 162 | B171: GODFRYPHLP | C171: 753.3 | D171: 758.13 | E171: 742.62 | F171: 731.93 | G171: 716.42 | H171: 768.82 | I171: 784.33 | J171: 795.02 | K171: 773.65 | L171: 747.45 | M171: 0.69468
A172: 163 | B172: GODREJAGRO | C172: 633.75 | D172: 637.62 | E172: 627.23 | F172: 620.72 | G172: 610.33 | H172: 644.13 | I172: 654.52 | J172: 661.03 | K172: 648 | L172: 631.1 | M172: 0.91517
A173: 164 | B173: GODREJCP | C173: 1139.15 | D173: 1147.62 | E173: 1126.73 | F173: 1114.32 | G173: 1093.43 | H173: 1160.03 | I173: 1180.92 | J173: 1193.33 | K173: 1168.5 | L173: 1135.2 | M173: 15.1912
A174: 165 | B174: GODREJIND | C174: 596.7 | D174: 598.58 | E174: 577.27 | F174: 557.83 | G174: 536.52 | H174: 618.02 | I174: 639.33 | J174: 658.77 | K174: 619.9 | L174: 579.15 | M174: 9.99744
A175: 166 | B175: GODREJPROP | C175: 731.05 | D175: 734.73 | E175: 722.57 | F175: 714.08 | G175: 701.92 | H175: 743.22 | I175: 755.38 | J175: 763.87 | K175: 746.9 | L175: 726.25 | M175: 4.04286
A176: 167 | B176: GPPL | C176: 115.45 | D176: 115.62 | E176: 114.23 | F176: 113.02 | G176: 111.63 | H176: 116.83 | I176: 118.22 | J176: 119.43 | K176: 117 | L176: 114.4 | M176: 2.36204
A177: 168 | B177: GRANULES | C177: 78.4 | D177: 79.13 | E177: 77.27 | F177: 76.13 | G177: 74.27 | H177: 80.27 | I177: 82.13 | J177: 83.27 | K177: 81 | L177: 78 | M177: 38.79416
A178: 169 | B178: GRAPHITE | C178: 888.45 | D178: 887.68 | E178: 867.57 | F178: 846.68 | G178: 826.57 | H178: 908.57 | I178: 928.68 | J178: 949.57 | K178: 907.8 | L178: 866.8 | M178: 39.66413
A179: 170 | B179: GRASIM | C179: 1039.8 | D179: 1054.15 | E179: 1014.70 | F179: 989.60 | G179: 950.15 | H179: 1079.25 | I179: 1118.70 | J179: 1143.80 | K179: 1093.6 | L179: 1029.05 | M179: 14.36944
A180: 171 | B180: GREAVESCOT | C180: 132.65 | D180: 132.75 | E180: 131.15 | F180: 129.65 | G180: 128.05 | H180: 134.25 | I180: 135.85 | J180: 137.35 | K180: 134.35 | L180: 131.25 | M180: 5.27238
A181: 172 | B181: GREENPLY | C181: 259.05 | D181: 258.65 | E181: 257.20 | F181: 255.35 | G181: 253.90 | H181: 260.50 | I181: 261.95 | J181: 263.80 | K181: 260.1 | L181: 256.8 | M181: 0.58248
A182: 173 | B182: GRUH | C182: 709.8 | D182: 715.83 | E182: 693.97 | F182: 678.13 | G182: 656.27 | H182: 731.67 | I182: 753.53 | J182: 769.37 | K182: 737.7 | L182: 700 | M182: 10.39219
A183: 174 | B183: GSFC | C183: 116.25 | D183: 116.75 | E183: 115.25 | F183: 114.25 | G183: 112.75 | H183: 117.75 | I183: 119.25 | J183: 120.25 | K183: 118.25 | L183: 115.75 | M183: 11.9476
A184: 175 | B184: GSKCONS | C184: 6576.1 | D184: 6578.85 | E184: 6557.60 | F184: 6539.10 | G184: 6517.85 | H184: 6597.35 | I184: 6618.60 | J184: 6637.10 | K184: 6600.1 | L184: 6560.35 | M184: 0.06638
A185: 176 | B185: GSPL | C185: 179.35 | D185: 177.75 | E185: 175.50 | F185: 171.65 | G185: 169.40 | H185: 181.60 | I185: 183.85 | J185: 187.70 | K185: 180 | L185: 173.9 | M185: 3.60303
A186: 177 | B186: GUJALKALI | C186: 656.45 | D186: 658.33 | E186: 648.17 | F186: 639.88 | G186: 629.72 | H186: 666.62 | I186: 676.78 | J186: 685.07 | K186: 668.5 | L186: 650.05 | M186: 0.70441
A187: 178 | B187: GUJFLUORO | C187: 784.1 | D187: 782.92 | E187: 771.48 | F187: 758.87 | G187: 747.43 | H187: 795.53 | I187: 806.97 | J187: 819.58 | K187: 794.35 | L187: 770.3 | M187: 0.27294
A188: 179 | B188: GUJGASLTD | C188: 866.05 | D188: 863.02 | E188: 851.03 | F188: 836.02 | G188: 824.03 | H188: 878.03 | I188: 890.02 | J188: 905.03 | K188: 875 | L188: 848 | M188: 0.34591
A189: 180 | B189: GULFOILLUB | C189: 880.45 | D189: 879.65 | E189: 870.05 | F189: 859.65 | G189: 850.05 | H189: 890.05 | I189: 899.65 | J189: 910.05 | K189: 889.25 | L189: 869.25 | M189: 0.05027
A190: 181 | B190: GVKPIL | C190: 12.95 | D190: 13.03 | E190: 12.67 | F190: 12.38 | G190: 12.02 | H190: 13.32 | I190: 13.68 | J190: 13.97 | K190: 13.4 | L190: 12.75 | M190: 24.17393
A191: 182 | B191: HATHWAY | C191: 26.75 | D191: 27.47 | E191: 25.08 | F191: 23.42 | G191: 21.03 | H191: 29.13 | I191: 31.52 | J191: 33.18 | K191: 29.85 | L191: 25.8 | M191: 16.89566
A192: 183 | B192: HATSUN | C192: 727.1 | D192: 724.37 | E192: 713.73 | F192: 700.37 | G192: 689.73 | H192: 737.73 | I192: 748.37 | J192: 761.73 | K192: 735 | L192: 711 | M192: 0.13565
A193: 184 | B193: HAVELLS | C193: 544.15 | D193: 550.02 | E193: 537.03 | F193: 529.92 | G193: 516.93 | H193: 557.13 | I193: 570.12 | J193: 577.23 | K193: 563 | L193: 542.9 | M193: 15.21311
A194: 185 | B194: HCC | C194: 14.8 | D194: 15.03 | E194: 14.52 | F194: 14.23 | G194: 13.72 | H194: 15.32 | I194: 15.83 | J194: 16.12 | K194: 15.55 | L194: 14.75 | M194: 113.03328
A195: 186 | B195: HCL-INSYS | C195: 41.1 | D195: 41.97 | E195: 40.03 | F195: 38.97 | G195: 37.03 | H195: 43.03 | I195: 44.97 | J195: 46.03 | K195: 43.9 | L195: 40.9 | M195: 17.05451
A196: 187 | B196: HCLTECH | C196: 910.35 | D196: 908.73 | E196: 902.67 | F196: 894.98 | G196: 888.92 | H196: 916.42 | I196: 922.48 | J196: 930.17 | K196: 914.8 | L196: 901.05 | M196: 28.09322
A197: 188 | B197: HDFC | C197: 1833 | D197: 1822.90 | E197: 1807.30 | F197: 1781.60 | G197: 1766.00 | H197: 1848.60 | I197: 1864.20 | J197: 1889.90 | K197: 1838.5 | L197: 1797.2 | M197: 56.22276
A198: 189 | B198: HDFCBANK | C198: 2139.45 | D198: 2126.48 | E198: 2092.97 | F198: 2046.48 | G198: 2012.97 | H198: 2172.97 | I198: 2206.48 | J198: 2252.97 | K198: 2160 | L198: 2080 | M198: 99.09798
A199: 190 | B199: HDIL | C199: 26.5 | D199: 27.02 | E199: 25.58 | F199: 24.67 | G199: 23.23 | H199: 27.93 | I199: 29.37 | J199: 30.28 | K199: 28.45 | L199: 26.1 | M199: 66.52054
A200: 191 | B200: HEG | C200: 3541.2 | D200: 3532.60 | E200: 3491.70 | F200: 3442.20 | G200: 3401.30 | H200: 3582.10 | I200: 3623.00 | J200: 3672.50 | K200: 3573.5 | L200: 3483.1 | M200: 5.99846
A201: 192 | B201: HEIDELBERG | C201: 152.75 | D201: 152.40 | E201: 150.40 | F201: 148.05 | G201: 146.05 | H201: 154.75 | I201: 156.75 | J201: 159.10 | K201: 154.4 | L201: 150.05 | M201: 1.97639
A202: 193 | B202: HERITGFOOD | C202: 716.4 | D202: 712.13 | E202: 705.27 | F202: 694.13 | G202: 687.27 | H202: 723.27 | I202: 730.13 | J202: 741.27 | K202: 719 | L202: 701 | M202: 0.43497
A203: 194 | B203: HEROMOTOCO | C203: 3544.9 | D203: 3563.05 | E203: 3511.95 | F203: 3479.00 | G203: 3427.90 | H203: 3596.00 | I203: 3647.10 | J203: 3680.05 | K203: 3614.15 | L203: 3530.1 | M203: 7.07484
A204: 195 | B204: HEXAWARE | C204: 439.1 | D204: 442.57 | E204: 432.63 | F204: 426.17 | G204: 416.23 | H204: 449.03 | I204: 458.97 | J204: 465.43 | K204: 452.5 | L204: 436.1 | M204: 16.5996
A205: 196 | B205: HFCL | C205: 25.75 | D205: 25.95 | E205: 25.45 | F205: 25.15 | G205: 24.65 | H205: 26.25 | I205: 26.75 | J205: 27.05 | K205: 26.45 | L205: 25.65 | M205: 22.72873
A206: 197 | B206: HIMATSEIDE | C206: 349.65 | D206: 349.63 | E206: 345.02 | F206: 340.38 | G206: 335.77 | H206: 354.27 | I206: 358.88 | J206: 363.52 | K206: 354.25 | L206: 345 | M206: 0.34742
... 305 more rows

Sheet Bulk Deals
E6: Back To Main Page
A7: Subject : | B7: BULK DEAL | D7: =Main!B10 -> 2018-06-01
A9: Date | B9: Scrip code | C9: Scrip Name | D9: Client Name | E9: Buy / Sell | F9: Quantity Traded | G9: Trade Price / Wt.Avg.trade price | H9: Exchange
A10: 2018-05-31 | B10: 533260 | C10: CAREERP | D10: BHATIA SURESH HUF | E10: SELL | F10: 157,000 | G10: 108.3 | H10: BSE
A11: 2018-05-31 | B11: 533260 | C11: CAREERP | D11: SURESH BHATIA ASSOCIATES | E11: BUY | F11: 157,000 | G11: 108.3 | H11: BSE
A12: 2018-05-31 | B12: 531502 | C12: ESARIND | D12: PARAG RAMESHCHANDRA MALDE . | E12: BUY | F12: 215,000 | G12: 2.21 | H12: BSE
A13: 2018-05-31 | B13: 531502 | C13: ESARIND | D13: URVASHI MAYUR MEHTA . | E13: SELL | F13: 115,000 | G13: 2.21 | H13: BSE
A14: 2018-05-31 | B14: 531502 | C14: ESARIND | D14: AIGLET SUPPLIERS PVT LTD | E14: SELL | F14: 150,000 | G14: 2.21 | H14: BSE
A15: 2018-05-31 | B15: 538568 | C15: FRUTION | D15: OPTO FABRICS PRIVATE LIMITED | E15: SELL | F15: 44,101 | G15: 9.74 | H15: BSE
A16: 2018-05-31 | B16: 538568 | C16: FRUTION | D16: ELEVATE TRADING PRIVATE LIMITED | E16: BUY | F16: 44,101 | G16: 9.74 | H16: BSE
A17: 2018-05-31 | B17: 532997 | C17: KSK | D17: BP FINTRADE PRIVATE LIMITED | E17: SELL | F17: 637,207 | G17: 3.26 | H17: BSE
A18: 2018-05-31 | B18: 532997 | C18: KSK | D18: BP FINTRADE PRIVATE LIMITED | E18: BUY | F18: 2,637,207 | G18: 3.26 | H18: BSE
A19: 2018-05-31 | B19: 541337 | C19: MILEFUR | D19: ADROIT TRADELINK PRIVATE LIMITED | E19: BUY | F19: 99,000 | G19: 41.89 | H19: BSE
A20: 2018-05-31 | B20: 541337 | C20: MILEFUR | D20: CHINTAN GIRISHBHAI SHAH | E20: SELL | F20: 99,000 | G20: 41.74 | H20: BSE
A21: 2018-05-31 | B21: 541151 | C21: RIDINGS | D21: CORPORATE CAPITALVENTURES PRIVATE LIMITED | E21: BUY | F21: 88,000 | G21: 22.25 | H21: BSE
A22: 2018-05-31 | B22: 541151 | C22: RIDINGS | D22: ILABEN BIPINKUMAR NADIYA | E22: SELL | F22: 88,000 | G22: 22.25 | H22: BSE
A23: 2018-05-31 | B23: 539561 | C23: ROXY | D23: SHUKLA MITTAL | E23: SELL | F23: 50,000 | G23: 12.07 | H23: BSE
A24: 2018-05-31 | B24: 539561 | C24: ROXY | D24: KAMLESH PRAVINCHANDRA SHAH HUF | E24: BUY | F24: 35,000 | G24: 12.02 | H24: BSE
A25: 2018-05-31 | B25: 519238 | C25: SPTRSHI | D25: INDIRABEN RAVJIBHAI PATEL | E25: SELL | F25: 147,000 | G25: 7.04 | H25: BSE
A26: 2018-05-31 | B26: 517548 | C26: STARLITE | D26: DIVYA RAO JOGINAPALLY | E26: SELL | F26: 113,090 | G26: 28.4 | H26: BSE
A27: 2018-05-31 | B27: 517548 | C27: STARLITE | D27: DIVYA RAO JOGINAPALLY | E27: BUY | F27: 48,000 | G27: 28.76 | H27: BSE
A28: 2018-05-31 | B28: 539097 | C28: YOGYA | D28: RAJIV GUPTA | E28: SELL | F28: 160,000 | G28: 19.19 | H28: BSE
A29: 2018-05-31 | B29: 539097 | C29: YOGYA | D29: HANSABEN DIPAKBHAI PUJARA | E29: BUY | F29: 40,000 | G29: 19.19 | H29: BSE
A30: 2018-05-31 | B30: 539097 | C30: YOGYA | D30: goldenleap softech limited | E30: BUY | F30: 120,000 | G30: 19.19 | H30: BSE
A31: 2018-05-31 | B31: 522108 | C31: YUKEN | D31: UTSAV PRAMODKUMAR SHRIVASTAV | E31: BUY | F31: 38,000 | G31: 3900 | H31: BSE
A32: 2018-05-31 | B32: ATLANTA | C32: Atlanta Limited | D32: BP FINTRADE PRIVATE LIMITED | E32: BUY | F32: 494,047 | G32: 51.26 | H32: NSE
A33: 2018-05-31 | B33: CONCOR | C33: Container Corp of India | D33: BLACKROCK INDIA EQUITIES FUND (MAURITIUS) LIMITED | E33: BUY | F33: 1,258,704 | G33: 1379.41 | H33: NSE
A34: 2018-05-31 | B34: DMART | C34: Avenue Supermarts Limited | D34: BLACKROCK INDIA EQUITIES FUND (MAURITIUS) LIMITED | E34: BUY | F34: 5,662,291 | G34: 1575.55 | H34: NSE
A35: 2018-05-31 | B35: IDFCBANK | C35: IDFC Bank Limited | D35: BLACKROCK FUNDS INTERNATIONAL OPPORTUNITIES PORTF | E35: BUY | F35: 11,362,495 | G35: 40.76 | H35: NSE
A36: 2018-05-31 | B36: INDIGO | C36: InterGlobe Aviation Ltd | D36: BLACKROCK FUNDS INTERNATIONAL OPPORTUNITIES PORTF | E36: BUY | F36: 4,387,480 | G36: 1219.75 | H36: NSE
A37: 2018-05-31 | B37: JUSTDIAL | C37: Justdial Ltd. | D37: SHAASTRA SECURITIES TRADING PRIVATE LIMITED | E37: BUY | F37: 433,342 | G37: 594.71 | H37: NSE
A38: 2018-05-31 | B38: KSK | C38: KSK Energy Ventures Limit | D38: BP FINTRADE PRIVATE LIMITED | E38: BUY | F38: 3,055,001 | G38: 3.3 | H38: NSE
A39: 2018-05-31 | B39: MAHSEAMLES | C39: Maha Seamless Ltd | D39: GAGANDEEP CREDIT CAPITAL PVT. LTD. | E39: BUY | F39: 363,936 | G39: 425 | H39: NSE
A40: 2018-05-31 | B40: NARMADA | C40: Narmada Agrobase Limited | D40: VIVIDOFFSET PRINTERS PRIVATELIMITED | E40: BUY | F40: 48,000 | G40: 30.05 | H40: NSE
A41: 2018-05-31 | B41: NRBBEARING | C41: NRB Bearings Limited | D41: HDFC MUTUAL FUND HDFC SMALL AND MID CAP FUND | E41: BUY | F41: 1,500,000 | G41: 162.5 | H41: NSE
A42: 2018-05-31 | B42: PIGL | C42: Power Instrument (G) Ltd | D42: NIDHI BIYANI | E42: BUY | F42: 36,000 | G42: 25.94 | H42: NSE
A43: 2018-05-31 | B43: PIGL | C43: Power Instrument (G) Ltd | D43: SHYAMSUNDAR RAVIKUMAR | E43: BUY | F43: 100,000 | G43: 26.42 | H43: NSE
A44: 2018-05-31 | B44: RCOM | C44: Reliance Comm. Ltd. | D44: ADROIT FINANCIAL SERVICES PRIVATE LIMITED | E44: BUY | F44: 31,677,884 | G44: 18.81 | H44: NSE
A45: 2018-05-31 | B45: RCOM | C45: Reliance Comm. Ltd. | D45: ADROIT SHARE & STOCK BROKER PVT. LTD. | E45: BUY | F45: 13,191,151 | G45: 18.91 | H45: NSE
A46: 2018-05-31 | B46: RCOM | C46: Reliance Comm. Ltd. | D46: PURITY TRADEMAX LLP | E46: BUY | F46: 14,106,978 | G46: 19.21 | H46: NSE
A47: 2018-05-31 | B47: RCOM | C47: Reliance Comm. Ltd. | D47: SHAASTRA SECURITIES TRADING PRIVATE LIMITED | E47: BUY | F47: 33,628,829 | G47: 18.9 | H47: NSE
A48: 2018-05-31 | B48: SUMEETINDS | C48: Sumeet Ind Limited | D48: MYSTIQUE MEDIA PRIVATE LIMITED . | E48: BUY | F48: 499,405 | G48: 14.27 | H48: NSE
A49: 2018-05-31 | B49: TATAMTRDVR | C49: Tata Motors DVR 'A' Ord | D49: GOLDMAN SACHS INVESTMENTS MAURITIUS I LTD | E49: BUY | F49: 2,683,226 | G49: 168.48 | H49: NSE
A50: 2018-05-31 | B50: TATAMTRDVR | C50: Tata Motors DVR 'A' Ord | D50: INTEGRATED CORE STRATEGIES (ASIA) PTE.LTD. | E50: BUY | F50: 3,504,285 | G50: 168.51 | H50: NSE
A51: 2018-05-31 | B51: ACC | C51: ACC Limited | D51: BLACKROCK INDIA EQUITIES FUND (MAURITIUS) LIMITED | E51: SELL | F51: 1,280,803 | G51: 1354.38 | H51: NSE
A52: 2018-05-31 | B52: ATLANTA | C52: Atlanta Limited | D52: BP FINTRADE PRIVATE LIMITED | E52: SELL | F52: 133,951 | G52: 54.29 | H52: NSE
A53: 2018-05-31 | B53: CONCOR | C53: Container Corp of India | D53: BLACKROCK INDIA EQUITIES FUND (MAURITIUS) LIMITED | E53: SELL | F53: 5,490 | G53: 1378.52 | H53: NSE
A54: 2018-05-31 | B54: DIVISLAB | C54: Divi's Laboratories Limit | D54: BLACKROCK INDIA EQUITIES FUND (MAURITIUS) LIMITED | E54: SELL | F54: 1,454,375 | G54: 1047.17 | H54: NSE
A55: 2018-05-31 | B55: IDFCBANK | C55: IDFC Bank Limited | D55: BLACKROCK FUNDS INTERNATIONAL OPPORTUNITIES PORTF | E55: SELL | F55: 54,554,257 | G55: 40.69 | H55: NSE
A56: 2018-05-31 | B56: JUSTDIAL | C56: Justdial Ltd. | D56: SHAASTRA SECURITIES TRADING PRIVATE LIMITED | E56: SELL | F56: 433,342 | G56: 595.19 | H56: NSE
A57: 2018-05-31 | B57: KSK | C57: KSK Energy Ventures Limit | D57: BP FINTRADE PRIVATE LIMITED | E57: SELL | F57: 757,001 | G57: 3.3 | H57: NSE
A58: 2018-05-31 | B58: NARMADA | C58: Narmada Agrobase Limited | D58: BIJAL MUKESH SHAH-HUF | E58: SELL | F58: 48,000 | G58: 30.05 | H58: NSE
A59: 2018-05-31 | B59: NRBBEARING | C59: NRB Bearings Limited | D59: TRILOCHAN SINGH SAHNEY TRUST 1 | E59: SELL | F59: 938,089 | G59: 162.63 | H59: NSE
A60: 2018-05-31 | B60: NRBBEARING | C60: NRB Bearings Limited | D60: UBS PRINCIPAL CAPITAL ASIA LIMITED | E60: SELL | F60: 1,710,533 | G60: 162.5 | H60: NSE
A61: 2018-05-31 | B61: PIGL | C61: Power Instrument (G) Ltd | D61: SOMANI SHYAM SUNDER | E61: SELL | F61: 120,000 | G61: 26.3 | H61: NSE
A62: 2018-05-31 | B62: RCOM | C62: Reliance Comm. Ltd. | D62: ADROIT FINANCIAL SERVICES PRIVATE LIMITED | E62: SELL | F62: 31,608,576 | G62: 18.84 | H62: NSE
A63: 2018-05-31 | B63: RCOM | C63: Reliance Comm. Ltd. | D63: ADROIT SHARE & STOCK BROKER PVT. LTD. | E63: SELL | F63: 14,022,313 | G63: 18.95 | H63: NSE
A64: 2018-05-31 | B64: RCOM | C64: Reliance Comm. Ltd. | D64: PURITY TRADEMAX LLP | E64: SELL | F64: 14,106,978 | G64: 19.22 | H64: NSE
A65: 2018-05-31 | B65: RCOM | C65: Reliance Comm. Ltd. | D65: SHAASTRA SECURITIES TRADING PRIVATE LIMITED | E65: SELL | F65: 33,628,829 | G65: 18.93 | H65: NSE
A66: 2018-05-31 | B66: SUMEETINDS | C66: Sumeet Ind Limited | D66: MYSTIQUE MEDIA PRIVATE LIMITED . | E66: SELL | F66: 499,405 | G66: 14.33 | H66: NSE

Sheet Call Tracker (Equity & F&O)
M5: Back To Main Page
A6: Retail Research Technical Calls & Fundamental Performance Report for the month of May -2018
M7: =Main!B10 -> 2018-06-01
B8: Positional Call
A9: Sr.no | B9: Date | D9: Company | E9: Rec | F9: Rec Price | G9: Stop Loss*** | H9: Call Closed At | I9: Target | J9: Remark | K9: Profit / Loss per Share | L9: Gain / Loss % | M9: Status | N9: Closed Date | O9: NSE Closed Price
A10: 1 | B10: 2018-02-12 | D10: ITC | E10: Buy | F10: 271.5 | G10: 250 | H10: 285 | I10: 310 | J10: Profit of Rs.13.5/- | K10: =H10-F10 -> 13.5 | L10: =K10/F10 -> 4.97% | M10: Successful | N10: 2018-05-02 | R10: P
A11: 1 | B11: 2018-04-05 | D11: RECLTD | E11: Buy | F11: 129 | G11: 122 | H11: 121 | I11: 140 | J11: Loss of Rs.8/- | K11: =H11-F11 -> -8 | L11: =K11/F11 -> -6.20% | M11: Unsuccessful | N11: 2018-05-10 | R11: R
A12: 2 | B12: 2018-04-11 | D12: FEDERALBNK | E12: Buy | F12: 98.75 | G12: 94 | H12: 103.45 | I12: 106-109 | J12: Profit of Rs.4.7/- | K12: =H12-F12 -> 4.7 | L12: =K12/F12 -> 4.76% | M12: Successful | N12: 2019-05-09 | R12: R
A13: 4 | B13: 2018-04-18 | D13: BHEL | E13: Buy$ | F13: 88.5 | G13: 79 | H13: 78.75 | I13: 100 | J13: Loss of Rs.9.75/- | K13: =H13-F13 -> -9.75 | L13: =K13/F13 -> -11.02% | M13: Unsuccessful | N13: 2018-05-14 | R13: A
A14: 5 | B14: 2018-04-20 | D14: HINDZINC | E14: Sell | F14: 325.5 | G14: 340 | H14: 314.5 | I14: 310-305 | J14: Profit of Rs.11/- | K14: =F14-H14 -> 11 | L14: =K14/F14 -> 3.38% | M14: Successful | N14: 2018-05-02 | R14: H
A15: 6 | B15: 2018-04-26 | D15: HCLTECH | E15: Buy | F15: 1060 | G15: 1018 | H15: 1015 | I15: 1130-1150 | J15: Loss of Rs.45/- | K15: =H15-F15 -> -45 | L15: -4.25% | M15: Unsuccessful | N15: 2018-05-02 | R15: H
A16: 7 | B16: 2018-04-27 | D16: PFC | E16: Buy | F16: 85.8 | G16: 82.5 | H16: 89.45 | I16: 91-93 | J16: Profit of Rs.3.65/- | K16: =H16-F16 -> 3.65 | L16: 4.25% | M16: Successful | N16: 2018-05-02 | R16: H
A17: 8 | B17: 2018-04-30 | D17: HEXAWARE | E17: Sell | F17: 447 | G17: 464 | H17: 428.5 | I17: 410-400 | J17: Profit of Rs.18.5/- | K17: =F17-H17 -> 18.5 | L17: 4.14% | M17: Successful | N17: 2018-05-05 | R17: H
A18: 9 | B18: 2018-05-04 | D18: GLENMARK | E18: Buy | F18: 544 | G18: 520 | H18: 513 | I18: 580-585 | J18: Loss of Rs.31/- | K18: =H18-F18 -> -31 | L18: -5.70% | M18: Unsuccessful | N18: 2018-05-11 | R18: R
A19: 10 | B19: 2018-05-04 | D19: L&TFH | E19: Buy | F19: 177.5 | G19: 169 | H19: 183.25 | I19: 190-195 | J19: Profit of Rs.5.75/- | K19: =H19-F19 -> 5.75 | L19: 3.24% | M19: Successful | N19: 2018-05-08 | R19: H
A20: 11 | B20: 2018-05-04 | D20: HCLTECH | E20: Buy | F20: 920-930 | G20: 890 | I20: 980-990 | J20: Open | O20: =VLOOKUP(D20,Sheet2!$A$1:M2159,6,0) -> 910.35 | R20: H
A21: 12 | B21: 2018-05-07 | D21: ADANIPORTS | E21: Sell | F21: 415 | G21: 437 | H21: 397.5 | I21: 380-370 | J21: Profit of Rs.17.5/- | K21: =F21-H21 -> 17.5 | L21: =K21/F21 -> 4.22% | M21: Successful | N21: 2018-05-15 | R21: H
A22: 13 | B22: 2018-05-08 | D22: ADVENZYMES | E22: Buy | F22: 252 | G22: 239 | H22: 239 | I22: 270-272 | J22: Loss of Rs.13/- | K22: =H22-F22 -> -13 | L22: =K22/F22 -> -5.16% | M22: Unsuccessful | N22: 2018-05-10 | R22: R
A23: 14 | B23: 2018-05-09 | D23: INFRATEL | E23: Buy | F23: 326.5 | G23: 310 | H23: 306.5 | I23: 355-360 | J23: Loss of Rs.20/- | K23: =H23-F23 -> -20 | L23: =K23/F23 -> -6.13% | M23: Unsuccessful | N23: 2018-05-29 | R23: R
A24: 15 | B24: 2018-05-11 | D24: CHENNPETRO | E24: Buy | F24: 299.5 | G24: 286 | H24: 283.5 | I24: 325-330 | J24: Loss of Rs.16/- | K24: =H24-F24 -> -16 | L24: =K24/F24 -> -5.34% | M24: Unsuccessful | N24: 2018-05-21 | R24: H
A25: 16 | B25: 2018-05-18 | D25: VOLTAS | E25: Buy$ | F25: 604.5 | G25: 534 | H25: 534 | I25: 650 | J25: Loss of Rs.70.5/- | K25: =H25-F25 -> -70.5 | L25: =K25/F25 -> -11.66% | M25: Unsuccessful | N25: 2018-05-24 | R25: H
A26: 17 | B26: 2018-05-15 | D26: AVANTIFEED | E26: Buy | F26: 2172.5 | G26: 2090 | H26: 2020 | I26: 2320-2340 | J26: Loss of Rs.152.5/- | K26: =H26-F26 -> -152.5 | L26: =K26/F26 -> -7.02% | M26: Unsuccessful | N26: 2018-05-16 | R26: R
A27: 18 | B27: 2018-05-16 | D27: PIDILITIND | E27: Sell | F27: 1091 | G27: 1140 | H27: 1055 | I27: 1040-1020 | J27: Profit of Rs.36/- | K27: =F27-H27 -> 36 | L27: =K27/F27 -> 3.30% | M27: Successful | N27: 2018-05-25 | R27: H
A28: 19 | B28: 2018-05-17 | D28: ALLCARGO | E28: Buy | F28: 131 | G28: 124 | H28: 123 | I28: 142-145 | J28: Loss of Rs.8/- | K28: =H28-F28 -> -8 | L28: =K28/F28 -> -6.11% | M28: Unsuccessful | N28: 2018-05-22 | R28: H
A29: 20 | B29: 2018-05-21 | D29: UPL | E29: Buy | F29: 689.5 | G29: 662 | H29: 722 | I29: 735-745 | J29: Profit of Rs.32.5/- | K29: =H29-F29 -> 32.5 | L29: =K29/F29 -> 4.71% | M29: Successful | N29: 2018-05-28 | R29: H
A30: 21 | B30: 2018-05-25 | D30: MARUTI | E30: Buy | F30: 8440 | G30: 8190 | H30: 8640 | I30: 8850-8900 | J30: Part profit of Rs.200/- | K30: =H30-F30 -> 200 | L30: =K30/F30 -> 2.37% | M30: Successful | N30: 2018-05-28 | R30: R
A31: 22 | B31: 2018-05-28 | D31: SIEMENS | E31: Buy | F31: 1058 | G31: 1020 | H31: 1092.5 | I31: 1110-1120 | J31: Profit of Rs.34.5/- | K31: =H31-F31 -> 34.5 | L31: 3.26% | M31: Successful | N31: 2018-05-28 | R31: R
A32: 23 | B32: 2018-05-29 | D32: CHOLAFIN | E32: Buy | F32: 1527-1533 | G32: 1460 | I32: 1620-1640 | J32: Open | O32: =VLOOKUP(D32,Sheet2!$A$1:M2171,6,0) -> 1528.7 | R32: R
A33: 24 | B33: 2018-05-30 | D33: HEXAWARE | E33: Sell | F33: 445-449 | G33: 465 | I33: 415-405 | J33: Open | O33: =VLOOKUP(D33,Sheet2!$A$1:M2172,6,0) -> 439.1 | R33: H
A34: 25 | B34: 2018-05-30 | D34: VEDL | E34: Buy | F34: 247-249 | G34: 237 | I34: 268-272 | J34: Open | O34: =VLOOKUP(D34,Sheet2!$A$1:M2173,6,0) -> 248.3 | R34: R
A39: CLBS = Closing Basis *** | F39: Reinitiated $
A40: Dividend adjusted <> | F40: Revised stoploss #
A42: Master Trade High Risk
A43: Sr.no | B43: Date | D43: Company | E43: Rec | F43: Rec Price | G43: Stop Loss | H43: Call Closed At | I43: Target | J43: Remark | K43: Profit / Loss per share | L43: Gain / Loss per Lot | M43: Lot | N43: Status | O43: Closed Date
A44: 1 | B44: 2018-05-10 | D44: AXISBANK MAY FUT | E44: Sell | F44: 548.25 | G44: 563 | H44: 563 | I44: 525 | J44: Loss of 8.75/- | K44: =F44-H44 -> -14.75 | L44: =M44*K44 -> -17700 | M44: 1200 | N44: Unsuccessful | O44: 2018-05-15 | R44: H
D45: AXISBANK MAY 530 PE | E45: Sell | F45: 9.5 | H45: 3.5 | K45: 6 | L45: =M44*K45 -> 7200
A46: 2 | B46: 2018-05-21 | D46: NIFTY MAY FUT | E46: Buy | F46: 10530 | G46: 10480 | H46: 10480 | I46: 10630-10650 | J46: Loss of Rs.50/- | K46: =+H46-F46 -> -50 | L46: =M46*K46 -> -3750 | M46: 75 | N46: Unsuccessful | O46: 2018-05-23 | R46: A
A52: Master Trade Medium Risk
A53: Sr.no | B53: Date | D53: Company | E53: Rec | F53: Rec Price | G53: Stop Loss | H53: Call Closed At | I53: Target | J53: Remark | K53: Profit/Loss per lot | L53: Gain / Loss per Lot | M53: Lot | N53: Status | O53: Closed Date
A54: 1 | B54: 2018-05-05 | D54: NIFTY MAY 10550 PE | E54: Buy | F54: 90.5 | G54: 58 | H54: 58.00 | I54: 130-150 | J54: Loss of Rs.32.5/- | K54: =H54-F54 -> -32.50 | L54: =K54*M54 -> -2437.50 | M54: 75 | N54: Unsuccessful | O54: 2018-05-11 | R54: H
A55: 2 | B55: 2018-05-09 | D55: JUBLFOOD MAT 2500 PE | E55: Buy | F55: 50 | G55: 30 | H55: 63.5 | I55: 80-90 | J55: Profit of Rs.13.5/- | K55: 13.50 | L55: 3375.00 | M55: 250 | N55: Successful | O55: 2018-05-09 | R55: H
A56: 3 | B56: 2018-05-10 | D56: BankNifty 10 May 26100 PE | E56: Buy | F56: 18 | H56: 0 | I56: 50 | J56: Loss of Rs.18/- | K56: -18.00 | L56: -720.00 | M56: 40 | N56: Unsuccessful | O56: 2018-05-10 | R56: A
A57: 4 | B57: 2018-05-15 | D57: DRREDDY MAY 1950 PE | E57: Buy | F57: 36.5 | G57: 16 | H57: 44 | I57: 65-70 | J57: Profit of Rs.7.5/- | K57: 7.50 | L57: 1875.00 | M57: 250 | N57: Successful | O57: 2018-05-17 | R57: H
A58: 5 | B58: 2018-05-16 | D58: AMBUJACEM MAY 220 CE | E58: Buy | F58: 2.55 | H58: 3.85 | I58: 5 | J58: Profit of Rs.1.30/- | K58: 1.30 | L58: 3250.00 | M58: 2500 | N58: Successful | O58: 2018-05-17 | R58: H
A59: 6 | B59: 2018-05-21 | D59: VEDL MAY 270 PE | E59: Buy | F59: 5.75 | G59: 2 | H59: 7.75 | I59: 10-12.0 | J59: Profit of Rs.2/- | K59: 2.00 | L59: 3500.00 | M59: 1750 | N59: Successful | O59: 2018-05-21 | R59: H
A60: 7 | B60: 2018-05-25 | D60: AMBUJACEM MAY 215 CE | E60: Buy | F60: 2.55 | H60: 0 | I60: 5 | J60: Loss of Rs.2.55/- | K60: =H60-F60 -> -2.55 | L60: =K60*M60 -> -6375.00 | M60: 2500 | N60: Unsuccessful | O60: 2018-05-31 | R60: H
B65: Smart Delivery Trade
A66: Sr.no | B66: Date | D66: Company | E66: Rec | F66: Rec Price | G66: Stop Loss*** | H66: Call Closed At | I66: Target | J66: Remark | K66: Profit / Loss per Share | L66: Gain / Loss % | M66: Status | N66: Closed Date | O66: NSE Closed Price
A67: 1 | B67: 2018-02-15 | D67: ACC | E67: Buy$ | F67: 1585 | G67: 1520 | H67: 1520 | I67: 1750 | J67: Loss of Rs.65/- | K67: =H67-F67 -> -65 | L67: =K67/F67 -> -4.10% | M67: Unsuccessful | N67: 2018-05-08 | R67: R
A68: 2 | B68: 2018-04-09 | D68: SUNPHARMA | E68: Buy | F68: 515.5 | G68: 500 | H68: 536 | I68: 540-545 | J68: Profit of Rs.20.5/- | K68: 20.5 | L68: 3.98% | M68: Successful | N68: 2018-05-03 | R68: R
A69: 3 | B69: 2018-04-23 | D69: TATACOMM | E69: Buy | F69: 631 | G69: 615 | H69: 608 | I69: 660-665 | J69: Loss of Rs.23/- | K69: -23 | L69: -3.65% | M69: Unsuccessful | N69: 2018-05-07 | R69: R
A70: 4 | B70: 2018-04-24 | D70: IOC | E70: Buy | F70: 162 | G70: 157 | H70: 166.75 | I70: 170-172 | J70: Profit of Rs.4.75/- | K70: 4.75 | L70: 2.93% | M70: Successful | N70: 2018-05-08 | R70: H
A71: 5 | B71: 2018-04-25 | D71: NTPC | E71: Buy | F71: 169.5 | G71: 164.8 | H71: 176 | I71: 177-180 | J71: Profit of Rs.6.5/- | K71: 6.5 | L71: 3.83% | M71: Successful | N71: 2018-05-03 | R71: H
A72: 6 | B72: 2018-04-30 | D72: AMBUJACEM | E72: Buy | F72: 251 | G72: 240 | H72: 238.5 | I72: 265-270 | J72: Loss of Rs.12.5/- | K72: -12.5 | L72: -4.98% | M72: Unsuccessful | N72: 2018-05-05 | R72: H
A73: 7 | B73: 2018-04-30 | D73: RAMCOCEM | E73: Buy | F73: 822.5 | G73: 805 | H73: 843 | I73: 850 | J73: Profit of Rs.20.5/- | K73: 20.5 | L73: 2.49% | M73: Successful | N73: 2018-05-08 | R73: R
A74: 8 | B74: 2018-05-02 | D74: DHFL | E74: Sell | F74: 637.5 | G74: 662 | H74: 663.5 | I74: 610-600 | J74: Loss of Rs.26/- | K74: =F74-H74 -> -26 | L74: -4.08% | M74: Unsuccessful | N74: 2018-05-02 | R74: H
A75: 9 | B75: 2018-05-02 | D75: DELTACORP | E75: Buy | F75: 272 | G75: 263 | H75: 263 | I75: 283-285 | J75: Loss of Rs.9/- | K75: =H75-F75 -> -9 | L75: -3.31% | M75: Unsuccessful | N75: 2018-05-02 | R75: R
A76: 10 | B76: 2018-05-03 | D76: PFC | E76: Buy | F76: 85.1 | G76: 82.5 | H76: 82 | I76: 89-90 | J76: Loss of Rs.3.1/- | K76: -3.1 | L76: =K76/F76 -> -3.64% | M76: Unsuccessful | N76: 2018-05-14 | R76: H
A77: 11 | B77: 2018-05-04 | D77: RADICO | E77: Buy | F77: 393 | G77: 382 | H77: 405.5 | I77: 412-416 | J77: Profit of Rs.12.5/- | K77: 12.5 | L77: =K77/F77 -> 3.18% | M77: Successful | N77: 2018-05-07 | R77: R
A78: 12 | B78: 2018-05-08 | D78: TATAMOTORS | E78: Buy | F78: 331.5 | G78: 318 | H78: 343.5 | I78: 350-355 | J78: Profit of Rs.12/- | K78: 12 | L78: 3.62% | M78: Successful | N78: 2018-05-10 | R78: H
A79: 13 | B79: 2018-05-09 | D79: SUNPHARMA | E79: Buy | F79: 512 | G79: 498 | H79: 493 | I79: 535-540 | J79: Loss of Rs.19/- | K79: -19 | L79: -3.71% | M79: Unsuccessful | N79: 2018-05-11 | R79: R
A80: 14 | B80: 2018-05-09 | D80: CIPLA | E80: Buy | F80: 589 | G80: 577 | H80: 572 | I80: 615-620 | J80: Loss of Rs.17/- | K80: -17 | L80: -2.89% | M80: Unsuccessful | N80: 2018-05-11 | R80: H
A81: 15 | B81: 2018-05-14 | D81: INDIGO | E81: Buy | F81: 1164 | G81: 1130 | H81: 1215 | I81: 1215-1225 | J81: Profit of Rs.51/- | K81: =H81-F81 -> 51 | L81: 4.38% | M81: Successful | N81: 2018-05-15 | R81: R
A82: 16 | B82: 2018-05-15 | D82: ACC | E82: Buy<> | F82: 1413 | G82: 1363 | H82: 1355 | I82: 1490-1510 | J82: Loss of Rs.58/- | K82: -58 | L82: -4.10% | M82: Unsuccessful | N82: 2018-05-21 | R82: H
A83: 17 | B83: 2018-05-15 | D83: RADICO | E83: Buy | F83: 403 | G83: 390 | H83: 417.5 | I83: 425-430 | J83: Profit of Rs.14.5/- | K83: =H83-F83 -> 14.5 | L83: 3.60% | M83: Successful | N83: 2018-05-17 | R83: R
A84: 18 | B84: 2018-05-15 | D84: GHCL | E84: Buy | F84: 283 | G84: 274 | H84: 292.75 | I84: 295-300 | J84: Profit of Rs.9.75/- | K84: =H84-F84 -> 9.75 | L84: 3.45% | M84: Successful | N84: 2018-05-15 | R84: R
A85: 19 | B85: 2018-05-16 | D85: GHCL | E85: Buy | F85: 282 | G85: 274 | H85: 290.5 | I85: 295-300 | J85: Profit of Rs.8.5/- | K85: =H85-F85 -> 8.5 | L85: 3.01% | M85: Successful | N85: 2018-05-16 | R85: R
A86: 20 | B86: 2018-05-17 | D86: DLF | E86: Buy | F86: 205 | G86: 197 | H86: 197 | I86: 215 | J86: Loss of Rs.8/- | K86: -8 | L86: -3.90% | M86: Unsuccessful | N86: 2018-05-18 | R86: H
A87: 21 | B87: 2018-05-17 | D87: TATAMOTORS | E87: Buy | F87: 315.5 | G87: 305 | H87: 305 | I87: 330-335 | J87: Loss of Rs.10.5/- | K87: -10.5 | L87: -3.33% | M87: Unsuccessful | N87: 2018-05-18 | R87: R
A88: 22 | B88: 2018-05-18 | D88: CENTURYTEX | E88: Buy | F88: 1072.5 | G88: 1040 | H88: 1005 | I88: 1130-1140 | J88: Loss of Rs.67.5/- | K88: -67.5 | L88: -6.29% | M88: Unsuccessful | N88: 2018-05-21 | R88: R
A89: 23 | B89: 2018-05-21 | D89: GLENMARK | E89: Buy | F89: 502 | G89: 486 | H89: 523.5 | I89: 525-530 | J89: Profit of Rs.21.50/- | K89: =H89-F89 -> 21.5 | L89: =K89/F89 -> 4.28% | M89: Successful | N89: 2018-05-23 | R89: R
A90: 24 | B90: 2018-05-21 | D90: CIPLA | E90: Buy | F90: 534 | G90: 518 | H90: 560 | I90: 560-570 | J90: Profit of Rs.26/- | K90: =H90-F90 -> 26 | L90: =K90/F90 -> 4.87% | M90: Successful | N90: 2018-05-23 | R90: H
A91: 25 | B91: 2018-05-22 | D91: M&M | E91: Buy | F91: 818.5 | G91: 795 | H91: 838.25 | I91: 860-870 | J91: Profit of Rs.19.75/- | K91: =H91-F91 -> 19.75 | L91: =K91/F91 -> 2.41% | M91: Successful | N91: 2018-05-24 | R91: H
A92: 26 | B92: 2018-05-23 | D92: LICHSGFIN | E92: Buy | F92: 481 | G92: 470 | H92: 490.5 | I92: 500-505 | J92: Profit of Rs.9.5/- | K92: 9.5 | L92: 1.98% | M92: Successful | N92: 2018-05-28 | R92: R
A93: 27 | B93: 2018-05-23 | D93: L&TFH | E93: Buy | F93: 166 | G93: 159 | H93: 171.75 | I93: 178-180 | J93: Profit of Rs.5.75/- | K93: =H93-F93 -> 5.75 | L93: =K93/F93 -> 3.46% | M93: Successful | N93: 2018-05-28 | R93: H
A94: 28 | B94: 2018-05-24 | D94: ITC | E94: Buy<> | F94: 269 | G94: 265 | H94: 276.75 | I94: 287-290 | J94: Profit of Rs.7.75/- | K94: 7.75 | L94: 2.88% | M94: Successful | N94: 2018-05-28 | R94: R
A95: 29 | B95: 2018-05-25 | D95: BOMDYEING | E95: Buy | F95: 260.5 | G95: 249 | H95: 268.7 | I95: 275-280 | J95: Profit of Rs.8.2/- | K95: =H95-F95 -> 8.2 | L95: =K95/F95 -> 3.15% | M95: Successful | N95: 2018-05-28 | R95: H
A96: 30 | B96: 2018-05-28 | D96: CADILAHC | E96: Buy | F96: 369 | G96: 357 | H96: 380.5 | I96: 390-395 | J96: Profit of Rs.11.5/- | K96: =H96-F96 -> 11.5 | L96: =K96/F96 -> 3.12% | M96: Successful | N96: 2018-05-29 | R96: H
A97: 31 | B97: 2018-05-29 | D97: TATASTEEL | E97: Buy | F97: 575-580 | G97: 555 | I97: 600-610 | J97: Open | O97: =VLOOKUP(D97,Sheet2!$A$1:M2233,6,0) -> 575.65 | R97: R
A98: 32 | B98: 2018-05-29 | D98: RELIANCE | E98: Buy | F98: 923-927 | G98: 898 | I98: 960-970 | J98: Open | O98: =VLOOKUP(D98,Sheet2!$A$1:M2234,6,0) -> 921.35 | R98: R
A99: 33 | B99: 2018-05-30 | D99: CADILAHC | E99: Buy | F99: 365-369 | G99: 357 | I99: 380-388 | J99: Open | O99: =VLOOKUP(D99,Sheet2!$A$1:M2235,6,0) -> 361.3 | R99: H
A100: 34 | B100: 2018-05-30 | D100: TATAMOTORS | E100: Buy | F100: 289-291 | G100: 279 | I100: 305-310 | J100: Open | O100: =VLOOKUP(D100,Sheet2!$A$1:M2236,6,0) -> 282.5 | R100: H
A101: 35 | B101: 2018-05-30 | D101: ITC | E101: Buy | F101: 270-272 | G101: 262 | I101: 285-290 | J101: Open | O101: =VLOOKUP(D101,Sheet2!$A$1:M2237,6,0) -> 271.65 | R101: H
A102: 36 | B102: 2018-05-30 | D102: AMARAJABAT | E102: Buy | F102: 791-793 | G102: 768 | I102: 830-840 | J102: Open | O102: =VLOOKUP(D102,Sheet2!$A$1:M2238,6,0) -> 798.45 | R102: R
A103: 37 | B103: 2018-05-30 | D103: LICHSGFIN | E103: Buy | F103: 474-476 | G103: 460 | I103: 495-500 | J103: Open | O103: =VLOOKUP(D103,Sheet2!$A$1:M2239,6,0) -> 475.15 | R103: R
A107: CLBS = Closing Basis *** | F107: Reinitiated $
A108: Dividend adjusted <> | F108: Revised stoploss #
B111: Momentum Call
A112: Sr.no | B112: Date | D112: Company | E112: Rec | F112: Rec Price | G112: Stop Loss | H112: Call Closed At | I112: Target | J112: Remark | K112: Profit / Loss per Share/Lot | L112: Gain / Loss % | M112: Gain / Loss per Lot | N112: Lot | O112: Status | P112: Closed Date | Q112: NSE Closed Price
A113: 1 | B113: 2018-04-30 | D113: RAIN | E113: Buy | F113: 326.5 | G113: 315 | H113: 315 | I113: 340-345 | J113: Loss of Rs.11.5/- | K113: =H113-F113 -> -11.5 | L113: =K113/F113 -> -3.52% | O113: Unsuccessful | P113: 2018-05-02 | R113: R
A114: 2 | B114: 2018-05-02 | D114: TATACHEM MAY FUT | E114: Buy | F114: 785 | G114: 769 | H114: 771 | I114: 800-805 | J114: Loss of Rs.14/- | K114: -14 | M114: =N114*K114 -> -10500 | N114: 750 | O114: Unsuccessful | P114: 2018-05-02 | R114: H
A115: 3 | B115: 2018-05-02 | D115: EXIDEIND | E115: Buy | F115: 251 | G115: 246 | H115: 256.5 | I115: 260-262 | J115: Profit of Rs.5.5/- | K115: 5.5 | L115: =K115/F115 -> 2.19% | O115: Successful | P115: 2018-05-07 | R115: H
A116: 4 | B116: 2018-05-03 | D116: ARVIND | E116: Buy | F116: 411 | G116: 402 | H116: 419 | I116: 423-426 | J116: Profit of Rs.8/- | K116: 8 | L116: =K116/F116 -> 1.95% | O116: Successful | P116: 2018-05-08 | R116: R
A117: 5 | B117: 2018-05-04 | D117: RAIN | E117: Buy | F117: 315.5 | G117: 307 | H117: 322.5 | I117: 325-330 | J117: Profit of Rs.7/- | K117: 7 | L117: =K117/F117 -> 2.22% | O117: Successful | P117: 2018-05-08 | R117: H
A118: 6 | B118: 2018-05-04 | D118: KPIT | E118: Buy | F118: 251.5 | G118: 245 | H118: 257.5 | I118: 262 | J118: Profit of Rs.6/- | K118: 6 | L118: =K118/F118 -> 2.39% | O118: Successful | P118: 2018-05-08 | R118: R
A119: 7 | B119: 2018-05-07 | D119: RELIANCE MAY FUT | E119: Buy | F119: 963 | G119: 953 | H119: 971.5 | I119: 980 | J119: Profit of Rs.8.5/- | K119: 8.5 | M119: =N119*K119 -> 8500 | N119: 1000 | O119: Successful | P119: 2018-05-07 | R119: R
A120: 8 | B120: 2018-05-07 | D120: CHOLAFIN | E120: Buy | F120: 1662 | G120: 1642 | H120: 1617.5 | I120: 1710-1720 | J120: Loss of Rs.44.5/- | K120: =H120-F120 -> -44.5 | L120: =K120/F120 -> -2.68% | O120: Unsuccessful | P120: 2018-05-09 | R120: R
A121: 9 | B121: 2018-05-07 | D121: SUVEN | E121: Buy | F121: 184.5 | G121: 180 | H121: 192 | I121: 192-194 | J121: Profit of Rs.7.5/- | K121: =H121-F121 -> 7.5 | L121: =K121/F121 -> 4.07% | O121: Successful | P121: 2018-05-07 | R121: R
A122: 10 | B122: 2018-05-08 | D122: BHARATFORG | E122: Buy | F122: 746.5 | G122: 730 | H122: 724.4 | I122: 770 | J122: Loss of Rs.22.1/- | K122: =H122-F122 -> -22.1 | L122: =K122/F122 -> -2.96% | O122: Unsuccessful | P122: 2018-05-11 | R122: R
A123: 11 | B123: 2018-05-09 | D123: VIPIND | E123: Buy | F123: 421 | G123: 409 | H123: 407 | I123: 440 | J123: Loss of Rs.14/- | K123: =H123-F123 -> -14 | L123: =K123/F123 -> -3.33% | O123: Unsuccessful | P123: 2018-05-11 | R123: H
A124: 12 | B124: 2018-05-09 | D124: BANKBARODA MAY FUT | E124: Buy | F124: 145.5 | G124: 144 | H124: 144 | I124: 150 | J124: Loss of Rs.1.5/- | K124: =H124-F124 -> -1.5 | M124: =N124*K124 -> -6000 | N124: 4000 | O124: Unsuccessful | P124: 2018-05-09 | R124: H
A125: 13 | B125: 2018-05-09 | D125: HEROMOTOCO MAY FUT | E125: Buy | F125: 3690 | G125: 3640 | H125: 3640 | I125: 3800 | J125: Loss of Rs.50/- | K125: -50 | M125: =N125*K125 -> -6250 | N125: 125 | O125: Unsuccessful | P125: 2018-05-07 | R125: R
A126: 14 | B126: 2018-05-14 | D126: IRB | E126: Buy | F126: 261.5 | G126: 256 | H126: 254 | I126: 270-272 | J126: Loss of Rs.7.5/- | K126: =H126-F126 -> -7.5 | L126: =K126/F126 -> -2.87% | O126: Unsuccessful | P126: 2018-05-15 | R126: R
A127: 15 | B127: 2018-05-14 | D127: HINDALCO | E127: Buy | F127: 242 | G127: 237 | H127: 248.25 | I127: 249-252 | J127: Profit of Rs.6.25/- | K127: 6.25 | L127: 2.58% | O127: Successful | P127: 2018-05-15 | R127: H
A128: 16 | B128: 2018-05-16 | D128: ARVIND | E128: Buy | F128: 414 | G128: 404 | H128: 421.5 | I128: 427-430 | J128: Profit of Rs.7.5/- | K128: 7.5 | L128: 1.81% | O128: Successful | P128: 2018-05-16 | R128: R
A129: 17 | B129: 2018-05-16 | D129: BFUTILITIE | E129: Buy | F129: 401.5 | G129: 390 | H129: 414 | I129: 417-420 | J129: Profit of Rs.12.5/- | K129: 12.5 | L129: 3.11% | O129: Successful | P129: 2018-05-16 | R129: R
A130: 18 | B130: 2018-05-16 | D130: DHFL | E130: Buy | F130: 617.5 | G130: 604 | H130: 629.5 | I130: 635-640 | J130: Profit of Rs.12/- | K130: 12 | L130: 1.94% | O130: Successful | P130: 2018-05-28 | R130: R
A131: 19 | B131: 2018-05-17 | D131: CHOLAFIN | E131: Buy | F131: 1538 | G131: 1510 | H131: 1604 | I131: 1590-1600 | J131: Profit of Rs.66/- | K131: 66 | L131: 4.29% | O131: Successful | P131: 2018-05-17 | R131: R
A132: 20 | B132: 2018-05-17 | D132: IGL | E132: Buy | F132: 274.5 | G132: 268 | H132: 268 | I132: 285-290 | J132: Loss of Rs.6.5/- | K132: -6.5 | L132: -2.37% | O132: Unsuccessful | P132: 2018-05-18 | R132: H
A133: 21 | B133: 2018-05-18 | D133: BANKNIFTY MAY FUT | E133: Buy | F133: 25880 | G133: 25770 | H133: 25880 | I133: 26050-26100 | J133: No profit no loss/- | K133: =H133-F133 -> 0 | L133: =K133/F133 -> 0.00% | O133: Neutral | P133: 2018-05-18 | R133: R
A134: 22 | B134: 2018-05-21 | D134: THOMASCOOK | E134: Buy | F134: 277 | G134: 270 | H134: 282.5 | I134: 288-290 | J134: Profit of Rs.5.5/- | K134: =H134-F134 -> 5.5 | L134: =K134/F134 -> 1.99% | O134: Successful | P134: 2018-05-28 | R134: R
A135: 23 | B135: 2018-05-22 | D135: ICICIBANK MAY FUT | E135: Buy | F135: 293.5 | G135: 288 | H135: 297.5 | I135: 300-303 | J135: Profit of Rs.4/- | K135: =H135-F135 -> 4 | M135: =N135*K135 -> 11000 | N135: 2750 | O135: Successful | P135: 2018-05-07 | R135: H
A136: 24 | B136: 2018-05-23 | D136: BFUTILITIE | E136: Buy | F136: 380 | G136: 374 | H136: 367.5 | I136: 395 | J136: Loss of Rs.12.5/- | K136: =H136-F136 -> -12.5 | L136: =K136/F136 -> -3.29% | O136: Unsuccessful | P136: 2018-05-24 | R136: R
A137: 25 | B137: 2018-05-23 | D137: BANKNIFTY MAY FUT | E137: Buy | F137: 25775 | G137: 25650 | H137: 25650 | I137: 26000 | J137: Loss of Rs.125/- | K137: =H137-F137 -> -125 | M137: =N137*K137 -> -5000 | N137: 40 | O137: Unsuccessful | P137: 2018-05-23 | R137: R
A138: 26 | B138: 2018-05-23 | D138: ARVIND | E138: Buy | F138: 386.5 | G138: 377 | H138: 393 | I138: 400-410 | J138: Profit of Rs.6.5/- | K138: =H138-F138 -> 6.5 | L138: =K138/F138 -> 1.68% | O138: Successful | P138: 2018-05-28 | R138: H
A139: 27 | B139: 2018-05-23 | D139: LT MAY FUT | E139: Buy | F139: 1331 | G139: 1315 | H139: 1342 | I139: 1350-1360 | J139: Profit of Rs.11/- | K139: =H139-F139 -> 11 | M139: =N139*K139 -> 8250 | N139: 750 | O139: Successful | P139: 2018-05-24 | R139: H
A140: 28 | B140: 2018-05-24 | D140: INDUSINDBK MAY FUT | E140: Buy | F140: 1862 | G140: 1835 | H140: 1881.5 | I140: 1910 | J140: Profit of Rs.19.5/- | K140: 19.5 | M140: =N140*K140 -> 5850 | N140: 300 | O140: Successful | P140: 2018-05-25 | R140: R
A141: 29 | B141: 2018-05-25 | D141: TATAMOTORS MAY FUT | E141: Buy | F141: 292.5 | G141: 284 | H141: 297.5 | I141: 300-305 | J141: Profit of Rs.5/- | K141: =H141-F141 -> 5 | M141: =N141*K141 -> 7500 | N141: 1500 | O141: Successful | P141: 2018-05-25 | R141: H
A142: 30 | B142: 2018-05-29 | D142: BOMDYEING | E142: Buy | F142: 268.5 | G142: 259 | H142: 276 | I142: 282-286 | J142: Profit of Rs.7.5/- | K142: =H142-F142 -> 7.5 | L142: =K142/F142 -> 2.79% | O142: Successful | P142: 2018-05-30 | R142: H
A143: 31 | B143: 2018-05-29 | D143: HAVELLS JUN FUT | E143: Buy | F143: 561 | G143: 549 | H143: 549 | I143: 575-580 | J143: Loss of Rs.12/- | K143: =H143-F143 -> -12 | M143: =N143*K143 -> -12000 | N143: 1000 | O143: Unsuccessful | P143: 2018-05-30 | R143: H
A144: 32 | B144: 2018-05-30 | D144: SBIN | E144: Buy | F144: 265 | G144: 258 | H144: 274.5 | I144: 275 | J144: Profit of Rs.9.5/- | K144: =H144-F144 -> 9.5 | L144: =K144/F144 -> 3.58% | O144: Successful | P144: 2018-05-31 | R144: R
A150: CLBS = Closing Basis *** | F150: Reinitiated $
A151: Dividend adjusted <> | F151: Revised stoploss #
B153: Quick Pick Intraday
A154: Sr.no | B154: Date | D154: Company | E154: Rec | F154: Rec Price | G154: Stop Loss*** | H154: Call Closed At | I154: Target | J154: Remark | K154: Profit / Loss per Share | L154: Gain / Loss % | M154: Status | N154: Closed Date
A155: 1 | B155: 2018-05-02 | D155: GODREJPROP | E155: Buy | F155: 817.5 | G155: 804 | H155: 804 | I155: 835-840 | J155: Loss of Rs.13.5/- | K155: =H155-F155 -> -13.5 | L155: =K155/F155 -> -1.65% | M155: Unsuccessful | N155: 2018-05-02 | R155: H
A156: 2 | B156: 2018-05-04 | D156: BFUTILITIE | E156: Buy | F156: 402.5 | G156: 395 | H156: 402.5 | I156: 415 | J156: No profit no loss/- | K156: 0 | L156: 0.00% | M156: Neutral | N156: 2018-05-04 | R156: R
A157: 3 | B157: 2018-05-09 | D157: DCBBANK | E157: Buy | F157: 197.5 | G157: 194.5 | H157: 201 | I157: 202-204 | J157: Profit of Rs. 3.5/- | K157: 3.5 | L157: 1.77% | M157: Successful | N157: 2018-05-09 | R157: H
A158: 4 | B158: 2018-05-09 | D158: BFUTILITIE | E158: Buy | F158: 401 | G158: 395 | H158: 408 | I158: 415 | J158: Profit of Rs. 7/- | K158: 7 | L158: 1.75% | M158: Successful | N158: 2018-05-09 | R158: H
A159: 5 | B159: 2018-05-10 | D159: MANAPPURAM | E159: Buy | F159: 124.75 | G159: 121.8 | H159: 121.8 | I159: 130 | J159: Loss of Rs.2.95/- | K159: -2.95 | L159: -2.36% | M159: Unsuccessful | N159: 2018-05-10 | R159: H
A160: 6 | B160: 2018-05-11 | D160: BFUTILITIE | E160: Buy | F160: 404 | G160: 397 | H160: 397 | I160: 415 | J160: Loss of Rs.7/- | K160: -7 | L160: -1.73% | M160: Unsuccessful | N160: 2018-05-11 | R160: H
A161: 7 | B161: 2018-05-18 | D161: WABAG | E161: Buy | F161: 455.5 | G161: 448 | H161: 463.5 | I161: 470-474 | J161: Profit of Rs. 8/- | K161: =H161-F161 -> 8 | L161: =K161/F161 -> 1.76% | M161: Successful | N161: 2018-05-18 | R161: R
A164: Techno -Funda (positional)
A165: Sr.no | B165: Date | D165: Company | E165: Rec | F165: Rec Price | G165: Stop Loss*** | H165: Call Closed At | I165: Target | J165: Remark | K165: Profit / Loss per Share | L165: Gain / Loss % | M165: Status | N165: Closed Date | O165: NSE Closed Price
A166: 1 | B166: 2018-04-16 | D166: ENGINERSIN | E166: Buy | F166: 158.5 | G166: 147 | H166: 146 | I166: 185-190 | J166: Loss of Rs.12.5/- | K166: =H166-F166 -> -12.5 | L166: =K166/F166 -> -7.89% | M166: Unsuccessful | N166: 2018-05-16 | R166: H
A169: CLBS = Closing Basis *** | F169: Reinitiated $
A170: Dividend adjusted <> | F170: Revised stoploss #
B175: Investment Idea
A176: Sr.no | B176: Date | D176: Company | E176: Rec | F176: Rec Price | G176: Point of Review | H176: Close Rate | I176: Target | J176: Remark | K176: Profit / Loss per Share | L176: Gain / Loss % | M176: Status | N176: Closed Date
A177: 1 | B177: 2013-11-01 | D177: L&T Finance Holding | E177: Accu | F177: 82.00 | G177: - | H177: 100 | I177: 100.00 | J177: Target Achieved | K177: =H177-F177 -> 18.00 | L177: =K177/F177 -> 21.95% | M177: Successful | N177: 2016-10-14
A178: 2 | B178: 2014-06-04 | D178: Finolex Inds | E178: Buy | F178: 257.00 | G178: - | H178: 300 | I178: 300.00 | J178: Target Achieved | K178: =H178-F178 -> 43.00 | L178: 16.73% | M178: Successful | N178: 2014-07-02
A179: =1+A178 -> 3 | B179: 2014-07-08 | D179: JK Cement | E179: Buy | F179: 393.00 | G179: - | H179: 468 | I179: 468.00 | J179: Target Achieved | K179: =H179-F179 -> 75.00 | L179: 19.08% | M179: Successful | N179: 2014-08-12
A180: 4 | B180: 2014-08-06 | D180: Finolex Cables | E180: Buy | F180: 205.00 | G180: - | H180: 275 | I180: 250.00 | J180: Target Achieved | K180: 70.00 | L180: 34.15% | M180: Successful | N180: 2014-11-19
A181: 5 | B181: 2014-09-04 | D181: Exide Inds | E181: Buy | F181: 162.00 | G181: - | H181: 190 | I181: 190.00 | J181: Target Achieved | K181: 28.00 | L181: 17.28% | M181: Successful | N181: 2015-01-02
A182: 6 | B182: 2014-09-04 | D182: Deepak Nitrite | E182: Buy | F182: 75.00 | G182: - | H182: 91.5 | I182: 95-100 | J182: Profit of Rs.16.50/- | K182: 16.50 | L182: 22.00% | M182: Successful | N182: 2014-11-11
A183: 7 | B183: 2014-10-01 | D183: Mercks | E183: Buy | F183: 850.00 | G183: - | H183: 982.5 | I183: 1050.00 | J183: Profit of Rs.132.50/- | K183: 132.50 | L183: 15.59% | M183: Successful | N183: 2015-02-04
A184: 8 | B184: 2014-10-01 | D184: Grindwell Norton | E184: Buy | F184: 475.00 | G184: - | H184: 515 | I184: 600.00 | J184: Profit of Rs.40/- | K184: 40.00 | L184: 8.42% | M184: Successful | N184: 2014-10-27
A185: 9 | B185: 2014-10-01 | D185: Snowman Logistics | E185: Buy | F185: 86.00 | G185: - | H185: 99 | I185: 140.00 | J185: Profit of Rs.13.00/- | K185: 13.00 | L185: 15.12% | M185: Successful | N185: 2014-10-27
A186: 10 | B186: 2014-10-14 | D186: Birla Corp | E186: Buy | F186: 496.60 | G186: - | H186: 621 | I186: 580.00 | J186: Target Achieved | K186: 124.40 | L186: 25.05% | M186: Successful | N186: 2016-08-23
A187: 11 | B187: 2014-10-14 | D187: Ultratech Cem | E187: Buy | F187: 2481.90 | G187: - | H187: 2840 | I187: 2870.00 | J187: Profit of Rs.358.10/- | K187: 358.10 | L187: 14.43% | M187: Successful | N187: 2015-01-13
A188: =1+A185 -> 10 | B188: 2014-10-16 | D188: Sintex Inds | E188: Buy | F188: 84.50 | G188: - | H188: 93 | I188: 110.00 | J188: Profit of Rs.8.50/- | K188: 8.50 | L188: 10.06% | M188: Successful | N188: 2014-10-27
A189: =1+A188 -> 11 | B189: 2014-10-16 | D189: HSIL | E189: Buy | F189: 401.00 | G189: - | H189: 428 | I189: 450.00 | J189: Profit of Rs.27.00/- | K189: 27.00 | L189: 6.73% | M189: Successful | N189: 2015-01-16
A190: 12 | B190: 2014-10-16 | D190: Eveready Inds | E190: Buy | F190: 101.00 | G190: - | H190: 112 | I190: 120.00 | J190: Profit of Rs.11.00/- | K190: 11.00 | L190: 10.89% | M190: Successful | N190: 2014-10-27
A191: 13 | B191: 2014-11-11 | D191: Pennar Inds | E191: Buy | F191: 59.00 | G191: - | H191: 76 | I191: 76.00 | J191: Target Achieved | K191: 17.00 | L191: 28.81% | M191: Successful | N191: 2017-10-24
A192: 14 | B192: 2014-11-11 | D192: Snowman Logistics | E192: Buy | F192: 99.00 | G192: - | H192: 120 | I192: 120.00 | J192: Profit of Rs.21/- | K192: 21.00 | L192: 21.21% | M192: Successful | N192: 2014-11-17
A193: 15 | B193: 2014-11-13 | D193: Dharamsi Morarji Chem | E193: Buy | F193: 22.00 | G193: - | H193: 33.55 | I193: 32.00 | J193: Profit of Rs 11.55/- | K193: 11.55 | L193: 52.50% | M193: Successful | N193: 2015-07-03
A194: 16 | B194: 2014-12-03 | D194: Tatachem | E194: Buy | F194: 440.00 | G194: - | H194: 520 | I194: 520.00 | J194: Profit of Rs 80.00/- | K194: 80.00 | L194: 18.18% | M194: Successful | N194: 2015-07-23
A195: 17 | B195: 2014-12-03 | D195: Advanta | E195: Buy | F195: 360.00 | G195: - | H195: 427 | I195: 425.00 | J195: Profit of Rs.67.00/- | K195: 67.00 | L195: 18.61% | M195: Successful | N195: 2015-02-23
A196: 18 | B196: 2015-01-08 | D196: GDL | E196: Buy | F196: 360.00 | G196: - | H196: 455 | I196: 420.00 | J196: Profit of Rs.95.00/- | K196: 95.00 | L196: 26.39% | M196: Successful | N196: 2015-01-20
A197: 19 | B197: 2015-01-08 | D197: NRB Bearing | E197: Buy | F197: 130.00 | H197: 175.5 | I197: 165.00 | J197: Profit of Rs 45.50/- | K197: 45.50 | L197: 35.00% | M197: Successful | N197: 2017-12-19
A198: 20 | B198: 2015-02-05 | D198: GSFC | E198: Accu | F198: 98.00 | H198: 120 | I198: 120.00 | J198: Target Achieved | K198: 22.00 | L198: 22.45% | M198: Successful | N198: 2017-01-18
A199: 21 | B199: 2015-02-05 | D199: Sundrmfast | E199: Accu | F199: 196.00 | H199: 262 | I199: 255.00 | J199: Target Achieved | K199: 66.00 | L199: 33.67% | M199: Successful | N199: 2016-08-17
A200: 22 | B200: 2015-03-04 | D200: GPPL | E200: Accu | F200: 230-240 | I200: 280-285 | J200: Open
A201: 23 | B201: 2015-03-04 | D201: ORIENTCEM | E201: Accu | F201: 185.00 | H201: 224 | I201: 220-225 | J201: Target Achieved | K201: 39.00 | L201: =K201/F201 -> 21.08% | M201: Successful | N201: 2016-10-04
A202: 24 | B202: 2015-03-27 | D202: PFS | E202: Accu | F202: 49-50 | I202: 67.00 | J202: Open
A203: 25 | B203: 2015-03-30 | D203: Walchandnagar Ind Ltd | E203: Accu | F203: 183.50 | H203: 219 | I203: 218.00 | J203: Profit of Rs.35.50/- | K203: 35.50 | L203: =K203/F203 -> 19.35% | M203: Successful | N203: 2015-04-09
A204: 26 | B204: 2015-04-20 | D204: Kalpataru Power Transmission Ltd | E204: Accu | F204: =(227+237)/2 -> 232.00 | H204: 298 | I204: 298.00 | J204: Target Achieved | K204: 66.00 | L204: 28.45% | M204: Successful | N204: 2017-03-29
A205: 27 | B205: 2015-05-04 | D205: Mastek Ltd | E205: Buy | F205: 385.00 | H205: =212.5+331 -> 543.5 | I205: 510.00 | J205: Profit of Rs 158.50/- | K205: 158.50 | L205: 41.17% | M205: Successful | N205: 2015-08-19
A206: 28 | B206: 2015-05-04 | D206: Suprajit Eng | E206: Buy | F206: 115.50 | H206: 146 | I206: 142.00 | J206: Profit of Rs 30.50/- | K206: 30.50 | L206: 26.41% | M206: Successful | N206: 2015-07-17
A207: 29 | B207: 2015-05-27 | D207: TCI | E207: Buy | F207: 237.50 | H207: 279.5 | I207: 278.00 | J207: Target Achieved | K207: 42.00 | L207: 17.68% | M207: Successful | N207: 2015-08-06
A208: 30 | B208: 2015-06-19 | D208: HSIL | E208: Accu | F208: 340.00 | H208: 448 | I208: 448.00 | J208: Target Achieved | K208: 108.00 | L208: 31.76% | M208: Successful | N208: 2017-10-10
A209: 31 | B209: 2015-07-06 | D209: Capital First | E209: Accu | F209: 390.00 | H209: 460 | I209: 460.00 | J209: Target Achieved | K209: 70.00 | L209: 17.95% | M209: Successful | N209: 2016-04-18
A210: 32 | B210: 2015-07-10 | D210: Dolphin OffShore | E210: Accu | F210: 118-127 | I210: 172.00 | J210: Open
A211: 33 | B211: 2015-08-03 | D211: Allcargo logistics | E211: Accu | F211: 297.50 | H211: 350 | I211: 360.00 | J211: Profit of Rs 52.50/- | K211: 52.50 | L211: =K211/F211 -> 17.65% | M211: Successful | N211: 2015-08-16
A212: 34 | B212: 2015-08-03 | D212: Camline Fine | E212: Accu | F212: 115.50 | H212: 149 | I212: 140.00 | J212: Profit of Rs 33.50/- | K212: 33.50 | L212: 29.00% | M212: Successful | N212: 2017-01-05
A213: 35 | B213: 2015-09-04 | D213: TCI | E213: Accu | F213: 226.00 | H213: 292 | I213: 292.00 | J213: Target Achieved | K213: 66.00 | L213: 29.20% | M213: Successful | N213: 2015-10-09
A214: 36 | B214: 2015-09-07 | D214: Kalpataru Power Transmission Ltd | E214: Accu | F214: 232.50 | H214: 312.5 | I214: 310.00 | J214: Target Achieved | K214: 80.00 | L214: 34.41% | M214: Successful | N214: 2017-03-29
A215: 37 | B215: 2015-09-21 | D215: LLOYD ELECTRIC & ENG LTD | E215: Accu | F215: 196.50 | H215: 238 | I215: 238.00 | J215: Target Achieved | K215: 41.50 | L215: 21.12% | M215: Successful | N215: 2015-10-14
A216: 38 | B216: 2015-09-24 | D216: L&T Finance Holding | E216: Accu | F216: 65.00 | H216: 82 | I216: 82.00 | J216: Target Achieved | K216: 17.00 | L216: 26.15% | M216: Successful | N216: 2016-07-27
A217: 39 | B217: 2015-10-14 | D217: KEC International ltd | E217: Accu | F217: 144.00 | H217: 182.5 | I217: 181.00 | J217: Target Achieved | K217: 38.50 | L217: 26.74% | M217: Successful | N217: 2017-03-23
A218: 40 | B218: 2015-10-14 | D218: Gruh Finance | E218: Accu | F218: 264.00 | H218: 311 | I218: 311.00 | J218: Target Achieved | K218: 47.00 | L218: 17.80% | M218: Successful | N218: 2016-08-22
A219: 41 | B219: 2015-11-10 | D219: Pidilitind | E219: Buy | F219: 549.50 | H219: 630 | I219: 630.00 | J219: Target Achieved | K219: 80.50 | L219: 14.65% | M219: Successful | N219: 2016-02-19
A220: 42 | B220: 2015-12-04 | D220: Zensar Technology | E220: Accu | F220: 1027.50 | H220: 1315 | I220: 1250.00 | J220: Target Achieved | K220: =H220-F220 -> 287.50 | L220: 27.98% | M220: Successful | N220: 2018-05-24
A221: 43 | B221: 2015-12-29 | D221: Vinati Organics Ltd | E221: Accu | F221: 465.00 | H221: 540 | I221: 540.00 | J221: Target Achieved | K221: 75.00 | L221: =K221/F221 -> 16.13% | M221: Successful | N221: 2016-06-09
A222: 44 | B222: 2016-01-11 | D222: GSFC | E222: Buy | F222: 81.00 | H222: 110 | I222: 110.00 | J222: Target Achieved | K222: 29.00 | L222: 35.80% | M222: Successful | N222: 2017-01-10
A223: 45 | B223: 2016-01-13 | D223: SSWL | E223: Buy | F223: 417.50 | H223: 547 | I223: 535.00 | J223: Target Achieved | K223: 129.50 | L223: 31.02% | M223: Successful | N223: 2016-07-27
A224: 46 | B224: 2016-02-08 | D224: Persistent System Ltd | E224: Accu | F224: 650.00 | H224: 800 | I224: 800.00 | J224: Target Achieved | K224: 150.00 | L224: 23.08% | M224: Successful | N224: 2018-02-23
A225: 47 | B225: 2016-03-04 | D225: UPL | E225: Accu | F225: 437.50 | H225: 504.5 | I225: 522.00 | J225: Profit of Rs.67/- | K225: 67.00 | L225: 15.31% | M225: Successful | N225: 2016-04-20
A226: 48 | B226: 2016-03-09 | D226: Ashoka Buildcon Ltd | E226: Accu | F226: 189.50 | H226: 218 | I226: 218.00 | J226: Target Achieved | K226: 28.50 | L226: 15.04% | M226: Successful | N226: 2017-10-26
A227: 49 | B227: 2016-04-11 | D227: PTC INDIA FIN SERV LTD | E227: Accu | F227: 36-37 | I227: 60.00 | J227: Open
A228: 50 | B228: 2016-04-12 | D228: CAMLINFINE $ | E228: Accu | F228: 93.00 | H228: 149 | I228: 140.00 | J228: Profit of Rs 56/- | K228: 56.00 | L228: =K228/F228 -> 60.22% | M228: Successful | N228: 2017-01-05
A229: 51 | B229: 2016-04-12 | D229: Greaves Cotton Ltd. | E229: Accu | F229: 130.00 | H229: 150 | I229: 150-155 | J229: Target Achieved | K229: 20.00 | L229: 15.38% | M229: Successful | N229: 2016-07-13
A230: 52 | B230: 2016-04-13 | D230: DHFL | E230: Accu | F230: 196.00 | H230: 299 | I230: 299.00 | J230: Target Achieved | K230: 103.00 | L230: 52.55% | M230: Successful | N230: 2016-09-07
A231: 53 | B231: 2016-04-13 | D231: Magma | E231: Accu | F231: 88.00 | H231: 103 | I231: 103.00 | J231: Target Achieved | K231: 15.00 | L231: 17.05% | M231: Successful | N231: 2016-06-09
A232: 54 | B232: 2016-05-02 | D232: KEC International ltd $ | E232: Accu | F232: 127.50 | H232: 148 | I232: 148-150 | J232: Target Achieved | K232: 20.50 | L232: 16.08% | M232: Successful | N232: 2016-07-13
A233: 55 | B233: 2016-05-03 | D233: Mindtree | E233: Accu | F233: 675.00 | H233: 815 | I233: 790-800 | J233: Target Achieved | K233: 140.00 | L233: 20.74% | M233: Successful | N233: 2018-02-23
A234: 56 | B234: 2016-06-01 | D234: Atulauto | E234: Accu | F234: 495-505 | I234: 565-570 | J234: Open
A235: 57 | B235: 2016-06-06 | D235: TRITURBINE | E235: Accu | F235: 110.00 | H235: 126.5 | I235: 125.00 | J235: Profit of Rs.16.50/- | K235: 16.50 | L235: =K235/F235 -> 15.00% | M235: Successful | N235: 2016-07-01
A236: 58 | B236: 2016-06-17 | D236: Pennar Industries Ltd | E236: Accu | F236: 44.00 | H236: 69.5 | I236: 69.50 | J236: Profit of Rs.25.50/- | K236: 25.50 | L236: =K236/F236 -> 57.95% | M236: Successful | N236: 2017-08-30
A237: 59 | B237: 2016-06-28 | D237: EVEREADY INDS. IND. LTD. | E237: Accu | F237: 262.50 | H237: 340 | I237: 333.00 | J237: Profit of Rs.77.50/- | K237: 77.50 | L237: =K237/F237 -> 29.52% | M237: Successful | N237: 2017-10-09
... 69 more rows

Sheet Call Tracker (Currency) (hidden)
A1: Master Trade High Risk
A2: Sr.no | B2: Date | C2: Company | D2: Rec | E2: Rec Price | F2: Stop Loss | G2: Call Closed At | H2: Target | I2: Remark | K2: Profit / Loss per share | L2: Gain / Loss per Lot | M2: Lot | N2: Status | O2: Closed Date
A3: 1 | B3: 2017-05-08 | C3: USDINR MAY FUT | D3: Buy | E3: 64.3935 | F3: 64.29 | G3: 64.66 | H3: 64.59 | I3: Profit of Rs.0.27/- | K3: 0.27 | L3: 266.5 | M3: 1000 | N3: Successful | O3: 2017-05-09 | R3: P
A4: 2 | B4: 2017-05-08 | C4: USDINR JUN FUT | D4: Buy | E4: 64.6535 | F4: 64.45 | G4: 64.965 | H4: 65.05 | I4: Profit of Rs 0.31/- | K4: 0.31 | L4: 311.5 | M4: 1000 | N4: Successful | O4: 2017-05-09 | R4: P
A5: 3 | B5: 2017-05-09 | C5: EUROINR MAY FUT | D5: Sell | E5: 70.65 | F5: 70.8 | G5: 70.07 | H5: 70.4 | I5: Profit of Rs 0.58/- | K5: 0.58 | L5: 580 | M5: 1000 | N5: Successful | O5: 2017-05-12 | R5: P
A6: 4 | B6: 2017-05-09 | C6: GBPINR MAY FUT | D6: Buy | E6: 83.774 | F6: 83.37 | G6: 83.37 | H6: 84.77 | I6: Loss of Rs 0.40/- | K6: -0.40 | L6: -404 | M6: 1000 | N6: Unsuccessful | O6: 2017-05-11 | R6: P
A7: 5 | B7: 2017-05-11 | C7: USDINR MAY FUT | D7: Buy | E7: 64.6555 | F7: 64.55 | G7: 64.55 | H7: 64.86 | I7: Loss of Rs.0.1055/- | K7: -0.1055 | L7: =K7*M7 -> -105.50 | M7: 1000 | N7: Unsuccessful | O7: 2017-05-11 | R7: P
A8: 6 | B8: 2017-05-15 | C8: USDINR MAY FUT | D8: Buy | E8: 64.2275 | F8: 64.08 | G8: 64.46 | H8: 64.48 | I8: Profit of Rs 0.23/- | K8: 0.23 | L8: 232.5 | M8: 1000 | N8: Successful | O8: 2017-05-18 | R8: P
A9: 7 | B9: 2017-05-19 | C9: USDINR MAY FUT | D9: Sell | E9: 64.83 | F9: 65 | G9: 65 | H9: 64.5 | I9: Loss of Rs.0.17/- | K9: -0.17 | L9: -170 | M9: 1000 | N9: Unsuccessful | O9: 2017-05-19 | R9: P
A10: 8 | B10: 2017-05-23 | C10: USDINR MAY FUT | D10: Buy | E10: 64.83 | F10: 64.62 | G10: 64.95 | H10: 65.2 | I10: Profit of Rs 0.12/- | K10: 0.12 | L10: 120 | M10: 1000 | N10: Successful | O10: 2017-05-24 | R10: P
A11: 9 | B11: 2017-05-25 | C11: USDINR MAY FUT | D11: Buy | E11: 64.57 | F11: 64.25 | G11: 64.56 | H11: 65 | I11: Loss of Rs.0.01/- | K11: -0.01 | L11: -10 | M11: 1000 | N11: Neutral | O11: 2017-05-29 | R11: P
A12: 10 | B12: 2017-05-30 | C12: USDINR JUN FUT | D12: Buy | E12: 64.9125 | F12: 64.71 | G12: 64.71 | H12: 65.31 | I12: Loss of Rs.0.20/- | K12: -0.20 | L12: -202.5 | M12: 1000 | N12: Unsuccessful | O12: 2017-05-31 | R12: P
A13: 11 | B13: 2017-06-01 | C13: USDINR JUN FUT | D13: Buy | E13: 64.655 | F13: 64.45 | G13: 64.45 | H13: 65.05 | I13: Loss of Rs.0.20/- | K13: =G13-E13 -> -0.20 | L13: =K13*M13 -> -205 | M13: 1000.00 | N13: Unsuccessful | O13: 2017-06-08 | R13: P
A14: 12 | B14: 2017-06-12 | C14: USDINR JUN FUT | D14: Buy | E14: 64.45 | F14: 64 | G14: 64.7625 | H14: 65.2 | I14: Profit of Rs 0.31/- | K14: 0.31 | L14: 312.5 | M14: 1000 | N14: Successful | O14: 2017-06-16
A15: 13 | B15: 2017-06-16 | C15: USDINR JUN FUT | D15: Buy | E15: 64.51 | F15: 64.2 | G15: 64.7 | H15: 65.11 | I15: Profit of Rs 0.19/- | K15: 0.19 | L15: 190 | M15: 1000 | N15: Successful | O15: 2017-06-21
A16: 14 | B16: 2017-06-22 | C16: USDINR JUN FUT | D16: Buy | E16: 64.56 | F16: 64.2 | G16: 64.2 | H16: 65.1 | I16: Loss of Rs.0.36/- | K16: -0.36 | L16: -360 | M16: 1000.00 | N16: Unsuccessful | O16: 2017-06-30
A17: 15 | B17: 2017-07-10 | C17: USDINR JUL FUT | D17: Buy | E17: 64.67 | F17: 64.4 | G17: 64.4 | H17: 65.15 | I17: Loss of Rs.0.27/- | K17: -0.27 | L17: -270 | M17: 1000.00 | N17: Unsuccessful | O17: 2017-07-31
A18: 16 | B18: 2017-08-02 | C18: USDINR AUG FUT | D18: Buy | E18: 64.235 | F18: 63.98 | G18: 63.98 | H18: 64.75 | I18: Loss of Rs.0.26/- | K18: -0.26 | L18: -255 | M18: 1000.00 | N18: Unsuccessful | O18: 2017-08-02
A19: 17 | B19: 2017-08-08 | C19: USDINR AUG FUT | D19: Buy | E19: 63.9425 | F19: 63.6 | G19: 64.15 | H19: 64.5 | I19: Profit of Rs 0.21/- | K19: 0.21 | L19: 207.5 | M19: 1000 | N19: Successful | O19: 2017-08-10
A20: 18 | B20: 2017-08-22 | C20: USDINR AUG FUT | D20: Buy | E20: 64.1175 | F20: 63.9 | G20: 64.01 | H20: 64.5 | I20: Loss of Rs.0.11/- | K20: =G20-E20 -> -0.11 | L20: =K20*M20 -> -107.5 | M20: 1000.00 | N20: Unsuccessful | O20: 2017-08-29
A21: 19 | B21: 2017-09-01 | C21: USDINR SEP FUT | D21: Buy | E21: 64.1 | F21: 63.8 | G21: 64.205 | H21: 64.7 | I21: Profit of Rs 0.11/- | K21: 0.11 | L21: 105 | M21: 1000 | N21: Successful | O21: 2017-09-01
A22: 20 | B22: 2017-09-04 | C22: USDINR SEP FUT | D22: Buy | E22: 64.095 | F22: 63.8 | G22: 64.195 | H22: 64.7 | I22: Profit of Rs 0.10/- | K22: 0.10 | L22: =K22*M22 -> 100 | M22: 1000 | N22: Successful | O22: 2017-09-04
A23: 21 | B23: 2017-09-05 | C23: USDINR SEP FUT | D23: Buy | E23: 64.25 | F23: 64 | G23: 64.355 | H23: 64.75 | I23: Profit of Rs 0.11/- | K23: =G23-E23 -> 0.11 | L23: =K23*M23 -> 105 | M23: 1000 | N23: Successful | O23: 2017-09-06
A24: 22 | B24: 2017-09-06 | C24: USDINR SEP FUT | D24: Sell | E24: 64.365 | F24: 64.5 | G24: 64.265 | H24: 64 | I24: Profit of Rs 0.10/- | K24: =E24-G24 -> 0.10 | L24: 100 | M24: 1000 | N24: Successful | O24: 2017-09-06
A25: 23 | B25: 2017-09-07 | C25: USDINR SEP FUT | D25: Buy | E25: 64.145 | F25: 63.9 | G25: 64.2565 | H25: 64.65 | I25: Profit of Rs 0.11/- | K25: =G25-E25 -> 0.11 | L25: =K25*M25 -> 111.5 | M25: 1000 | N25: Successful | O25: 2017-09-14
A26: 24 | B26: 2017-09-11 | C26: JPYINR SEP FUT | D26: Sell | E26: 59.0285 | F26: 59.25 | G26: 58.645 | H26: 58.5 | I26: Profit of Rs 0.38/- | K26: =E26-G26 -> 0.38 | L26: 383.5 | M26: 1000 | N26: Successful | O26: 2017-09-12
A27: 25 | B27: 2017-09-14 | C27: USDINR SEP FUT | D27: Buy | E27: 64.145 | F27: 63.95 | G27: 64.26 | H27: 64.5 | I27: Profit of Rs 0.12/- | K27: =G27-E27 -> 0.12 | L27: 115 | M27: 1000 | N27: Successful | O27: 2017-09-19
A28: 26 | B28: 2017-09-20 | C28: USDINR SEP FUT | D28: Buy | E28: 64.3515 | F28: 64.15 | G28: 64.57 | H28: 64.75 | I28: Profit of Rs 0.22/- | K28: =G28-E28 -> 0.22 | L28: =K28*M28 -> 218.5 | M28: 1000 | N28: Successful | O28: 2017-09-21
A29: 27 | B29: 2017-09-21 | C29: USDINR SEP FUT | D29: Sell | E29: 64.795 | F29: 65.05 | G29: 65.05 | H29: 64.4 | I29: Loss of Rs.0.17/- | K29: -0.17 | L29: -170 | M29: 1000.00 | N29: Unsuccessful | O29: 2017-09-22
A30: 28 | B30: 2017-09-25 | C30: USDINR SEP FUT | D30: Buy | E30: 64.77 | F30: 64.4 | G30: 64.92 | H30: 65.1 | I30: Profit of Rs 0.15/- | K30: =G30-E30 -> 0.15 | L30: =K30*M30 -> 150 | M30: 1000 | N30: Successful | O30: 2017-09-25
A31: 29 | B31: 2017-09-25 | C31: USDINR SEP FUT | D31: Sell | E31: 65.1077 | F31: 65.3 | G31: 65.3 | H31: 64.5 | I31: Loss of Rs.0.19/- | K31: -0.19 | L31: -190 | M31: 1000.00 | N31: Unsuccessful | O31: 2017-09-26
A32: 30 | B32: 2017-09-27 | C32: USDINR SEP FUT | D32: Sell | E32: 65.7225 | F32: 65.83 | G32: 65.7 | H32: 65.52 | I32: Profit of Rs 0.02/- | K32: =E32-G32 -> 0.02 | L32: =K32*M32 -> 22.5 | M32: 1000 | N32: Neutral | O32: 2017-09-27
A33: 31 | B33: 2017-09-27 | C33: USDINR OCT FUT | D33: Sell | E33: 66 | F33: 66.5 | G33: 65.895 | H33: 65 | I33: Profit of Rs 0.11/- | K33: =E33-G33 -> 0.11 | L33: 105 | M33: 1000 | N33: Successful | O33: 2017-09-27
A34: 32 | B34: 2017-09-28 | C34: USDINR OCT FUT | D34: Sell | E34: 66.075 | F34: 66.3 | G34: 65.96 | H34: 65.4 | I34: Profit of Rs 0.12/- | K34: =E34-G34 -> 0.12 | L34: =K34*M34 -> 115 | M34: 1000 | N34: Successful | O34: 2017-09-28
A35: 33 | B35: 2017-09-29 | C35: GBPINR OCT fut | D35: Buy | E35: 87.745 | F35: 87.5 | G35: 87.84 | H35: 88.25 | I35: Profit of Rs 0.09/- | K35: =G35-E35 -> 0.09 | L35: 95 | M35: 1000 | N35: Successful | O35: 2017-09-29
A36: 34 | B36: 2017-09-29 | C36: USDINR OCT FUT | D36: Buy | E36: 65.514 | F36: 65.25 | G36: 65.85 | H36: 66 | I36: Profit of Rs 0.34/- | K36: 0.34 | L36: =K36*M36 -> 336 | M36: 1000 | N36: Successful | O36: 2017-10-03
A37: 35 | B37: 2017-10-09 | C37: USDINR OCT FUT | D37: Buy | E37: 65.48 | F37: 65.23 | G37: 65.5775 | H37: 65.95 | I37: Profit of Rs 0.10/- | K37: =G37-E37 -> 0.10 | L37: =K37*M37 -> 97.5 | M37: 1000 | N37: Successful | O37: 2017-10-09
A38: 36 | B38: 2017-10-10 | C38: USDINR OCT FUT | D38: Buy | E38: 65.41 | F38: 65.15 | G38: 65.5075 | H38: 66 | I38: Profit of Rs 0.10/- | K38: 0.10 | L38: 97.5 | M38: 1000 | N38: Successful | O38: 2017-10-10
A39: 37 | B39: 2017-10-11 | C39: USDINR OCT FUT | D39: Buy | E39: 65.38 | F39: 65.13 | G39: 65.13 | H39: 65.88 | I39: Loss of Rs.0.25/- | K39: -0.25 | L39: -250 | M39: 1000.00 | N39: Unsuccessful | O39: 2017-10-13
A40: 38 | B40: 2017-10-16 | C40: USDINR OCT FUT | D40: Buy | E40: 64.7925 | F40: 64.54 | G40: 64.905 | H40: 65.3 | I40: Profit of Rs 0.11/- | K40: =G40-E40 -> 0.11 | L40: =K40*M40 -> 112.5 | M40: 1000 | N40: Successful | O40: 2017-10-17
A41: 39 | B41: 2017-10-23 | C41: USDINR OCT FUT | D41: Buy | E41: 65.115 | F41: 64.85 | G41: 65.21 | H41: 65.5 | I41: Profit of Rs 0.09/- | K41: =G41-E41 -> 0.09 | L41: =K41*M41 -> 95 | M41: 1000 | N41: Successful | O41: 2017-10-25
A42: 40 | B42: 2017-10-23 | C42: JPYINR OCT FUT | D42: Buy | E42: 57.285 | F42: 57.03 | G42: 57.38 | H42: 58.4 | I42: Profit of Rs 0.10/- | K42: =G42-E42 -> 0.10 | L42: =K42*M42 -> 95 | M42: 1000 | N42: Successful | O42: 2017-10-23
A43: 41 | B43: 2017-10-26 | C43: USDINR OCT FUT | D43: Buy | E43: 64.755 | F43: 64.5 | G43: 64.87 | H43: 65.25 | I43: Profit of Rs 0.12/- | K43: 0.12 | L43: 115 | M43: 1000 | N43: Successful | O43: 2017-10-25
A44: 42 | B44: 2017-10-30 | C44: USDINR NOV FUT | D44: Buy | E44: 65.035 | F44: 64.79 | G44: 64.79 | H44: 65.5 | I44: Loss of Rs.0.24/- | K44: -0.24 | L44: -245 | M44: 1000.00 | N44: Unsuccessful | O44: 2017-11-01
A45: 43 | B45: 2017-11-01 | C45: JPYINR NOV FUT | D45: Buy | E45: 56.9875 | F45: 56.73 | G45: 57.0959 | H45: 57.5 | I45: Profit of Rs 0.11/- | K45: =G45-E45 -> 0.11 | L45: =K45*M45 -> 108.4 | M45: 1000 | N45: Successful | O45: 2017-11-07
A46: 44 | B46: 2017-11-02 | C46: USDINR NOV FUT | D46: Buy | E46: 64.7838 | F46: 64.5 | G46: 64.89 | H46: 65.25 | I46: Profit of Rs 0.11/- | K46: =G46-E46 -> 0.11 | L46: =K46*M46 -> 106.2 | M46: 1000 | N46: Successful | O46: 2017-11-06
A47: 45 | B47: 2017-11-08 | C47: USDINR NOV FUT | D47: Buy | E47: 65.1363 | F47: 64.8375 | G47: 65.235 | H47: 65.73 | I47: Profit of Rs 0.10/- | K47: =G47-E47 -> 0.10 | L47: =K47*M47 -> 98.7 | M47: 1000 | N47: Successful | O47: 2017-11-10
A48: 46 | B48: 2017-11-08 | C48: GBPINR NOV FUT | D48: Buy | E48: 85.4983 | F48: 85.25 | G48: 85.6 | H48: 86 | I48: Profit of Rs 0.10/- | K48: =G48-E48 -> 0.10 | L48: =K48*M48 -> 101.7 | M48: 1000 | N48: Successful | O48: 2017-11-09
A49: 47 | B49: 2017-11-16 | C49: EURINR NOV FUT | D49: Buy | E49: 76.8975 | F49: 76.3975 | G49: 76.3975 | H49: 77.8975 | I49: Loss of Rs.0.50/- | K49: =G49-E49 -> -0.50 | L49: -500 | M49: 1000.00 | N49: Unsuccessful | O49: 2017-11-01
A50: 48 | B50: 2017-11-16 | C50: JPYINR NOV FUT | D50: Buy | E50: 57.6625 | F50: 57.2675 | G50: 57.8075 | H50: 58.6675 | I50: Profit of Rs 0.14/- | K50: =G50-E50 -> 0.14 | L50: =K50*M50 -> 145 | M50: 1000 | N50: Successful | O50: 2017-11-17
A51: 49 | B51: 2017-11-22 | C51: EURINR NOV FUT | D51: Buy | E51: 76.175 | F51: 75.95 | G51: 76.335 | H51: 76.6 | I51: Profit of Rs 0.16/- | K51: 0.16 | L51: =K51*M51 -> 160 | M51: 1000 | N51: Successful | O51: 2017-11-22
A52: 50 | B52: 2017-11-22 | C52: USDINR NOV FUT | D52: Buy | E52: 64.87 | F52: 64.5 | G52: 64.5 | H52: 65.5 | I52: Loss of Rs.0.37/- | K52: -0.37 | L52: -370 | M52: 1000.00 | N52: Unsuccessful | O52: 2017-11-27
A53: 51 | B53: 2017-11-28 | C53: GBPINR DEC FUT | D53: Buy | E53: 86.17 | F53: 85.85 | G53: 86.46 | H53: 87 | I53: Profit of Rs 0.29/- | K53: 0.29 | L53: =K53*M53 -> 290 | M53: 1000 | N53: Successful | O53: 2017-11-29
A54: 52 | B54: 2017-11-28 | C54: JPYINR DEC FUT | D54: Buy | E54: 58.16 | F54: 57.85 | G54: 57.85 | H54: 58.6 | I54: Loss of Rs.0.31/- | K54: -0.31 | L54: -310 | M54: 1000.00 | N54: Unsuccessful | O54: 2017-11-29
A55: 53 | B55: 2017-11-28 | C55: USDINR DEC FUT | D55: Buy | E55: 64.63 | F55: 64.13 | G55: 64.13 | H55: 65.63 | I55: Loss of Rs.0.50/- | K55: -0.50 | L55: =K55*M55 -> -500 | M55: 1000.00 | N55: Unsuccessful | O55: 2017-12-15
A56: 54 | B56: 2017-11-28 | C56: EURINR DEC FUT | D56: Buy | E56: 76.93 | F56: 76.43 | G56: 76.43 | H56: 77.93 | I56: Loss of Rs.0.50/- | K56: =G56-E56 -> -0.50 | L56: =K56*M56 -> -500 | M56: 1000.00 | N56: Unsuccessful | O56: 2017-11-29
A57: 55 | B57: 2017-12-12 | C57: EURINR DEC FUT | D57: Buy | E57: 76.105 | F57: 75.7 | G57: 76.27 | H57: 76.8 | I57: Profit of Rs 0.16/- | K57: =G57-E57 -> 0.16 | L57: 165 | M57: 1000 | N57: Successful | O57: 2017-12-14
A58: 56 | B58: 2017-12-12 | C58: JPYINR DEC FUT | D58: Buy | E58: 56.975 | F58: 56.7 | G58: 57.21 | H58: 57.6 | I58: Profit of Rs 0.23/- | K58: =G58-E58 -> 0.23 | L58: =K58*M58 -> 235 | M58: 1000 | N58: Successful | O58: 2017-12-14

Sheet Sheet2 (hidden)
A1: SYMBOL | B1: SERIES | C1: OPEN | D1: HIGH | E1: LOW | F1: CLOSE | G1: LAST | H1: PREVCLOSE | I1: TOTTRDQTY | J1: TOTTRDVAL | K1: TIMESTAMP | L1: TOTALTRADES | M1: ISIN | N1: ISIN
A2: 20MICRONS | B2: EQ | C2: 42.2 | D2: 43.55 | E2: 41 | F2: 43 | G2: 43 | H2: 41.65 | I2: 139193 | J2: 5885953.4 | K2: 2018-05-31 | L2: 802 | M2: INE144J01027
A3: 21STCENMGM | B3: EQ | C3: 38 | D3: 38.5 | E3: 37.55 | F3: 38.5 | G3: 38.5 | H3: 38.3 | I3: 2666 | J3: 100556.25 | K3: 2018-05-31 | L3: 46 | M3: INE253B01015
A4: 3IINFOTECH | B4: EQ | C4: 4.85 | D4: 4.85 | E4: 4.75 | F4: 4.75 | G4: 4.75 | H4: 4.8 | I4: 1103902 | J4: 5298891.15 | K4: 2018-05-31 | L4: 579 | M4: INE748C01020
A5: 3MINDIA | B5: EQ | C5: 20099 | D5: 20099.95 | E5: 19487 | F5: 19543.6 | G5: 19500.3 | H5: 20011.75 | I5: 2512 | J5: 49400782.15 | K5: 2018-05-31 | L5: 809 | M5: INE470A01017
A6: 3PLAND | B6: EQ | C6: 13.45 | D6: 13.75 | E6: 13.15 | F6: 13.7 | G6: 13.75 | H6: 13.45 | I6: 1127 | J6: 15209.7 | K6: 2018-05-31 | L6: 20 | M6: INE105C01023
A7: 5PAISA | B7: EQ | C7: 440.15 | D7: 451 | E7: 408.5 | F7: 408.7 | G7: 408.5 | H7: 429.95 | I7: 11710 | J7: 4990547.05 | K7: 2018-05-31 | L7: 566 | M7: INE618L01018
A8: 63MOONS | B8: EQ | C8: 78.6 | D8: 79.3 | E8: 77.1 | F8: 77.85 | G8: 77.7 | H8: 78.4 | I8: 149159 | J8: 11669637.6 | K8: 2018-05-31 | L8: 1835 | M8: INE111B01023
A9: 8KMILES | B9: EQ | C9: 627.5 | D9: 632 | E9: 596 | F9: 602.2 | G9: 599.5 | H9: 619.35 | I9: 153913 | J9: 94364448.7 | K9: 2018-05-31 | L9: 6696 | M9: INE650K01021
A10: A2ZINFRA | B10: EQ | C10: 24.5 | D10: 25.05 | E10: 23.2 | F10: 23.45 | G10: 23.6 | H10: 24.25 | I10: 478728 | J10: 11533404.8 | K10: 2018-05-31 | L10: 2230 | M10: INE619I01012
A11: AARTIDRUGS | B11: EQ | C11: 533.95 | D11: 533.95 | E11: 517 | F11: 519.65 | G11: 517.1 | H11: 519.5 | I11: 3721 | J11: 1938044.6 | K11: 2018-05-31 | L11: 358 | M11: INE767A01016
A12: AARTIIND | B12: EQ | C12: 1242 | D12: 1272.35 | E12: 1216.8 | F12: 1244.5 | G12: 1263 | H12: 1240.2 | I12: 31226 | J12: 38404008.3 | K12: 2018-05-31 | L12: 3025 | M12: INE769A01020
A13: AARVEEDEN | B13: EQ | C13: 37.55 | D13: 37.95 | E13: 36.55 | F13: 36.65 | G13: 36.55 | H13: 37.6 | I13: 50919 | J13: 1888365.4 | K13: 2018-05-31 | L13: 126 | M13: INE273D01019
A14: ABAN | B14: EQ | C14: 146 | D14: 147.45 | E14: 140 | F14: 141.3 | G14: 141.25 | H14: 145.8 | I14: 1275349 | J14: 182544195.3 | K14: 2018-05-31 | L14: 15310 | M14: INE421A01028
A15: ABB | B15: EQ | C15: 1242.25 | D15: 1254.95 | E15: 1220 | F15: 1231.85 | G15: 1231 | H15: 1239.45 | I15: 41589 | J15: 51405300.95 | K15: 2018-05-31 | L15: 3350 | M15: INE117A01022
A16: ABBOTINDIA | B16: EQ | C16: 6760 | D16: 6810 | E16: 6651 | F16: 6674.35 | G16: 6651 | H16: 6736.85 | I16: 5992 | J16: 40242845.55 | K16: 2018-05-31 | L16: 3360 | M16: INE358A01014
A17: ABCAPITAL | B17: EQ | C17: 148.2 | D17: 149.2 | E17: 146.1 | F17: 146.7 | G17: 146.55 | H17: 147.5 | I17: 988712 | J17: 145785273.1 | K17: 2018-05-31 | L17: 10769 | M17: INE674K01013
A18: ABFRL | B18: EQ | C18: 146.35 | D18: 149 | E18: 146.3 | F18: 148.3 | G18: 148 | H18: 146.8 | I18: 266120 | J18: 39334429.1 | K18: 2018-05-31 | L18: 2866 | M18: INE647O01011
A19: ACC | B19: EQ | C19: 1315 | D19: 1364 | E19: 1302.6 | F19: 1354.6 | G19: 1358 | H19: 1309.4 | I19: 3873328 | J19: 5223620633 | K19: 2018-05-31 | L19: 103723 | M19: INE012A01025
A20: ACCELYA | B20: EQ | C20: 1185 | D20: 1185 | E20: 1150 | F20: 1166.2 | G20: 1165.05 | H20: 1168.8 | I20: 2632 | J20: 3045237.65 | K20: 2018-05-31 | L20: 349 | M20: INE793A01012
A21: ACE | B21: EQ | C21: 167.7 | D21: 169.45 | E21: 160.1 | F21: 162.05 | G21: 162.6 | H21: 166.35 | I21: 406576 | J21: 66535468.2 | K21: 2018-05-31 | L21: 4493 | M21: INE731H01025
A22: ADANIENT | B22: EQ | C22: 124 | D22: 124.25 | E22: 120.25 | F22: 121 | G22: 121.1 | H22: 123.4 | I22: 4584277 | J22: 558030610.6 | K22: 2018-05-31 | L22: 23218 | M22: INE423A01024
A23: ADANIPORTS | B23: EQ | C23: 375.5 | D23: 397.6 | E23: 369.25 | F23: 392.15 | G23: 393.5 | H23: 374.4 | I23: 11133305 | J23: 4318347437 | K23: 2018-05-31 | L23: 93631 | M23: INE742F01042
A24: ADANIPOWER | B24: EQ | C24: 20.2 | D24: 20.5 | E24: 19.9 | F24: 20.15 | G24: 20.25 | H24: 20 | I24: 13337604 | J24: 268695972.2 | K24: 2018-05-31 | L24: 13030 | M24: INE814H01011
A25: ADANITRANS | B25: EQ | C25: 136.3 | D25: 140.5 | E25: 134.7 | F25: 136.05 | G25: 135.55 | H25: 136.3 | I25: 421790 | J25: 58097528.85 | K25: 2018-05-31 | L25: 4785 | M25: INE931S01010
A26: ADFFOODS | B26: EQ | C26: 270 | D26: 273.85 | E26: 261.25 | F26: 263.7 | G26: 264 | H26: 269.55 | I26: 89088 | J26: 23746208.45 | K26: 2018-05-31 | L26: 2098 | M26: INE982B01019
A27: ADHUNIK | B27: EQ | C27: 4.1 | D27: 4.1 | E27: 3.85 | F27: 3.95 | G27: 3.95 | H27: 3.95 | I27: 49171 | J27: 196153.55 | K27: 2018-05-31 | L27: 106 | M27: INE400H01019
A28: ADHUNIKIND | B28: EQ | C28: 61.45 | D28: 62.1 | E28: 59.35 | F28: 61.6 | G28: 62.05 | H28: 59.25 | I28: 104504 | J28: 6404040.5 | K28: 2018-05-31 | L28: 358 | M28: INE452L01012
A29: ADLABS | B29: EQ | C29: 40.8 | D29: 41.6 | E29: 39.8 | F29: 40 | G29: 39.85 | H29: 40.6 | I29: 62058 | J29: 2505156.65 | K29: 2018-05-31 | L29: 381 | M29: INE172N01012
A30: ADORWELD | B30: EQ | C30: 373.95 | D30: 380 | E30: 355.05 | F30: 357.4 | G30: 356 | H30: 354.45 | I30: 10568 | J30: 3867752.2 | K30: 2018-05-31 | L30: 508 | M30: INE045A01017
A31: ADROITINFO | B31: EQ | C31: 29.4 | D31: 29.4 | E31: 24.2 | F31: 27.2 | G31: 28.1 | H31: 28.05 | I31: 68329 | J31: 1762428.35 | K31: 2018-05-31 | L31: 482 | M31: INE737B01033
A32: ADSL | B32: EQ | C32: 18.85 | D32: 18.85 | E32: 17.1 | F32: 17.45 | G32: 17.4 | H32: 18.55 | I32: 15042 | J32: 268329.85 | K32: 2018-05-31 | L32: 89 | M32: INE102I01027
A33: ADVANIHOTR | B33: EQ | C33: 57.6 | D33: 57.6 | E33: 55.65 | F33: 55.7 | G33: 55.7 | H33: 56.1 | I33: 5497 | J33: 309264.2 | K33: 2018-05-31 | L33: 96 | M33: INE199C01026
A34: ADVENZYMES | B34: EQ | C34: 233.5 | D34: 233.5 | E34: 217.1 | F34: 220.85 | G34: 221 | H34: 231.65 | I34: 463209 | J34: 103572494.9 | K34: 2018-05-31 | L34: 9231 | M34: INE837H01020
A35: AEGISCHEM | B35: EQ | C35: 265 | D35: 278.7 | E35: 260 | F35: 273 | G35: 273.5 | H35: 264.75 | I35: 107595 | J35: 28875696.85 | K35: 2018-05-31 | L35: 3527 | M35: INE208C01025
A36: AFL | B36: EQ | C36: 55 | D36: 56.85 | E36: 53.05 | F36: 53.45 | G36: 53.05 | H36: 54.7 | I36: 2573 | J36: 139504.4 | K36: 2018-05-31 | L36: 30 | M36: INE020G01017
A37: AGARIND | B37: EQ | C37: 243 | D37: 250 | E37: 237.95 | F37: 241.8 | G37: 245 | H37: 245.8 | I37: 12136 | J37: 2919244.3 | K37: 2018-05-31 | L37: 94 | M37: INE204E01012
A38: AGCNET | B38: EQ | C38: 137 | D38: 139.75 | E38: 123.05 | F38: 123.55 | G38: 123.2 | H38: 136.7 | I38: 29339 | J38: 3734675.2 | K38: 2018-05-31 | L38: 702 | M38: INE676A01019
A39: AGLSL | B39: EQ | C39: 96 | D39: 96.85 | E39: 94.45 | F39: 95 | G39: 95 | H39: 95 | I39: 10358 | J39: 985496.2 | K39: 2018-05-31 | L39: 98 | M39: INE517U01013
A40: AGRITECH | B40: EQ | C40: 113.4 | D40: 116 | E40: 95.5 | F40: 113.15 | G40: 112.25 | H40: 119 | I40: 93210 | J40: 10103600.8 | K40: 2018-05-31 | L40: 1511 | M40: INE449G01018
A41: AHLEAST | B41: EQ | C41: 306.2 | D41: 306.2 | E41: 300 | F41: 301 | G41: 301 | H41: 300 | I41: 5560 | J41: 1678922.15 | K41: 2018-05-31 | L41: 84 | M41: INE926K01017
A42: AHLUCONT | B42: EQ | C42: 399 | D42: 399 | E42: 371.5 | F42: 372.4 | G42: 371.55 | H42: 391.65 | I42: 7009 | J42: 2658737.55 | K42: 2018-05-31 | L42: 532 | M42: INE758C01029
A43: AHLWEST | B43: BE | C43: 285.95 | D43: 315.95 | E43: 285.95 | F43: 296 | G43: 296 | H43: 301 | I43: 638 | J43: 188021.25 | K43: 2018-05-31 | L43: 11 | M43: INE915K01010
A44: AIAENG | B44: EQ | C44: 1599 | D44: 1599 | E44: 1536.5 | F44: 1542.25 | G44: 1565 | H44: 1575 | I44: 33910 | J44: 52517543.35 | K44: 2018-05-31 | L44: 3841 | M44: INE212H01026
A45: AICHAMP | B45: BE | C45: 22.05 | D45: 22.05 | E45: 22.05 | F45: 22.05 | G45: 22.05 | H45: 23.05 | I45: 5 | J45: 110.25 | K45: 2018-05-31 | L45: 1 | M45: INE768E01024
A46: AIFL | B46: EQ | C46: 491.05 | D46: 496 | E46: 484.6 | F46: 487.75 | G46: 485 | H46: 496.55 | I46: 120983 | J46: 59140499.6 | K46: 2018-05-31 | L46: 836 | M46: INE428O01016
A47: AJANTPHARM | B47: EQ | C47: 982 | D47: 989.9 | E47: 953 | F47: 962.35 | G47: 966.45 | H47: 985 | I47: 442907 | J47: 428714487.4 | K47: 2018-05-31 | L47: 11451 | M47: INE031B01049
A48: AJMERA | B48: EQ | C48: 250.45 | D48: 251.1 | E48: 241 | F48: 242.9 | G48: 245.6 | H48: 248.4 | I48: 69291 | J48: 16919705.4 | K48: 2018-05-31 | L48: 1359 | M48: INE298G01027
A49: AKSHARCHEM | B49: EQ | C49: 635.55 | D49: 654.4 | E49: 607.15 | F49: 650.3 | G49: 651 | H49: 649.95 | I49: 26795 | J49: 17176614.9 | K49: 2018-05-31 | L49: 2806 | M49: INE542B01011
A50: AKSHOPTFBR | B50: EQ | C50: 36.6 | D50: 36.6 | E50: 33.4 | F50: 33.55 | G50: 33.55 | H50: 36.3 | I50: 1715832 | J50: 59557175.1 | K50: 2018-05-31 | L50: 4645 | M50: INE523B01011
A51: AKZOINDIA | B51: EQ | C51: 1938 | D51: 1939.8 | E51: 1915 | F51: 1933.3 | G51: 1938 | H51: 1929.9 | I51: 21350 | J51: 40996662.8 | K51: 2018-05-31 | L51: 563 | M51: INE133A01011
A52: ALANKIT | B52: EQ | C52: 33.5 | D52: 34.65 | E52: 32.4 | F52: 32.7 | G52: 32.95 | H52: 33.15 | I52: 115202 | J52: 3848033.25 | K52: 2018-05-31 | L52: 675 | M52: INE914E01040
A53: ALBERTDAVD | B53: EQ | C53: 380 | D53: 380 | E53: 372.1 | F53: 378.05 | G53: 378 | H53: 388.15 | I53: 1001 | J53: 377639.3 | K53: 2018-05-31 | L53: 22 | M53: INE155C01010
A54: ALBK | B54: EQ | C54: 41.95 | D54: 42.4 | E54: 41 | F54: 41.8 | G54: 41.7 | H54: 41.85 | I54: 3067446 | J54: 127541552.5 | K54: 2018-05-31 | L54: 7648 | M54: INE428A01015
A55: ALCHEM | B55: BE | C55: 5.8 | D55: 6.15 | E55: 5.7 | F55: 6.15 | G55: 6.15 | H55: 5.9 | I55: 5410 | J55: 32773.2 | K55: 2018-05-31 | L55: 20 | M55: INE964B01033
A56: ALEMBICLTD | B56: EQ | C56: 48.35 | D56: 48.85 | E56: 44.6 | F56: 44.9 | G56: 45.05 | H56: 48.35 | I56: 333770 | J56: 15343359.7 | K56: 2018-05-31 | L56: 3785 | M56: INE426A01027
A57: ALICON | B57: EQ | C57: 637.15 | D57: 637.15 | E57: 623.15 | F57: 631.5 | G57: 630.5 | H57: 639.9 | I57: 1054 | J57: 663806.85 | K57: 2018-05-31 | L57: 69 | M57: INE062D01024
A58: ALKALI | B58: EQ | C58: 75.15 | D58: 75.85 | E58: 74.1 | F58: 75 | G58: 75 | H58: 75.2 | I58: 3151 | J58: 236741.95 | K58: 2018-05-31 | L58: 48 | M58: INE773I01017
A59: ALKEM | B59: EQ | C59: 1985 | D59: 1985 | E59: 1903.05 | F59: 1916.85 | G59: 1909 | H59: 1983.2 | I59: 32983 | J59: 63988134.85 | K59: 2018-05-31 | L59: 6376 | M59: INE540L01014
A60: ALKYLAMINE | B60: EQ | C60: 666.95 | D60: 674.95 | E60: 642.6 | F60: 651.65 | G60: 659.9 | H60: 666.95 | I60: 2472 | J60: 1624928.5 | K60: 2018-05-31 | L60: 169 | M60: INE150B01021
A61: ALLCARGO | B61: EQ | C61: 127.95 | D61: 127.95 | E61: 123.35 | F61: 124.7 | G61: 124 | H61: 126 | I61: 163546 | J61: 20503456.5 | K61: 2018-05-31 | L61: 2522 | M61: INE418H01029
A62: ALLSEC | B62: EQ | C62: 304.95 | D62: 305.95 | E62: 290 | F62: 291.9 | G62: 290 | H62: 300.15 | I62: 16055 | J62: 4737432.1 | K62: 2018-05-31 | L62: 517 | M62: INE835G01018
A63: ALMONDZ | B63: BE | C63: 31.45 | D63: 31.5 | E63: 31 | F63: 31 | G63: 31 | H63: 31.45 | I63: 5006 | J63: 155606.2 | K63: 2018-05-31 | L63: 13 | M63: INE326B01027
A64: ALOKTEXT | B64: EQ | C64: 1.85 | D64: 1.85 | E64: 1.85 | F64: 1.85 | G64: 1.85 | H64: 1.8 | I64: 348455 | J64: 644641.75 | K64: 2018-05-31 | L64: 109 | M64: INE270A01011
A65: ALPA | B65: EQ | C65: 30.3 | D65: 31 | E65: 29 | F65: 29.55 | G65: 29.5 | H65: 30.05 | I65: 21684 | J65: 647399.55 | K65: 2018-05-31 | L65: 150 | M65: INE385I01010
A66: ALPHAGEO | B66: EQ | C66: 736.95 | D66: 755 | E66: 715.5 | F66: 723.5 | G66: 724 | H66: 736.4 | I66: 9610 | J66: 7077789.95 | K66: 2018-05-31 | L66: 1244 | M66: INE137C01018
A67: ALPSINDUS | B67: BE | C67: 2.15 | D67: 2.15 | E67: 2.05 | F67: 2.05 | G67: 2.05 | H67: 2.15 | I67: 6220 | J67: 13014.6 | K67: 2018-05-31 | L67: 10 | M67: INE093B01015
A68: AMARAJABAT | B68: EQ | C68: 793 | D68: 803.95 | E68: 777.6 | F68: 798.45 | G68: 796.4 | H68: 788.65 | I68: 496070 | J68: 392927905.4 | K68: 2018-05-31 | L68: 17623 | M68: INE885A01032
A69: AMBER | B69: EQ | C69: 1104.4 | D69: 1105.95 | E69: 1055.8 | F69: 1080.15 | G69: 1075 | H69: 1093.4 | I69: 13885 | J69: 15042497.7 | K69: 2018-05-31 | L69: 1453 | M69: INE371P01015
A70: AMBIKCO | B70: EQ | C70: 1329.95 | D70: 1329.95 | E70: 1306 | F70: 1315.2 | G70: 1320 | H70: 1317.2 | I70: 8361 | J70: 11027356.95 | K70: 2018-05-31 | L70: 392 | M70: INE540G01014
A71: AMBUJACEM | B71: EQ | C71: 207.2 | D71: 209 | E71: 204.6 | F71: 205.4 | G71: 206 | H71: 206.2 | I71: 6571778 | J71: 1354957013 | K71: 2018-05-31 | L71: 65083 | M71: INE079A01024
A72: AMDIND | B72: EQ | C72: 26 | D72: 26.4 | E72: 24.7 | F72: 24.7 | G72: 24.7 | H72: 26 | I72: 37790 | J72: 944746.45 | K72: 2018-05-31 | L72: 107 | M72: INE005I01014
A73: AMJLAND | B73: EQ | C73: 25.3 | D73: 25.45 | E73: 24.05 | F73: 24.45 | G73: 24.45 | H73: 25.2 | I73: 26536 | J73: 651610.8 | K73: 2018-05-31 | L73: 193 | M73: INE606A01024
A74: AMRUTANJAN | B74: EQ | C74: 273 | D74: 276.95 | E74: 270.5 | F74: 272.65 | G74: 272.1 | H74: 272.95 | I74: 4690 | J74: 1284637.1 | K74: 2018-05-31 | L74: 149 | M74: INE098F01031
A75: ANANTRAJ | B75: EQ | C75: 42.55 | D75: 42.8 | E75: 41.25 | F75: 41.75 | G75: 41.75 | H75: 42.55 | I75: 402456 | J75: 16799707.5 | K75: 2018-05-31 | L75: 2188 | M75: INE242C01024
A76: ANDHRABANK | B76: EQ | C76: 37.15 | D76: 37.15 | E76: 36 | F76: 36.45 | G76: 36.2 | H76: 36.5 | I76: 4561240 | J76: 166371054.2 | K76: 2018-05-31 | L76: 9233 | M76: INE434A01013
A77: ANDHRACEMT | B77: EQ | C77: 10 | D77: 10.25 | E77: 9.85 | F77: 9.85 | G77: 10 | H77: 10.05 | I77: 65386 | J77: 653832.8 | K77: 2018-05-31 | L77: 139 | M77: INE666E01012
A78: ANDHRSUGAR | B78: EQ | C78: 385 | D78: 403 | E78: 371.1 | F78: 384.45 | G78: 384 | H78: 390.55 | I78: 105158 | J78: 40832236.2 | K78: 2018-05-31 | L78: 3915 | M78: INE715B01013
A79: ANGIND | B79: BE | C79: 2.65 | D79: 2.85 | E79: 2.65 | F79: 2.7 | G79: 2.7 | H79: 2.75 | I79: 10834 | J79: 29814.35 | K79: 2018-05-31 | L79: 38 | M79: INE017D01010
A80: ANIKINDS | B80: BE | C80: 34 | D80: 35.45 | E80: 33.1 | F80: 34.9 | G80: 34.9 | H80: 34 | I80: 8332 | J80: 286163.5 | K80: 2018-05-31 | L80: 54 | M80: INE087B01017
A81: ANSALAPI | B81: EQ | C81: 17.55 | D81: 17.55 | E81: 16.9 | F81: 17 | G81: 17 | H81: 16.75 | I81: 96819 | J81: 1657414.05 | K81: 2018-05-31 | L81: 227 | M81: INE436A01026
A82: ANSALHSG | B82: EQ | C82: 16.9 | D82: 17.05 | E82: 16.2 | F82: 16.65 | G82: 16.55 | H82: 16.75 | I82: 28969 | J82: 484963.4 | K82: 2018-05-31 | L82: 145 | M82: INE880B01015
A83: ANTGRAPHIC | B83: BE | C83: 0.7 | D83: 0.7 | E83: 0.6 | F83: 0.7 | G83: 0.7 | H83: 0.65 | I83: 156798 | J83: 97979.7 | K83: 2018-05-31 | L83: 73 | M83: INE414B01021
A84: APARINDS | B84: EQ | C84: 721.4 | D84: 721.4 | E84: 695.55 | F84: 705.5 | G84: 709 | H84: 721.4 | I84: 20060 | J84: 14162043.75 | K84: 2018-05-31 | L84: 2778 | M84: INE372A01015
A85: APCL | B85: EQ | C85: 173.3 | D85: 180.9 | E85: 173.3 | F85: 176.95 | G85: 177 | H85: 176.1 | I85: 216 | J85: 38408.85 | K85: 2018-05-31 | L85: 12 | M85: INE071F01012
A86: APCOTEXIND | B86: EQ | C86: 530.4 | D86: 540 | E86: 520 | F86: 529.95 | G86: 534.95 | H86: 531 | I86: 9379 | J86: 4961765.3 | K86: 2018-05-31 | L86: 396 | M86: INE116A01024
A87: APEX | B87: EQ | C87: 585 | D87: 587 | E87: 550.1 | F87: 556.05 | G87: 554 | H87: 581.3 | I87: 162251 | J87: 91022347.7 | K87: 2018-05-31 | L87: 5173 | M87: INE346W01013
A88: APLAPOLLO | B88: EQ | C88: 1890 | D88: 1901.9 | E88: 1860.05 | F88: 1873.5 | G88: 1870.55 | H88: 1887.8 | I88: 12494 | J88: 23567008.2 | K88: 2018-05-31 | L88: 1148 | M88: INE702C01019
A89: APLLTD | B89: EQ | C89: 430.65 | D89: 434.85 | E89: 426.65 | F89: 427.5 | G89: 427 | H89: 430.65 | I89: 30286 | J89: 12966142.5 | K89: 2018-05-31 | L89: 1554 | M89: INE901L01018
A90: APOLLO | B90: EQ | C90: 210.9 | D90: 211.1 | E90: 193 | F90: 194.9 | G90: 194.95 | H90: 208.7 | I90: 51349 | J90: 10257467.45 | K90: 2018-05-31 | L90: 1244 | M90: INE713T01010
A91: APOLLOHOSP | B91: EQ | C91: 998.5 | D91: 1003.8 | E91: 943.8 | F91: 950.35 | G91: 947.5 | H91: 987.65 | I91: 883312 | J91: 856284255.2 | K91: 2018-05-31 | L91: 50716 | M91: INE437A01024
A92: APOLLOTYRE | B92: EQ | C92: 276.55 | D92: 277.55 | E92: 267 | F92: 269.3 | G92: 269.65 | H92: 276.15 | I92: 2039549 | J92: 554700085 | K92: 2018-05-31 | L92: 39216 | M92: INE438A01022
A93: APOLSINHOT | B93: EQ | C93: 1739.95 | D93: 1739.95 | E93: 1631 | F93: 1640.2 | G93: 1631 | H93: 1698.45 | I93: 576 | J93: 959937.7 | K93: 2018-05-31 | L93: 129 | M93: INE451F01016
A94: APTECHT | B94: EQ | C94: 248.9 | D94: 251.65 | E94: 241.2 | F94: 242.35 | G94: 241.8 | H94: 245.2 | I94: 472682 | J94: 116016690 | K94: 2018-05-31 | L94: 6930 | M94: INE266F01018
A95: ARCHIDPLY | B95: EQ | C95: 75.35 | D95: 75.5 | E95: 66.5 | F95: 71.85 | G95: 72.15 | H95: 82.65 | I95: 272671 | J95: 19743433.35 | K95: 2018-05-31 | L95: 2831 | M95: INE877I01016
A96: ARCHIES | B96: BE | C96: 33.35 | D96: 33.8 | E96: 32.2 | F96: 32.55 | G96: 32.5 | H96: 32.9 | I96: 15886 | J96: 521700.45 | K96: 2018-05-31 | L96: 90 | M96: INE731A01020
A97: ARCOTECH | B97: EQ | C97: 23.25 | D97: 23.25 | E97: 22.35 | F97: 22.5 | G97: 22.35 | H97: 22.95 | I97: 243370 | J97: 5510962.9 | K97: 2018-05-31 | L97: 1344 | M97: INE574I01035
A98: ARIES | B98: EQ | C98: 166.1 | D98: 169.45 | E98: 162.1 | F98: 162.9 | G98: 162.75 | H98: 165.05 | I98: 7951 | J98: 1313479.25 | K98: 2018-05-31 | L98: 222 | M98: INE298I01015
A99: ARIHANTSUP | B99: EQ | C99: 119.5 | D99: 120.85 | E99: 113.6 | F99: 118.45 | G99: 118.5 | H99: 119.65 | I99: 84150 | J99: 9921681.3 | K99: 2018-05-31 | L99: 1450 | M99: INE643K01018
A100: ARMANFIN | B100: BE | C100: 383 | D100: 400 | E100: 380 | F100: 390.4 | G100: 393 | H100: 383.65 | I100: 2810 | J100: 1096623 | K100: 2018-05-31 | L100: 51 | M100: INE109C01017
A101: AROGRANITE | B101: EQ | C101: 61.95 | D101: 63.15 | E101: 61.7 | F101: 62.1 | G101: 61.75 | H101: 61.75 | I101: 14558 | J101: 908760.7 | K101: 2018-05-31 | L101: 218 | M101: INE210C01013
A102: ARROWGREEN | B102: EQ | C102: 222.1 | D102: 222.1 | E102: 222.1 | F102: 222.1 | G102: 222.1 | H102: 246.75 | I102: 5985 | J102: 1329268.5 | K102: 2018-05-31 | L102: 159 | M102: INE570D01018
A103: ARROWTEX | B103: EQ | C103: 32.2 | D103: 32.2 | E103: 30.1 | F103: 30.3 | G103: 30.1 | H103: 32.1 | I103: 28176 | J103: 862363.45 | K103: 2018-05-31 | L103: 196 | M103: INE933J01015
A104: ARSHIYA | B104: EQ | C104: 64.5 | D104: 65.3 | E104: 62.65 | F104: 63.05 | G104: 63.05 | H104: 64.5 | I104: 82452 | J104: 5218884.5 | K104: 2018-05-31 | L104: 275 | M104: INE968D01022
A105: ARSSINFRA | B105: BE | C105: 34.9 | D105: 35.9 | E105: 32.5 | F105: 35.7 | G105: 35.9 | H105: 34.2 | I105: 34698 | J105: 1207576.5 | K105: 2018-05-31 | L105: 175 | M105: INE267I01010
A106: ARVIND | B106: EQ | C106: 391.75 | D106: 393.3 | E106: 383.45 | F106: 388.15 | G106: 392.95 | H106: 390.75 | I106: 1184705 | J106: 459326794.9 | K106: 2018-05-31 | L106: 12689 | M106: INE034A01011
A107: ARVSMART | B107: EQ | C107: 175 | D107: 179.55 | E107: 168.05 | F107: 169.25 | G107: 168.5 | H107: 174.3 | I107: 51193 | J107: 8846207.7 | K107: 2018-05-31 | L107: 705 | M107: INE034S01021
A108: ASAHIINDIA | B108: EQ | C108: 345.1 | D108: 357.25 | E108: 340 | F108: 346.65 | G108: 340.5 | H108: 348.05 | I108: 49395 | J108: 17189771.65 | K108: 2018-05-31 | L108: 1831 | M108: INE439A01020
A109: ASAHISONG | B109: EQ | C109: 290.05 | D109: 298 | E109: 284.3 | F109: 286.5 | G109: 285.15 | H109: 287.1 | I109: 12573 | J109: 3652775.6 | K109: 2018-05-31 | L109: 300 | M109: INE228I01012
A110: ASAL | B110: EQ | C110: 69 | D110: 70.65 | E110: 67.75 | F110: 68 | G110: 67.75 | H110: 68.35 | I110: 7598 | J110: 522924.1 | K110: 2018-05-31 | L110: 228 | M110: INE900C01027
A111: ASHAPURMIN | B111: EQ | C111: 61 | D111: 61.9 | E111: 58.5 | F111: 59.3 | G111: 59.4 | H111: 60.6 | I111: 63353 | J111: 3789108.7 | K111: 2018-05-31 | L111: 954 | M111: INE348A01023
A112: ASHIANA | B112: EQ | C112: 154.9 | D112: 156.35 | E112: 148 | F112: 150.35 | G112: 149 | H112: 154.2 | I112: 33498 | J112: 5123627 | K112: 2018-05-31 | L112: 744 | M112: INE365D01021
A113: ASHIMASYN | B113: EQ | C113: 25.15 | D113: 25.6 | E113: 24.2 | F113: 24.3 | G113: 24.25 | H113: 25 | I113: 50996 | J113: 1261143.1 | K113: 2018-05-31 | L113: 310 | M113: INE440A01010
A114: ASHOKA | B114: EQ | C114: 255.75 | D114: 262.6 | E114: 242 | F114: 245 | G114: 242.5 | H114: 253.7 | I114: 467448 | J114: 117273051.5 | K114: 2018-05-31 | L114: 7234 | M114: INE442H01029
A115: ASHOKLEY | B115: EQ | C115: 150.75 | D115: 151.25 | E115: 147.5 | F115: 148.05 | G115: 148.5 | H115: 149.4 | I115: 15790863 | J115: 2350734517 | K115: 2018-05-31 | L115: 75192 | M115: INE208A01029
A116: ASIANHOTNR | B116: EQ | C116: 267 | D116: 280 | E116: 261 | F116: 279 | G116: 279 | H116: 267.8 | I116: 302 | J116: 81845.25 | K116: 2018-05-31 | L116: 19 | M116: INE363A01022
A117: ASIANPAINT | B117: EQ | C117: 1300.2 | D117: 1311.7 | E117: 1287 | F117: 1304.65 | G117: 1307 | H117: 1293.85 | I117: 1400776 | J117: 1821396366 | K117: 2018-05-31 | L117: 66427 | M117: INE021A01026
A118: ASIANTILES | B118: EQ | C118: 421.7 | D118: 427 | E118: 418.55 | F118: 424.75 | G118: 424 | H118: 421.7 | I118: 32091 | J118: 13561184.15 | K118: 2018-05-31 | L118: 4137 | M118: INE022I01019
A119: ASPINWALL | B119: EQ | C119: 325 | D119: 325 | E119: 305 | F119: 309 | G119: 309 | H119: 315.6 | I119: 4794 | J119: 1484512.15 | K119: 2018-05-31 | L119: 69 | M119: INE991I01015
A120: ASSAMCO | B120: EQ | C120: 3.95 | D120: 4.1 | E120: 3.85 | F120: 3.9 | G120: 3.85 | H120: 4 | I120: 293280 | J120: 1153541.1 | K120: 2018-05-31 | L120: 245 | M120: INE442A01024
A121: ASTEC | B121: EQ | C121: 728 | D121: 734.1 | E121: 701.75 | F121: 725.5 | G121: 727.9 | H121: 721.15 | I121: 41219 | J121: 29620782.6 | K121: 2018-05-31 | L121: 2118 | M121: INE563J01010
A122: ASTERDM | B122: EQ | C122: 180 | D122: 180.95 | E122: 172 | F122: 174.6 | G122: 175 | H122: 179.1 | I122: 125800 | J122: 22166911.05 | K122: 2018-05-31 | L122: 3925 | M122: INE914M01019
A123: ASTRAL | B123: EQ | C123: 1015 | D123: 1049 | E123: 973.4 | F123: 1035.1 | G123: 1034 | H123: 1012.95 | I123: 65741 | J123: 66727563.65 | K123: 2018-05-31 | L123: 8497 | M123: INE006I01046
A124: ASTRAMICRO | B124: EQ | C124: 109.3 | D124: 109.3 | E124: 102.1 | F124: 103.15 | G124: 103.05 | H124: 108.45 | I124: 354743 | J124: 37149798 | K124: 2018-05-31 | L124: 4834 | M124: INE386C01029
A125: ASTRAZEN | B125: EQ | C125: 1225 | D125: 1240 | E125: 1180 | F125: 1190.7 | G125: 1180.35 | H125: 1223.6 | I125: 5620 | J125: 6770365.8 | K125: 2018-05-31 | L125: 577 | M125: INE203A01020
A126: ASTRON | B126: EQ | C126: 112.05 | D126: 113.9 | E126: 111.6 | F126: 112.55 | G126: 112 | H126: 112.4 | I126: 93746 | J126: 10549416.45 | K126: 2018-05-31 | L126: 957 | M126: INE646X01014
A127: ATFL | B127: EQ | C127: 682 | D127: 685 | E127: 662.9 | F127: 668.95 | G127: 666 | H127: 682.95 | I127: 11261 | J127: 7575857.9 | K127: 2018-05-31 | L127: 602 | M127: INE209A01019
A128: ATLANTA | B128: EQ | C128: 51.25 | D128: 56 | E128: 51.25 | F128: 51.25 | G128: 51.25 | H128: 64.05 | I128: 1246139 | J128: 65380156.25 | K128: 2018-05-31 | L128: 6135 | M128: INE285H01022
A129: ATLASCYCLE | B129: BE | C129: 140 | D129: 143.5 | E129: 140 | F129: 141.95 | G129: 142.9 | H129: 140 | I129: 1137 | J129: 161901.35 | K129: 2018-05-31 | L129: 36 | M129: INE446A01025
A130: ATUL | B130: EQ | C130: 2797.95 | D130: 2825.25 | E130: 2755.55 | F130: 2824.35 | G130: 2813.15 | H130: 2774.35 | I130: 38373 | J130: 107080049.2 | K130: 2018-05-31 | L130: 950 | M130: INE100A01010
A131: ATULAUTO | B131: EQ | C131: 423.1 | D131: 430 | E131: 423.1 | F131: 428.4 | G131: 426.1 | H131: 425.1 | I131: 6605 | J131: 2824335.1 | K131: 2018-05-31 | L131: 215 | M131: INE951D01028
A132: AUBANK | B132: EQ | C132: 688.1 | D132: 707.8 | E132: 684 | F132: 697.3 | G132: 699 | H132: 689.45 | I132: 138884 | J132: 97042664.85 | K132: 2018-05-31 | L132: 7662 | M132: INE949L01017
A133: AURIONPRO | B133: EQ | C133: 210 | D133: 214.95 | E133: 204.8 | F133: 206.05 | G133: 208.9 | H133: 206.1 | I133: 20097 | J133: 4214653.35 | K133: 2018-05-31 | L133: 587 | M133: INE132H01018
A134: AUROPHARMA | B134: EQ | C134: 567.9 | D134: 570 | E134: 551.95 | F134: 556.3 | G134: 555 | H134: 565.65 | I134: 4280622 | J134: 2393569757 | K134: 2018-05-31 | L134: 71997 | M134: INE406A01037
A135: AUSOMENT | B135: EQ | C135: 76.9 | D135: 77 | E135: 76.9 | F135: 77 | G135: 77 | H135: 73.35 | I135: 7016 | J135: 540231 | K135: 2018-05-31 | L135: 30 | M135: INE218C01016
A136: AUTOAXLES | B136: EQ | C136: 1265 | D136: 1277.3 | E136: 1246 | F136: 1249.35 | G136: 1248.5 | H136: 1265.9 | I136: 23920 | J136: 30248976.75 | K136: 2018-05-31 | L136: 1247 | M136: INE449A01011
A137: AUTOIND | B137: EQ | C137: 79 | D137: 79 | E137: 73.4 | F137: 74.3 | G137: 75.55 | H137: 78 | I137: 25334 | J137: 1918105.25 | K137: 2018-05-31 | L137: 372 | M137: INE718H01014
A138: AUTOLITIND | B138: EQ | C138: 65.05 | D138: 65.45 | E138: 63.4 | F138: 63.7 | G138: 63.4 | H138: 64.45 | I138: 6403 | J138: 410442.25 | K138: 2018-05-31 | L138: 154 | M138: INE448A01013
A139: AVADHSUGAR | B139: EQ | C139: 370 | D139: 384.9 | E139: 363.1 | F139: 365.2 | G139: 364.05 | H139: 372.15 | I139: 35809 | J139: 13394131.9 | K139: 2018-05-31 | L139: 1249 | M139: INE349W01017
A140: AVANTIFEED | B140: EQ | C140: 1744.9 | D140: 1755.55 | E140: 1545.05 | F140: 1632.85 | G140: 1627 | H140: 1739.4 | I140: 654297 | J140: 1057799052 | K140: 2018-05-31 | L140: 48809 | M140: INE871C01020
A141: AVTNPL | B141: EQ | C141: 36.2 | D141: 36.4 | E141: 34.8 | F141: 35.05 | G141: 35 | H141: 36.05 | I141: 26811 | J141: 948593.35 | K141: 2018-05-31 | L141: 220 | M141: INE488D01021
A142: AXISBANK | B142: EQ | C142: 543 | D142: 551.8 | E142: 532.25 | F142: 545.9 | G142: 544.1 | H142: 541.65 | I142: 15652651 | J142: 8488234973 | K142: 2018-05-31 | L142: 147783 | M142: INE238A01034
A143: AXISCADES | B143: EQ | C143: 147.8 | D143: 149.75 | E143: 142.7 | F143: 144.8 | G143: 144 | H143: 149.3 | I143: 38974 | J143: 5690789.95 | K143: 2018-05-31 | L143: 1315 | M143: INE555B01013
A144: AXISGOLD | B144: EQ | C144: 2779 | D144: 2779 | E144: 2731 | F144: 2745 | G144: 2745 | H144: 2747 | I144: 12 | J144: 32922 | K144: 2018-05-31 | L144: 8 | M144: INF846K01347
A145: AXISNIFTY | B145: EQ | C145: 1070.97 | D145: 1080.09 | E145: 1070.97 | F145: 1077.96 | G145: 1080.09 | H145: 1062 | I145: 33 | J145: 35426 | K145: 2018-05-31 | L145: 3 | M145: INF846K01ZL0
A146: AYMSYNTEX | B146: EQ | C146: 56.8 | D146: 58.75 | E146: 56.8 | F146: 58 | G146: 58.3 | H146: 57.9 | I146: 21675 | J146: 1254398.8 | K146: 2018-05-31 | L146: 56 | M146: INE193B01039
A147: BAFNAPHARM | B147: EQ | C147: 25.65 | D147: 25.75 | E147: 24.8 | F147: 24.85 | G147: 25.25 | H147: 25.8 | I147: 15250 | J147: 384159.7 | K147: 2018-05-31 | L147: 115 | M147: INE878I01014
A148: BAGFILMS | B148: EQ | C148: 4.85 | D148: 5.25 | E148: 4.7 | F148: 5.2 | G148: 5.2 | H148: 4.8 | I148: 508988 | J148: 2548635.65 | K148: 2018-05-31 | L148: 519 | M148: INE116D01028
A149: BAJAJ-AUTO | B149: EQ | C149: 2775 | D149: 2784.95 | E149: 2734.1 | F149: 2750.3 | G149: 2771.3 | H149: 2762.9 | I149: 447005 | J149: 1229493274 | K149: 2018-05-31 | L149: 38810 | M149: INE917I01010
A150: BAJAJCORP | B150: EQ | C150: 473.5 | D150: 479.5 | E150: 465 | F150: 476.55 | G150: 472 | H150: 464.55 | I150: 34728 | J150: 16413863.2 | K150: 2018-05-31 | L150: 1714 | M150: INE933K01021
A151: BAJAJELEC | B151: EQ | C151: 542 | D151: 548.8 | E151: 524.3 | F151: 533.6 | G151: 538 | H151: 541.4 | I151: 426598 | J151: 227701777.5 | K151: 2018-05-31 | L151: 11785 | M151: INE193E01025
A152: BAJAJFINSV | B152: EQ | C152: 5995 | D152: 6156.9 | E152: 5930.8 | F152: 6042.25 | G152: 6050 | H152: 5958.85 | I152: 264768 | J152: 1594064857 | K152: 2018-05-31 | L152: 28406 | M152: INE918I01018
A153: BAJAJHIND | B153: EQ | C153: 7.5 | D153: 7.55 | E153: 7.35 | F153: 7.35 | G153: 7.35 | H153: 7.45 | I153: 1268631 | J153: 9417236.6 | K153: 2018-05-31 | L153: 1439 | M153: INE306A01021
A154: BAJAJHLDNG | B154: EQ | C154: 2797 | D154: 2815 | E154: 2760.4 | F154: 2769.95 | G154: 2770.8 | H154: 2763.75 | I154: 9574 | J154: 26641009.85 | K154: 2018-05-31 | L154: 1513 | M154: INE118A01012
A155: BAJFINANCE | B155: EQ | C155: 2142.5 | D155: 2145 | E155: 2101 | F155: 2109.9 | G155: 2111.35 | H155: 2118.65 | I155: 1323397 | J155: 2808022034 | K155: 2018-05-31 | L155: 67410 | M155: INE296A01024
A156: BALAJITELE | B156: EQ | C156: 131.3 | D156: 133.6 | E156: 128.85 | F156: 130.85 | G156: 130 | H156: 131.1 | I156: 45565 | J156: 6003788.8 | K156: 2018-05-31 | L156: 982 | M156: INE794B01026
A157: BALAMINES | B157: EQ | C157: 604 | D157: 620.95 | E157: 592 | F157: 595.35 | G157: 592.05 | H157: 607.8 | I157: 18164 | J157: 10903271.2 | K157: 2018-05-31 | L157: 948 | M157: INE050E01027
A158: BALKRISHNA | B158: EQ | C158: 73.05 | D158: 73.25 | E158: 73 | F158: 73 | G158: 73 | H158: 73.1 | I158: 8275 | J158: 604857.8 | K158: 2018-05-31 | L158: 31 | M158: INE875R01011
A159: BALKRISIND | B159: EQ | C159: 1152.5 | D159: 1152.9 | E159: 1125 | F159: 1134.6 | G159: 1131 | H159: 1144.4 | I159: 320097 | J159: 364471816.8 | K159: 2018-05-31 | L159: 13472 | M159: INE787D01026
A160: BALLARPUR | B160: EQ | C160: 11.1 | D160: 11.85 | E160: 11.1 | F160: 11.2 | G160: 11.2 | H160: 11.1 | I160: 535869 | J160: 6072927.15 | K160: 2018-05-31 | L160: 1096 | M160: INE294A01037
A161: BALMLAWRIE | B161: EQ | C161: 233.5 | D161: 233.5 | E161: 225.95 | F161: 228.6 | G161: 229 | H161: 229.65 | I161: 155165 | J161: 35715745.45 | K161: 2018-05-31 | L161: 3564 | M161: INE164A01016
A162: BALPHARMA | B162: EQ | C162: 79.15 | D162: 80.15 | E162: 77.8 | F162: 78.25 | G162: 78.65 | H162: 78.95 | I162: 11753 | J162: 927477.8 | K162: 2018-05-31 | L162: 321 | M162: INE083D01012
A163: BALRAMCHIN | B163: EQ | C163: 73.4 | D163: 74.2 | E163: 70.95 | F163: 71.45 | G163: 71.4 | H163: 72.2 | I163: 7574117 | J163: 551302083.5 | K163: 2018-05-31 | L163: 35719 | M163: INE119A01028
A164: BANARBEADS | B164: EQ | C164: 52.7 | D164: 57 | E164: 52.7 | F164: 55.45 | G164: 55 | H164: 53.5 | I164: 1961 | J164: 108541.45 | K164: 2018-05-31 | L164: 52 | M164: INE655B01011
A165: BANARISUG | B165: EQ | C165: 1564.7 | D165: 1590 | E165: 1533.85 | F165: 1567.8 | G165: 1570 | H165: 1564.8 | I165: 274 | J165: 429736.7 | K165: 2018-05-31 | L165: 51 | M165: INE459A01010
A166: BANCOINDIA | B166: EQ | C166: 228 | D166: 241.2 | E166: 228 | F166: 230.2 | G166: 230.1 | H166: 216.9 | I166: 312441 | J166: 73058906.35 | K166: 2018-05-31 | L166: 5605 | M166: INE213C01025
A167: BANDHANBNK | B167: EQ | C167: 472.2 | D167: 474 | E167: 463.1 | F167: 470.5 | G167: 470 | H167: 469.9 | I167: 375833 | J167: 175821163.5 | K167: 2018-05-31 | L167: 11178 | M167: INE545U01014
A168: BANG | B168: EQ | C168: 42.4 | D168: 42.5 | E168: 40.1 | F168: 40.45 | G168: 40.4 | H168: 42.2 | I168: 23244 | J168: 952454.05 | K168: 2018-05-31 | L168: 111 | M168: INE863I01016
A169: BANKBARODA | B169: EQ | C169: 139.1 | D169: 139.85 | E169: 135.8 | F169: 136.85 | G169: 136.9 | H169: 138.45 | I169: 13116608 | J169: 1804111338 | K169: 2018-05-31 | L169: 55403 | M169: INE028A01039
A170: BANKBEES | B170: EQ | C170: 2688.5 | D170: 2752 | E170: 2676.75 | F170: 2729.26 | G170: 2727.5 | H170: 2663.78 | I170: 8540 | J170: 23270217.02 | K170: 2018-05-31 | L170: 750 | M170: INF732E01078
A171: BANKINDIA | B171: EQ | C171: 101.1 | D171: 101.9 | E171: 98.15 | F171: 98.6 | G171: 98.6 | H171: 100.9 | I171: 7244763 | J171: 720801004.6 | K171: 2018-05-31 | L171: 25358 | M171: INE084A01016
A172: BANSWRAS | B172: EQ | C172: 92.5 | D172: 93 | E172: 87 | F172: 89.15 | G172: 87.05 | H172: 92.7 | I172: 2020 | J172: 182395.7 | K172: 2018-05-31 | L172: 84 | M172: INE629D01012
A173: BARTRONICS | B173: BE | C173: 11.5 | D173: 11.75 | E173: 11.2 | F173: 11.5 | G173: 11.5 | H173: 11.7 | I173: 54624 | J173: 619601.65 | K173: 2018-05-31 | L173: 182 | M173: INE855F01034
A174: BASF | B174: EQ | C174: 1996.6 | D174: 2058.55 | E174: 1981 | F174: 2027.2 | G174: 2025 | H174: 1981.45 | I174: 11351 | J174: 22847958.2 | K174: 2018-05-31 | L174: 1410 | M174: INE373A01013
A175: BASML | B175: EQ | C175: 234.05 | D175: 239.85 | E175: 225.1 | F175: 226.7 | G175: 227 | H175: 239.85 | I175: 1331 | J175: 302864.85 | K175: 2018-05-31 | L175: 55 | M175: INE186H01014
A176: BATAINDIA | B176: EQ | C176: 800 | D176: 800 | E176: 773.5 | F176: 779.5 | G176: 784.35 | H176: 790.2 | I176: 1322550 | J176: 1041310785 | K176: 2018-05-31 | L176: 27664 | M176: INE176A01028
A177: BAYERCROP | B177: EQ | C177: 4595.6 | D177: 4679.85 | E177: 4550 | F177: 4622.7 | G177: 4550 | H177: 4685.9 | I177: 9477 | J177: 43835638.35 | K177: 2018-05-31 | L177: 3726 | M177: INE462A01022
A178: BBL | B178: EQ | C178: 1344.3 | D178: 1395 | E178: 1343 | F178: 1354.25 | G178: 1351.15 | H178: 1355.8 | I178: 11595 | J178: 15852001.8 | K178: 2018-05-31 | L178: 2073 | M178: INE464A01028
A179: BBTC | B179: EQ | C179: 1585.05 | D179: 1661.3 | E179: 1562 | F179: 1612.75 | G179: 1616.7 | H179: 1571.95 | I179: 724583 | J179: 1174014636 | K179: 2018-05-31 | L179: 22813 | M179: INE050A01025
A180: BDL | B180: EQ | C180: 420 | D180: 425 | E180: 403 | F180: 405.4 | G180: 405 | H180: 402.3 | I180: 179428 | J180: 74007407.5 | K180: 2018-05-31 | L180: 7380 | M180: INE171Z01018
A181: BEARDSELL | B181: EQ | C181: 42.5 | D181: 42.5 | E181: 41.25 | F181: 41.25 | G181: 41.25 | H181: 42.1 | I181: 2455 | J181: 101845.8 | K181: 2018-05-31 | L181: 14 | M181: INE520H01022
A182: BEDMUTHA | B182: BE | C182: 18.25 | D182: 18.3 | E182: 17.6 | F182: 18 | G182: 18 | H182: 18.3 | I182: 2959 | J182: 53452.85 | K182: 2018-05-31 | L182: 21 | M182: INE844K01012
A183: BEL | B183: EQ | C183: 119.9 | D183: 119.9 | E183: 113.85 | F183: 114.4 | G183: 114.05 | H183: 119.45 | I183: 9041820 | J183: 1044329442 | K183: 2018-05-31 | L183: 57750 | M183: INE263A01024
A184: BEML | B184: EQ | C184: 948.8 | D184: 949.25 | E184: 921 | F184: 925.15 | G184: 923 | H184: 940.55 | I184: 757635 | J184: 704710519.2 | K184: 2018-05-31 | L184: 28779 | M184: INE258A01016
A185: BEPL | B185: EQ | C185: 148 | D185: 152.35 | E185: 134.2 | F185: 145.4 | G185: 146.45 | H185: 147.6 | I185: 3300419 | J185: 464303000.4 | K185: 2018-05-31 | L185: 29780 | M185: INE922A01025
A186: BERGEPAINT | B186: EQ | C186: 300 | D186: 301 | E186: 288.1 | F186: 298.2 | G186: 297.95 | H186: 300.95 | I186: 2780225 | J186: 823002260 | K186: 2018-05-31 | L186: 29192 | M186: INE463A01038
A187: BFINVEST | B187: EQ | C187: 309 | D187: 309.85 | E187: 290.6 | F187: 293.2 | G187: 292 | H187: 308.05 | I187: 202166 | J187: 60297259.2 | K187: 2018-05-31 | L187: 7471 | M187: INE878K01010
A188: BFUTILITIE | B188: EQ | C188: 392.45 | D188: 393.4 | E188: 377 | F188: 380.55 | G188: 380.5 | H188: 390.6 | I188: 469721 | J188: 180070919.3 | K188: 2018-05-31 | L188: 10428 | M188: INE243D01012
A189: BGLOBAL | B189: BE | C189: 4 | D189: 4.15 | E189: 4 | F189: 4.1 | G189: 4.15 | H189: 4.1 | I189: 10304 | J189: 41856.6 | K189: 2018-05-31 | L189: 18 | M189: INE224M01013
A190: BGRENERGY | B190: EQ | C190: 103.65 | D190: 112.85 | E190: 102.7 | F190: 106.45 | G190: 106.9 | H190: 97.55 | I190: 2138318 | J190: 233090763.1 | K190: 2018-05-31 | L190: 24443 | M190: INE661I01014
A191: BHAGERIA | B191: EQ | C191: 302.65 | D191: 321.8 | E191: 302 | F191: 317.4 | G191: 318 | H191: 306.15 | I191: 101137 | J191: 31951768 | K191: 2018-05-31 | L191: 2729 | M191: INE354C01027
A192: BHAGYANGR | B192: EQ | C192: 44.55 | D192: 45.75 | E192: 43 | F192: 43.2 | G192: 43.75 | H192: 44.1 | I192: 25018 | J192: 1088025.65 | K192: 2018-05-31 | L192: 191 | M192: INE458B01036
A193: BHAGYAPROP | B193: BE | C193: 20.8 | D193: 21.9 | E193: 20.75 | F193: 20.75 | G193: 21.1 | H193: 21.05 | I193: 8076 | J193: 167759.2 | K193: 2018-05-31 | L193: 19 | M193: INE363W01018
A194: BHANDARI | B194: EQ | C194: 2.45 | D194: 2.45 | E194: 2.4 | F194: 2.45 | G194: 2.45 | H194: 2.35 | I194: 286264 | J194: 701040.35 | K194: 2018-05-31 | L194: 143 | M194: INE474E01029
A195: BHARATFIN | B195: EQ | C195: 1155.3 | D195: 1180 | E195: 1140.7 | F195: 1168.9 | G195: 1170 | H195: 1152.05 | I195: 580776 | J195: 675484856 | K195: 2018-05-31 | L195: 13824 | M195: INE180K01011
A196: BHARATFORG | B196: EQ | C196: 667.6 | D196: 669.55 | E196: 648.75 | F196: 650.7 | G196: 650 | H196: 665.75 | I196: 1374402 | J196: 899370274.8 | K196: 2018-05-31 | L196: 46024 | M196: INE465A01025
A197: BHARATGEAR | B197: EQ | C197: 180.95 | D197: 187 | E197: 176.1 | F197: 176.85 | G197: 177.1 | H197: 177 | I197: 36271 | J197: 6568240.05 | K197: 2018-05-31 | L197: 848 | M197: INE561C01019
A198: BHARATRAS | B198: EQ | C198: 5800 | D198: 6320 | E198: 5706 | F198: 5804.85 | G198: 5752 | H198: 5627.4 | I198: 4503 | J198: 26756983.65 | K198: 2018-05-31 | L198: 1271 | M198: INE838B01013
A199: BHARATWIRE | B199: EQ | C199: 112.45 | D199: 112.5 | E199: 102.3 | F199: 107.15 | G199: 108 | H199: 109.9 | I199: 87324 | J199: 9278232.45 | K199: 2018-05-31 | L199: 907 | M199: INE316L01019
A200: BHARTIARTL | B200: EQ | C200: 376.1 | D200: 383.2 | E200: 371.25 | F200: 373.6 | G200: 373.9 | H200: 375.8 | I200: 10796716 | J200: 4045672798 | K200: 2018-05-31 | L200: 101440 | M200: INE397D01024
... 1446 more rows

Sheet Sheet1 (hidden)

Sheet Sheet3 (hidden)
